Workbook

Sheet E-Land Info (hidden)
C3: E-Land | E3: Energie van het Land
C5: De E-land familie is een serie van rekenmodellen waarmee verschillende aspecten van de keten Hout2Warmte mee kunnen worden gesimuleerd. De modellen betreffen nagenoeg alle aspecten van de keten. Zo is er een model (E-Land Hout) om, uitgaande van de houtsoort, de eigenschappen hiervan te bepalen en een model (E-Land Basis) om de fysische en economische relaties tussen hout en fossiele brandstoffen vast te stellen. Deze modellen zijn vrij (om niet) beschikbaar voor belangstellenden. Er zijn ook veel complexere modellen die in meer detail en met adequate analysemethoden de keten kunnen helpen beoordelen. Deze modellen worden door Zilverberg Advies / KandT Management voor adviezen ingezet en zijn niet vrij beschikbaar. De modellen zijn ontwikkeld door en eigendom van KandT Management en Zilverberg Advies.
C8: De E-land familie bestaat uit de volgende modules:
D10: E-Land | E10: Simulatie van de keten Hout2Warmte met veel detail (> 100 invoer parameters) en vele extra's zoals gevoeligheidsanalyse, Pareto, Business model, etc. Het betreft een Proces-People-Planet-Profit (PPPP) aanpak. Dat betekent dat naast de simulatie van de fysische processen (Proces) ook aspecten van werkgelegenheid (People), klimaat/CO2 (Planet) en kosten en opbrengsten (Profit) worden berekend en geanalyseerd. Het antwoord van de analyse: De prijs en concurentie van houtwarmte ten opzichte van fossiele warmte, nu en in de toekomst.
D12: E-Land Lite | E12: Lichte versie van E-Land. Fit-for-Purpose voor een eerste analyse op basis van hoofdlijnen.
D14: E-land Hout | E14: Fysische eigenschappen van veel voorkomende houtsoorten.
D16: E-Land Basis | E16: Vergelijking van de een fossiele brandstof met hout en hout met een fossiele brandstof
D18: E-Land Logistiek | E18: 2D simulatie van een regio met betrekking tot transport van biomassa. Ondermeer opbrengst, afstanden, CO2 produtie, kosten. Optimale lokatie voor een houtwerf
D20: E-Land Front-End | E20: Gedetaileerde analyse van de voortbrengingsketen van hout tot de eindgebruiker - Centrale vraag: Wat kost het hout ?
C25: Voor vragen, info of advies: | E25: Irma Corten via E-mail: irma@zilverbergadvies.nl of mobiel: 06 - 425 879 50
E26: Ger Kupers via E-mail: kupers@kandt.nl of mobiel 06-201 397 88

Sheet Inhoud (hidden)
B4: E-Land-CO2
B7: 1 | D7: Algemene Inleiding
B8: 2 | D8: Handleiding voor het rekenprogramma
B9: 3 | D9: Rekenprogramma E-Land-CO2
B10: 4 | D10: Uitkomsten van de berekeningen
B11: 5 | D11: Gebruikte data voor de berekeningen
B12: 6 | D12: Beoordeelde Nederlandse biomassaketens
B13: 6.1 | E13: ="Keten-"&'Ketens-Berekend'!E8&" -" -> Keten-1a - | I13: ='Ketens-Berekend'!F8 -> Chips uit top- en tak hout uit bos of landschap
B14: 6.2 | E14: ="Keten-"&'Ketens-Berekend'!E9&" -" -> Keten-2a - | I14: ='Ketens-Berekend'!F9 -> Chips uit rondhout uit bos of landschap
E15: ="Keten-"&'Ketens-Berekend'!E10&" -" -> Keten-2b - | I15: ='Ketens-Berekend'!F10 -> Pellets uit (vers) rondhout uit bos of landschap
E16: ="Keten-"&'Ketens-Berekend'!E11&" -" -> Keten-2c - | I16: ='Ketens-Berekend'!F11 -> Blokken uit rondhout uit bos of landschap
E17: ="Keten-"&'Ketens-Berekend'!#REF!&" -" ->  | I17: ='Ketens-Berekend'!#REF! -> 
E18: ="Keten-"&'Ketens-Berekend'!E12&" -" -> Keten-3a - | I18: ='Ketens-Berekend'!F12 -> Chips uit reststromen houtindustrie
E19: ="Keten-"&'Ketens-Berekend'!E13&" -" -> Keten-3b - | I19: ='Ketens-Berekend'!F13 -> Pellets uit (droge) reststromen houtindustrie
E20: ="Keten-"&'Ketens-Berekend'!E14&" -" -> Keten-4a - | I20: ='Ketens-Berekend'!F14 -> Shreds uit groene reststromen
E21: ="Keten-"&'Ketens-Berekend'!E15&" -" -> Keten-4b - | I21: ='Ketens-Berekend'!F15 -> Shreds uit zeefoverloop

Sheet Inleiding (hidden)
A1: Inhoud | C1: 1 | D1: =C1+1 -> 2 | E1: =D1+1 -> 3 | F1: 4 | G1: 5 | H1: 6 | I1: 7 | J1: 8 | K1: 9 | L1: 10 | M1: 11 | N1: 12 | O1: 13 | P1: 14 | Q1: 15 | R1: 16 | S1: 17 | T1: 18 | U1: 1 | V1: =U1+1 -> 2 | W1: =V1+1 -> 3 | X1: 4 | Y1: 5 | Z1: 6 | AA1: 7 | AB1: 8 | AC1: 9 | AD1: 10 | AE1: 11 | AF1: 12 | AG1: 13 | AH1: 14 | AI1: 15 | AJ1: 16 | AK1: 17 | AL1: 18 | AM1: 1 | AN1: =AM1+1 -> 2 | AO1: =AN1+1 -> 3 | AP1: 4 | AQ1: 5 | AR1: 6 | AS1: 7 | AT1: 8 | AU1: 9 | AV1: 10 | AW1: 11 | AX1: 12 | AY1: 13 | AZ1: 14 | BA1: 15 | BB1: 16 | BC1: 17 | BD1: 18
C2: E-Land-CO2 - Inleiding
C6: De vraag naar houtige biobrandstoffen en –grondstoffen groeit, gedreven door de klimaatdoelen en de ontwikkeling naar de ‘biobased economy’. Achtergrond is het streven van de Europese Unie om haar energievoorziening te verduurzamen. Een onderwerp in dit streven is de rol biomassa en haar vermogen om de CO2 uitstoot in vergelijk met fossiele grond- en brandstoffen te verminderen. De EU heft daartoe een omvangrijk regelwerk ingericht om de omgang met biomassaketens te regulieren en om de CO2 uitstoot van biomassaketens te kunnen vaststellen. Op basis van het regelwerk zijn door het Joint research Centre een groot aantal biomassaketens geanalyseerd. In combinatie met de JRC studie is door een consortium van Europese partijen het rekenprogramma BioGrace ontwikkeld. In beide producten is de focus op de CO2 emissie van de verschillende cultivatie, proces en transport stappen. Het programma BioGrace wordt ook de auditors ingezet om biomassaketens te certificeren. | AD6: Het gebruik van het BioGrace programma wordt door vele biomassaleveranciers als complex ervaren. Daarbij komt dat in Nederland een aantal biomassaketens bestaan die niet in het BioGrace zijn benoemd en die ook niet in het JRC document worden behandeld. Om deze reden heeft de werkgroep CO2 emissiefactoren binnenlandse biomassa van het Agroconvenant Natuur, Bos, Hout en Landschap een project gestart om de voor Nederland interessante en ingezette biomassaketens een en ander inzichtelijk te maken. Daartoe is een inventarisatie van de gebruikelijk biomassaketens in Nederland gemaakt en is een rekenprogramma opgesteld waarmee deze ketens inzichtelijk gemaakt kunnen worden. Tevens is een rekenprogramma ontwikkeld op Proces en/of Transportstappen van een biomassaketen vast te stellen. Met behulp hiervan kunnen eigen processen met betrekking tot CO2 emissies kunnen worden beoordeeld. Doel is om te beoordelen of eigen Processen en/of Transporten beter presteren als de in Europa geldende Processen en Transporten. De toelichting beschrijft de achtergronden en werkwijze va het programma.
W24: CO2 emissie uit
N27: Biomassa in | W27: Proces of | AF27: Biomassa uit
R28: m3 | W28: Transport | AJ28: m3
W30: Elektriciteit in
W31: Brandstof in

Sheet Toelichting
C1: 1 | D1: =C1+1 -> 2 | E1: =D1+1 -> 3 | F1: 4 | G1: 5 | H1: 6 | I1: 7 | J1: 8 | K1: 9 | L1: 10 | M1: 11 | N1: 12 | O1: 13 | P1: 14 | Q1: 15 | R1: 16 | S1: 17 | T1: 18 | U1: 1 | V1: =U1+1 -> 2 | W1: =V1+1 -> 3 | X1: 4 | Y1: 5 | Z1: 6 | AA1: 7 | AB1: 8 | AC1: 9 | AD1: 10 | AE1: 11 | AF1: 12 | AG1: 13 | AH1: 14 | AI1: 15 | AJ1: 16 | AK1: 17 | AL1: 18 | AM1: 1 | AN1: =AM1+1 -> 2 | AO1: =AN1+1 -> 3 | AP1: 4 | AQ1: 5 | AR1: 6 | AS1: 7 | AT1: 8 | AU1: 9 | AV1: 10 | AW1: 11 | AX1: 12 | AY1: 13 | AZ1: 14 | BA1: 15 | BB1: 16 | BC1: 17 | BD1: 18
C2: E-Land-CO2
C4: In onderstaand schema is een biomassaketen weergegeven. De keten bestaat uit een aantal processen (verzamelen, chippen, pelletiseren, etc) en transporten. Voor de leveranciers van biomassa is het van belang te weten hoeveel CO2 er tijdens de verschillende ketenstappen ontstaat, temeer omdat dit in toenemende mate door de afnemers van de biomassa wordt gevraagd of omdat hieraan bepaalde eisen worden gesteld. Gevraagd wordt in regel naar de CO2 productie per eenheid doorzet. In de Europese aanpak is de eenheid van doorzet vastgesteld op 1 MJ aan het einde van de keten en wel voordat het product (chips, pellets, etc) aan de eindgebruiker wordt geleverd. Dit is een energie-eenheid en is daarom gekozen om alle soorten biobrandstoffen (vast, vloeibaar en gasvormig) met elkaar te kunnen vergelijken. Op basis van de eigenschappen van de specifieke biobrandstoffen zoals de dichtheid en de verbrandingswaarde kunnen andere eigenschappen worden bepaald. Hierin is het rekenprogramma E-Land-CO2 zeer flexibel. | AD4: Om een processtap of een transport te kunnen uitvoeren zijn werktuigen nodig die elektriciteit en/of brandstof verbruiken en die daardoor CO2 uitstoten. Omdat deze apparaten veelal fossiele brandstoffen en/of grijze stroom gebruiken ontstaat er een CO2 uitstoot. Het is het doel van het onderhavige programma is deze CO2 uitstoot te berekenen. In de Europese aanpak wordt niet alleen de CO2 uitstoot bepaald maar tevens de uitstoot van CH4 en N2O. CH4 en N2O zijn veel sterkere broeikasgassen dan CO2. De Global Warming Potentials zijn: CO2 = 1, CH4 = 25 en N2O = 298. Op basis hiervan wordt een equivalente CO2eq berekend. In het programma E-Land-CO2 zijn de bijdragen van CH4 en N2O niet zichtbaar en wordt uitsluitend de CO2eq waarde getoond. Ten gevolge van verliezen in de keten zal om 1MJ aan het einde van de keten te realiseren er aan het begin van de keten meer dan 1 MJ nodig zijn. In de figuur is dit aangegeven met (1+x) MJ. De factor x is de optelsom van alle verliezen tijdens de gang door de biomassaketen. In het rekenprogramma kan worden aangegeven of een bepaalde hoeveelheid biomassa aan het begin (uit het landschap) of aan het einde (aan de eindgebruiker) van de keten dient te worden vastgesteld.
C7: CO2eq | J7: CO2eq | P7: CO2eq | V7: CO2eq | AB7: CO2eq | AH7: CO2eq | AN7: CO2eq | AT7: CO2eq | BA7: CO2eq
C13: (1+x) MJ | J13: Proces-1 | P13: Transport-1 | V13: Proces | AB13: Transport | AH13: Proces-3 | AN13: Proces-x | AT13: Transport-y | BA13: 1 MJ
C15: Grondstof | BA15: Eindproduct
AN16: Proces-x
Y17: Dit programma
C20: Elektriciteit Brandstof | J20: Elektriciteit Brandstof | P20: Elektriciteit Brandstof | V20: Elektriciteit Brandstof | AB20: Elektriciteit Brandstof | AH20: Elektriciteit Brandstof | AN20: Elektriciteit Brandstof | AT20: Elektriciteit Brandstof | BA20: Elektriciteit Brandstof
C25: In het rekenprogramma kunnen, na invulling van algemene gegevens over de biomassa, één Proces- en één Transportstap gemodeleerd worden.
O27: NL | Q27: EU
M28: CO2eq | N28: =IF(Samenvatting_NL_Keten_CO2<10,TEXT(Samenvatting_NL_Keten_CO2,"#.##0,0"),TEXT(Samenvatting_NL_Keten_CO2,"#.##")) -> 82.037 | P28: =IF(VLOOKUP(Hout_Keten_EU,Lijst_EU_Keten,Keten_Titel_NL_EU)="NL","", IF(Samenvatting_EU_Keten_CO2<10,TEXT(Samenvatting_EU_Keten_CO2,"#.##0,0"),TEXT(Samenvatting_EU_Keten_CO2,"#.##"))) -> 165.106 | R28: kgCO2eq | W28: Proces | AD28: CO2eq | AE28: =IF(Samenvatting_Proces_CO2T<10,TEXT(Samenvatting_Proces_CO2T,"#.##0,0"),TEXT(Samenvatting_Proces_CO2T,"#.##")) -> 47.924.767 | AH28: gCO2eq | AM28: Transport | AT28: CO2eq | AU28: =IF(Samenvatting_Transport_CO2T<10,TEXT(Samenvatting_Transport_CO2T,"#.##0,0"),TEXT(Samenvatting_Transport_CO2T,"#.##")) -> 10.360.419 | AX28: gCO2eq
M29: Doorzet | N29: =IF(Samenvatting_Hout_Doorzet<10,TEXT(Samenvatting_Hout_Doorzet,"#.##0,0"),TEXT(Samenvatting_Hout_Doorzet,"#.##")) -> 1.803 | P29: =IF(VLOOKUP(Hout_Keten_EU,Lijst_EU_Keten,Keten_Titel_NL_EU)="NL","", IF(Samenvatting_Hout_Doorzet<10,TEXT(Samenvatting_Hout_Doorzet,"#.##0,0"),TEXT(Samenvatting_Hout_Doorzet,"#.##"))) -> 1.803 | R29: tonds | AD29: Doorzet | AE29: =IF(Samenvatting_Proces_Doorzet<10,TEXT(Samenvatting_Proces_Doorzet,"#.##0,0"),TEXT(Samenvatting_Proces_Doorzet,"#.##")) -> 34.107.141 | AH29: MJ | AT29: Doorzet | AU29: =IF(Samenvatting_Transport_Doorzet<10,TEXT(Samenvatting_Transport_Doorzet,"#.##0,0"),TEXT(Samenvatting_Transport_Doorzet,"#.##")) -> 34.107.141 | AX29: MJ
M30: CO2eq/Doorzet | N30: =IF(N28/N29<10,TEXT(N28/N29,"#.##0,0"),TEXT(N28/N29,"#.##")) -> 46 | P30: =IF(VLOOKUP(Hout_Keten_EU,Lijst_EU_Keten,Keten_Titel_NL_EU)="NL","", IF(P28/P29<10,TEXT(P28/P29,"#.##0,0"),TEXT(P28/P29,"#.##"))) -> 92 | R30: =Samenvatting_Hout_CO2T_Dim&"/"&Samenvatting_Hout_Doorzet_Dim -> kgCO2eq/tonds | AD30: CO2eq/Doorzet | AE30: =IF(AE28/AE29<10,TEXT(AE28/AE29,"#.##0,0"),TEXT(AE28/AE29,"#.##")) -> 1,4 | AH30: =Samenvatting_Proces_CO2T_Dim&"/"&Samenvatting_Proces_Doorzet_Dim -> gCO2eq/MJ | AT30: CO2eq/Doorzet | AU30: =IF(AU28/AU29<10,TEXT(AU28/AU29,"#.##0,0"),TEXT(AU28/AU29,"#.##")) -> 0,3 | AX30: =Samenvatting_Transport_CO2T_Dim&"/"&Samenvatting_Transport_Doorzet_Dim -> gCO2eq/MJ
F31: ©KandT/Zilverberg
G33: Opmerkingen: | W33: Opmerkingen: | AM33: Opmerkingen:
W34: Er wordt per keer zoveel gechipt als in de bunker past: 80/85 m3. Kosten 3 uur chipper 250 €/uur (veel kosten voor heen en weer rijden, vanwege kleine hoeveelheid). | AM34: Vrachtwagens komen leeg terug
G38: Omschrijving | K38: Levering Biomassacentrale Texel | W38: Omschrijving | AD38: Chippen | AM38: Omschrijving | AT38: Transport naar afnemer
G39: Houtsoort | N39: Loofhout mix NL | W39: Houtvorm proces | AF39: Chips G50/P31,5 | AM39: Houtvorm | AV39: =Proces_Vorm -> Chips G50/P31,5
G40: Houtvorm oogst | N40: Top- en takhout | W40: Verandering Houthoeveelheid | AF40: -2 | AI40: % | AM40: Verandering Houthoeveelheid | AV40: 0 | AY40: %
G41: Vochtigheid / vochtgehalte oogst | P41: 50 | S41: =Uit_Hout_Vochtgehalte -> 100 | T41: % | W41: Verandering Houtvochtigheid | AF41: 0 | AI41: % | AM41: Verandering Houtvochtigheid | AV41: 0 | AY41: %
G42: Hoeveelheid | J42: naar eindgebruiker | P42: 10000 | S42: m3
AM43: Afstand - enkele reis | AV43: 50 | AY43: km
G44: CO2 Emissiefactoren volgens | N44: BioGrace - II | AM44: Laadruimte | AV44: 90 | AY44: m3
N45: CO2 emissiefactoren - 2018 | AM45: Laadvermogen | AV45: 25 | AY45: ton
N46: Beide | AM46: Belading heen | AV46: 100 | AY46: %
AM47: Belading terug | AV47: 50 | AY47: %
AM48: Snelheid | AV48: 55 | AY48: km/uur
G49: Keten | J49: 1a-Chips uit top- en tak hout uit bos of landschap
G50: Pathway | J50: =LOOKUP(Hout_Keten_NL,Lijst_NL_Keten_Nr_Titel,Lijst_EU_Keten_Nr_Titel) -> 1a-Woodchips from forest residues | W50: Gebruik Brandstof | AM50: Gebruik Brandstof
G51: Ketenstappen | N51: NL | P51: EU | W51: Werktuig | AD51: Chipper | AM51: Werktuig | AT51: Vrachtauto DAF 250
F52: =IF(VLOOKUP(Hout_Keten_NL,Lijst_NL_Keten,11)="","",1) -> 1 | G52: =IF(VLOOKUP(Hout_Keten_NL,Lijst_NL_Keten,11)="","",VLOOKUP(Hout_Keten_NL,Lijst_NL_Keten,11)) -> Inzamelen top- en takhout | N52: =IF(VLOOKUP(Hout_Keten_NL,Lijst_NL_Keten,Keten_Stap1+0*Keten_Delta)="","", IF(Uit_NL_Keten_Totaal_CO2<1,IF(Uit_NL_Keten_Stap1_CO2<0.005,"0,00",TEXT(Uit_NL_Keten_Stap1_CO2,"#.##0,00")), IF(Uit_NL_Keten_Totaal_CO2<10,IF(Uit_NL_Keten_Stap1_CO2<0.05,"0,0",TEXT(Uit_NL_Keten_Stap1_CO2,"#.##0,0")), IF(Uit_NL_Keten_Totaal_CO2<50,IF(Uit_NL_Keten_Stap1_CO2<0.5,"0",TEXT(Uit_NL_Keten_Stap1_CO2,"#.##")), IF(Uit_NL_Keten_Stap1_CO2<0.5,"0",TEXT(Uit_NL_Keten_Stap1_CO2,"#.##")))))) -> 0,8 | P52: =IF(VLOOKUP(Hout_Keten_NL,Lijst_NL_Keten,Keten_Stap1+0*Keten_Delta)="","", IF(Uit_NL_Keten_Totaal_CO2<1,IF(Uit_EU_Keten_Stap1_CO2<0.005,"0,00",TEXT(Uit_EU_Keten_Stap1_CO2,"#.##0,00")), IF(Uit_NL_Keten_Totaal_CO2<10,IF(Uit_EU_Keten_Stap1_CO2<0.05,"0,0",TEXT(Uit_EU_Keten_Stap1_CO2,"#.##0,0")), IF(Uit_NL_Keten_Totaal_CO2<50,IF(Uit_EU_Keten_Stap1_CO2<0.5,"0",TEXT(Uit_EU_Keten_Stap1_CO2,"#.##")), IF(Uit_EU_Keten_Stap1_CO2<0.5,"0",TEXT(Uit_EU_Keten_Stap1_CO2,"#.##")))))) -> 1,5 | R52: =IF(VLOOKUP(Hout_Keten_NL,Lijst_NL_Keten,Keten_Stap1+0*Keten_Delta)="","",Uit_NL_EU_Keten_CO2_Dim) -> gCO2eq/MJ | U52: =IF(VLOOKUP(Hout_Keten_NL,Lijst_NL_Keten,Keten_Stap1_CPT+0*Keten_Delta)="","",VLOOKUP(Hout_Keten_NL,Lijst_NL_Keten,Keten_Stap1_CPT+0*Keten_Delta)) -> P | W52: Capaciteit werktuig | AE52: =IF(OR(AND(Proces_Verbrandingsmotor_Inzet="",Proces_Verbrandingsmotor_Ja_Nee="Ja"), AND(Proces_Verbrandingsmotor_Inzet_Dim="",Proces_Verbrandingsmotor_Ja_Nee="Ja")),"▼","") ->  | AF52: 50 | AI52: m3/uur | AM52: Brandstof | AU52: =IF(AND(Transport_Verbrandingsmotor_Brandstof="",Transport_Verbrandingsmotor_ID=1),"▼","") ->  | AV52: EU-Diesel
F53: =IF(VLOOKUP(Hout_Keten_NL,Lijst_NL_Keten,22)="","",2) -> 2 | G53: =IF(VLOOKUP(Hout_Keten_NL,Lijst_NL_Keten,22)="","",VLOOKUP(Hout_Keten_NL,Lijst_NL_Keten,22)) -> Drogen langs de weg | N53: =IF(VLOOKUP(Hout_Keten_NL,Lijst_NL_Keten,Keten_Stap1+1*Keten_Delta)="","", IF(Uit_NL_Keten_Totaal_CO2<1,IF(Uit_NL_Keten_Stap2_CO2<0.005,"0,00",TEXT(Uit_NL_Keten_Stap2_CO2,"#.##0,00")), IF(Uit_NL_Keten_Totaal_CO2<10,IF(Uit_NL_Keten_Stap2_CO2<0.05,"0,0",TEXT(Uit_NL_Keten_Stap2_CO2,"#.##0,0")), IF(Uit_NL_Keten_Totaal_CO2<50,IF(Uit_NL_Keten_Stap2_CO2<0.5,"0",TEXT(Uit_NL_Keten_Stap2_CO2,"#.##")), IF(Uit_NL_Keten_Stap2_CO2<0.5,"0",TEXT(Uit_NL_Keten_Stap2_CO2,"#.##")))))) -> 0,0 | P53: =IF(VLOOKUP(Hout_Keten_NL,Lijst_NL_Keten,Keten_Stap1+1*Keten_Delta)="","", IF(Uit_NL_Keten_Totaal_CO2<1,IF(Uit_EU_Keten_Stap2_CO2<0.005,"0,00",TEXT(Uit_EU_Keten_Stap2_CO2,"#.##0,00")), IF(Uit_NL_Keten_Totaal_CO2<10,IF(Uit_EU_Keten_Stap2_CO2<0.05,"0,0",TEXT(Uit_EU_Keten_Stap2_CO2,"#.##0,0")), IF(Uit_NL_Keten_Totaal_CO2<50,IF(Uit_EU_Keten_Stap2_CO2<0.5,"0",TEXT(Uit_EU_Keten_Stap2_CO2,"#.##")), IF(Uit_EU_Keten_Stap2_CO2<0.5,"0",TEXT(Uit_EU_Keten_Stap2_CO2,"#.##")))))) -> 0,0 | R53: =IF(VLOOKUP(Hout_Keten_NL,Lijst_NL_Keten,Keten_Stap1+1*Keten_Delta)="","",Uit_NL_EU_Keten_CO2_Dim) -> gCO2eq/MJ | U53: =IF(VLOOKUP(Hout_Keten_NL,Lijst_NL_Keten,Keten_Stap1_CPT+1*Keten_Delta)="","",VLOOKUP(Hout_Keten_NL,Lijst_NL_Keten,Keten_Stap1_CPT+1*Keten_Delta)) -> P | W53: Brandstof | AE53: =IF(AND(Proces_Verbrandingsmotor_Brandstof="",Proces_Verbrandingsmotor_Ja_Nee="Ja"),"▼","") ->  | AF53: EU-Diesel | AM53: Euronorm/Categorie | AV53: Euro 6
F54: =IF(VLOOKUP(Hout_Keten_NL,Lijst_NL_Keten,33)="","",3) -> 3 | G54: =IF(VLOOKUP(Hout_Keten_NL,Lijst_NL_Keten,33)="","",VLOOKUP(Hout_Keten_NL,Lijst_NL_Keten,33)) -> Chippen | N54: =IF(VLOOKUP(Hout_Keten_NL,Lijst_NL_Keten,Keten_Stap1+2*Keten_Delta)="","", IF(Uit_NL_Keten_Totaal_CO2<1,IF(Uit_NL_Keten_Stap3_CO2<0.005,"0,00",TEXT(Uit_NL_Keten_Stap3_CO2,"#.##0,00")), IF(Uit_NL_Keten_Totaal_CO2<10,IF(Uit_NL_Keten_Stap3_CO2<0.05,"0,0",TEXT(Uit_NL_Keten_Stap3_CO2,"#.##0,0")), IF(Uit_NL_Keten_Totaal_CO2<50,IF(Uit_NL_Keten_Stap3_CO2<0.5,"0",TEXT(Uit_NL_Keten_Stap3_CO2,"#.##")), IF(Uit_NL_Keten_Stap3_CO2<0.5,"0",TEXT(Uit_NL_Keten_Stap3_CO2,"#.##")))))) -> 0,7 | P54: =IF(VLOOKUP(Hout_Keten_NL,Lijst_NL_Keten,Keten_Stap1+2*Keten_Delta)="","", IF(Uit_NL_Keten_Totaal_CO2<1,IF(Uit_EU_Keten_Stap3_CO2<0.005,"0,00",TEXT(Uit_EU_Keten_Stap3_CO2,"#.##0,00")), IF(Uit_NL_Keten_Totaal_CO2<10,IF(Uit_EU_Keten_Stap3_CO2<0.05,"0,0",TEXT(Uit_EU_Keten_Stap3_CO2,"#.##0,0")), IF(Uit_NL_Keten_Totaal_CO2<50,IF(Uit_EU_Keten_Stap3_CO2<0.5,"0",TEXT(Uit_EU_Keten_Stap3_CO2,"#.##")), IF(Uit_EU_Keten_Stap3_CO2<0.5,"0",TEXT(Uit_EU_Keten_Stap3_CO2,"#.##")))))) -> 0,4 | R54: =IF(VLOOKUP(Hout_Keten_NL,Lijst_NL_Keten,Keten_Stap1+2*Keten_Delta)="","",Uit_NL_EU_Keten_CO2_Dim) -> gCO2eq/MJ | U54: =IF(VLOOKUP(Hout_Keten_NL,Lijst_NL_Keten,Keten_Stap1_CPT+2*Keten_Delta)="","",VLOOKUP(Hout_Keten_NL,Lijst_NL_Keten,Keten_Stap1_CPT+2*Keten_Delta)) -> P | W54: Euronorm/Categorie | AF54: Euro 5 | AM54: Brandstofverbruik | AU54: =IF(OR(AND(Transport_Verbrandingsmotor_Verbruik="",Transport_Verbrandingsmotor_ID=1), AND(Transport_Verbrandingsmotor_Verbruik_Dim="",Transport_Verbrandingsmotor_ID=1)),"▼","") ->  | AV54: 30 | AY54: liter/100km
F55: =IF(VLOOKUP(Hout_Keten_NL,Lijst_NL_Keten,44)="","",4) -> 4 | G55: =IF(VLOOKUP(Hout_Keten_NL,Lijst_NL_Keten,44)="","",VLOOKUP(Hout_Keten_NL,Lijst_NL_Keten,44)) -> Transport chips naar afnemer | N55: =IF(VLOOKUP(Hout_Keten_NL,Lijst_NL_Keten,Keten_Stap1+3*Keten_Delta)="","", IF(Uit_NL_Keten_Totaal_CO2<1,IF(Uit_NL_Keten_Stap4_CO2<0.005,"0,00",TEXT(Uit_NL_Keten_Stap4_CO2,"#.##0,00")), IF(Uit_NL_Keten_Totaal_CO2<10,IF(Uit_NL_Keten_Stap4_CO2<0.05,"0,0",TEXT(Uit_NL_Keten_Stap4_CO2,"#.##0,0")), IF(Uit_NL_Keten_Totaal_CO2<50,IF(Uit_NL_Keten_Stap4_CO2<0.5,"0",TEXT(Uit_NL_Keten_Stap4_CO2,"#.##")), IF(Uit_NL_Keten_Stap4_CO2<0.5,"0",TEXT(Uit_NL_Keten_Stap4_CO2,"#.##")))))) -> 0,9 | P55: =IF(VLOOKUP(Hout_Keten_NL,Lijst_NL_Keten,Keten_Stap1+3*Keten_Delta)="","", IF(Uit_NL_Keten_Totaal_CO2<1,IF(Uit_EU_Keten_Stap4_CO2<0.005,"0,00",TEXT(Uit_EU_Keten_Stap4_CO2,"#.##0,00")), IF(Uit_NL_Keten_Totaal_CO2<10,IF(Uit_EU_Keten_Stap4_CO2<0.05,"0,0",TEXT(Uit_EU_Keten_Stap4_CO2,"#.##0,0")), IF(Uit_NL_Keten_Totaal_CO2<50,IF(Uit_EU_Keten_Stap4_CO2<0.5,"0",TEXT(Uit_EU_Keten_Stap4_CO2,"#.##")), IF(Uit_EU_Keten_Stap4_CO2<0.5,"0",TEXT(Uit_EU_Keten_Stap4_CO2,"#.##")))))) -> 3,0 | R55: =IF(VLOOKUP(Hout_Keten_NL,Lijst_NL_Keten,Keten_Stap1+3*Keten_Delta)="","",Uit_NL_EU_Keten_CO2_Dim) -> gCO2eq/MJ | U55: =IF(VLOOKUP(Hout_Keten_NL,Lijst_NL_Keten,Keten_Stap1_CPT+3*Keten_Delta)="","",VLOOKUP(Hout_Keten_NL,Lijst_NL_Keten,Keten_Stap1_CPT+3*Keten_Delta)) -> T | W55: Brandstofverbruik | AE55: =IF(OR(AND(Proces_Verbrandingsmotor_Verbruik="",Proces_Verbrandingsmotor_Ja_Nee="Ja"), AND(Proces_Verbrandingsmotor_Verbruik_Dim="",Proces_Verbrandingsmotor_Ja_Nee="Ja")),"▼","") ->  | AF55: 50 | AI55: liter/uur
F56: =IF(VLOOKUP(Hout_Keten_NL,Lijst_NL_Keten,55)="","",5) ->  | G56: =IF(VLOOKUP(Hout_Keten_NL,Lijst_NL_Keten,55)="","",VLOOKUP(Hout_Keten_NL,Lijst_NL_Keten,55)) ->  | N56: =IF(VLOOKUP(Hout_Keten_NL,Lijst_NL_Keten,Keten_Stap1+4*Keten_Delta)="","", IF(Uit_NL_Keten_Totaal_CO2<1,IF(Uit_NL_Keten_Stap5_CO2<0.005,"0,00",TEXT(Uit_NL_Keten_Stap5_CO2,"#.##0,00")), IF(Uit_NL_Keten_Totaal_CO2<10,IF(Uit_NL_Keten_Stap5_CO2<0.05,"0,0",TEXT(Uit_NL_Keten_Stap5_CO2,"#.##0,0")), IF(Uit_NL_Keten_Totaal_CO2<50,IF(Uit_NL_Keten_Stap5_CO2<0.5,"0",TEXT(Uit_NL_Keten_Stap5_CO2,"#.##")), IF(Uit_NL_Keten_Stap5_CO2<0.5,"0",TEXT(Uit_NL_Keten_Stap5_CO2,"#.##")))))) ->  | P56: =IF(VLOOKUP(Hout_Keten_NL,Lijst_NL_Keten,Keten_Stap1+4*Keten_Delta)="","", IF(Uit_NL_Keten_Totaal_CO2<1,IF(Uit_EU_Keten_Stap5_CO2<0.005,"0,00",TEXT(Uit_EU_Keten_Stap5_CO2,"#.##0,00")), IF(Uit_NL_Keten_Totaal_CO2<10,IF(Uit_EU_Keten_Stap5_CO2<0.05,"0,0",TEXT(Uit_EU_Keten_Stap5_CO2,"#.##0,0")), IF(Uit_NL_Keten_Totaal_CO2<50,IF(Uit_EU_Keten_Stap5_CO2<0.5,"0",TEXT(Uit_EU_Keten_Stap5_CO2,"#.##")), IF(Uit_EU_Keten_Stap5_CO2<0.5,"0",TEXT(Uit_EU_Keten_Stap5_CO2,"#.##")))))) ->  | R56: =IF(VLOOKUP(Hout_Keten_NL,Lijst_NL_Keten,Keten_Stap1+4*Keten_Delta)="","",Uit_NL_EU_Keten_CO2_Dim) ->  | U56: =IF(VLOOKUP(Hout_Keten_NL,Lijst_NL_Keten,Keten_Stap1_CPT+4*Keten_Delta)="","",VLOOKUP(Hout_Keten_NL,Lijst_NL_Keten,Keten_Stap1_CPT+4*Keten_Delta)) -> 
F57: =IF(VLOOKUP(Hout_Keten_NL,Lijst_NL_Keten,77)="","",6) ->  | G57: =IF(VLOOKUP(Hout_Keten_NL,Lijst_NL_Keten,63)="","",VLOOKUP(Hout_Keten_NL,Lijst_NL_Keten,63)) ->  | N57: =IF(VLOOKUP(Hout_Keten_NL,Lijst_NL_Keten,Keten_Stap1+5*Keten_Delta)="","", IF(Uit_NL_Keten_Totaal_CO2<1,IF(Uit_NL_Keten_Stap6_CO2<0.005,"0,00",TEXT(Uit_NL_Keten_Stap6_CO2,"#.##0,00")), IF(Uit_NL_Keten_Totaal_CO2<10,IF(Uit_NL_Keten_Stap6_CO2<0.05,"0,0",TEXT(Uit_NL_Keten_Stap6_CO2,"#.##0,0")), IF(Uit_NL_Keten_Totaal_CO2<50,IF(Uit_NL_Keten_Stap6_CO2<0.5,"0",TEXT(Uit_NL_Keten_Stap6_CO2,"#.##")), IF(Uit_NL_Keten_Stap6_CO2<0.5,"0",TEXT(Uit_NL_Keten_Stap6_CO2,"#.##")))))) ->  | P57: =IF(VLOOKUP(Hout_Keten_NL,Lijst_NL_Keten,Keten_Stap1+5*Keten_Delta)="","", IF(Uit_NL_Keten_Totaal_CO2<1,IF(Uit_EU_Keten_Stap6_CO2<0.005,"0,00",TEXT(Uit_EU_Keten_Stap6_CO2,"#.##0,00")), IF(Uit_NL_Keten_Totaal_CO2<10,IF(Uit_EU_Keten_Stap6_CO2<0.05,"0,0",TEXT(Uit_EU_Keten_Stap6_CO2,"#.##0,0")), IF(Uit_NL_Keten_Totaal_CO2<50,IF(Uit_EU_Keten_Stap6_CO2<0.5,"0",TEXT(Uit_EU_Keten_Stap6_CO2,"#.##")), IF(Uit_EU_Keten_Stap6_CO2<0.5,"0",TEXT(Uit_EU_Keten_Stap6_CO2,"#.##")))))) ->  | R57: =IF(VLOOKUP(Hout_Keten_NL,Lijst_NL_Keten,Keten_Stap1+5*Keten_Delta)="","",Uit_NL_EU_Keten_CO2_Dim) ->  | U57: =IF(VLOOKUP(Hout_Keten_NL,Lijst_NL_Keten,Keten_Stap1_CPT+5*Keten_Delta)="","",VLOOKUP(Hout_Keten_NL,Lijst_NL_Keten,Keten_Stap1_CPT+5*Keten_Delta)) ->  | W57: Gebruik Elektriciteit | AM57: Gebruik Elektriciteit
W58: Werktuig | AD58: Hulpaandrijving | AM58: n.v.t.
X59: Verbruik | AE59: =IF(OR(AND(Proces_Elektromotor_VermogenVerbruik="",Proces_Elektromotor_Ja_Nee="Ja"), AND(Proces_Elektromotor_VermogenVerbruik_Dim="",Proces_Elektromotor_Ja_Nee="Ja")),"▼","") ->  | AF59: 2500 | AI59: kWh | AN59: n.v.t. | AU59: =IF(OR(AND(Transport_Elektromotor_VermogenVerbruik="",Transport_Elektromotor_Ja_Nee="Ja"), AND(Transport_Elektromotor_VermogenVerbruik_Dim="",Transport_Elektromotor_Ja_Nee="Ja")),"▼","") -> 
W60: Stroombron | AC60: =IF(AND(Proces_Elektromotor_Stroombron="",Proces_Elektromotor_Ja_Nee="Ja"),"▼","") ->  | AD60: EU-Elektriciteit NL | AM60: n.v.t. | AS60: =IF(AND(Transport_Elektromotor_Stroombron="",Transport_Elektromotor_Ja_Nee="Ja"),"▼","") -> 
W61: n.v.T. | AE61: =IF(AND(Proces_Elektromotor_Loadfactor="",Proces_Elektromotor_Ja_Nee="Ja",Proces_Elektromotor_Vermogen_Verbruik="Vermogen"),"▼","") ->  | AM61: Loadfactor | AU61: =IF(AND(Transport_Elektromotor_Loadfactor="",Transport_Elektromotor_Ja_Nee="Ja",Transport_Elektromotor_Vermogen_Verbruik="Vermogen"),"▼","") ->  | AY61: %
W62: n.v.t. | AE62: =IF(OR(AND(Proces_Elektromotor_Capaciteit="",Proces_Elektromotor_Ja_Nee="Ja",Proces_Elektromotor_Vermogen_Verbruik="Vermogen"), AND(Proces_Elektromotor_Capaciteit_Dim="",Proces_Elektromotor_Ja_Nee="Ja",Proces_Elektromotor_Vermogen_Verbruik="Vermogen")),"▼","") ->  | AF62: 50 | AI62: m3/uur
F63: EU
W65: Basis CO2 productie | AF65: 10000 | AI65: kgCO2eq | AM65: Basis CO2 productie | AV65: 0 | AY65: gCO2eq/tkm
G66: Detailinformatie Stap: | L66: 1
AD68: =IF(Uit_Proces_Invoer_Uitvoer_Dim="Uitvoer","","Let op CO2/MJ is op invoer") ->  | AT68: =IF(Uit_Transport_Invoer_Uitvoer_Dim="Uitvoer","","Let op CO2/MJ is op invoer") -> 
N69: NL | P69: EU | X69: CO2 gebaseerd op: | AD69: Uitvoer | AG69: =IF(Uit_Proces_Invoer_Uitvoer_Dim="Invoer","van Hout","naar Transport") -> naar Transport | AN69: CO2 gebaseerd op: | AT69: Uitvoer | AW69: =IF(Uit_Transport_Invoer_Uitvoer_Dim="Invoer","van Proces","naar eindgebruiker") -> naar eindgebruiker
G70: Teelt | N70: =IF(Uit_NL_Keten_Totaal_CO2<1,IF(Uit_NL_Keten_Cultivatie_CO2<0.005,"0,00",TEXT(Uit_NL_Keten_Cultivatie_CO2,"#.##0,00")), IF(Uit_NL_Keten_Totaal_CO2<10,IF(Uit_NL_Keten_Cultivatie_CO2<0.05,"0,0",TEXT(Uit_NL_Keten_Cultivatie_CO2,"#.##0,0")), IF(Uit_NL_Keten_Totaal_CO2<50,IF(Uit_NL_Keten_Cultivatie_CO2<0.5,"0",TEXT(Uit_NL_Keten_Cultivatie_CO2,"#.##")), IF(Uit_NL_Keten_Cultivatie_CO2<0.5,"0",TEXT(Uit_NL_Keten_Cultivatie_CO2,"#.##"))))) -> 0,0 | P70: =IF(VLOOKUP(Hout_Keten_EU,Lijst_EU_Keten,Keten_Titel_NL_EU)="NL","", IF(Uit_EU_Keten_Totaal_CO2<1,IF(Uit_EU_Keten_Cultivatie_CO2<0.005,"0,00",TEXT(Uit_EU_Keten_Cultivatie_CO2,"#.##0,00")), IF(Uit_EU_Keten_Totaal_CO2<10,IF(Uit_EU_Keten_Cultivatie_CO2<0.05,"0,0",TEXT(Uit_EU_Keten_Cultivatie_CO2,"#.##0,0")), IF(Uit_EU_Keten_Totaal_CO2<50,IF(Uit_EU_Keten_Cultivatie_CO2<0.5,"0",TEXT(Uit_EU_Keten_Cultivatie_CO2,"#.##")), IF(Uit_EU_Keten_Cultivatie_CO2<0.5,"0",TEXT(Uit_EU_Keten_Cultivatie_CO2,"#.##")))))) -> 0,0 | R70: gCO2eq/MJ | X70: CO2 Verbrandingsmotor | AD70: =IF(Uit_Proces_CO2T<1,IF(Uit_Proces_Brandstof_CO2<0.005,"0,00",TEXT(Uit_Proces_Brandstof_CO2,"#.##0,00")), IF(Uit_Proces_CO2T<10,IF(Uit_Proces_Brandstof_CO2<0.05,"0,0",TEXT(Uit_Proces_Brandstof_CO2,"#.##0,0")), IF(Uit_Proces_CO2T<50,IF(Uit_Proces_Brandstof_CO2<0.5,"0",TEXT(Uit_Proces_Brandstof_CO2,"#.##")), IF(Uit_Proces_Brandstof_CO2<0.5,"0",TEXT(Uit_Proces_Brandstof_CO2,"#.##"))))) -> 1,1 | AG70: gCO2eq/MJ | AN70: CO2 Verbranding | AT70: =IF(Uit_Transport_CO2T<1,IF(Uit_Transport_Brandstof_CO2<0.005,"0,00",TEXT(Uit_Transport_Brandstof_CO2,"#.##0,00")), IF(Uit_Transport_CO2T<10,IF(Uit_Transport_Brandstof_CO2<0.05,"0,0",TEXT(Uit_Transport_Brandstof_CO2,"#.##0,0")), IF(Uit_Transport_CO2T<50,IF(Uit_Transport_Brandstof_CO2<0.5,"0",TEXT(Uit_Transport_Brandstof_CO2,"#.##")), IF(Uit_Transport_Brandstof_CO2<0.5,"0",TEXT(Uit_Transport_Brandstof_CO2,"#.##"))))) -> 0,30 | AW70: gCO2eq/MJ
G71: Proces | N71: =IF(Uit_NL_Keten_Totaal_CO2<1,IF(Uit_NL_Keten_Proces_CO2<0.005,"0,00",TEXT(Uit_NL_Keten_Proces_CO2,"#.##0,00")), IF(Uit_NL_Keten_Totaal_CO2<10,IF(Uit_NL_Keten_Proces_CO2<0.05,"0,0",TEXT(Uit_NL_Keten_Proces_CO2,"#.##0,0")), IF(Uit_NL_Keten_Totaal_CO2<50,IF(Uit_NL_Keten_Proces_CO2<0.5,"0",TEXT(Uit_NL_Keten_Proces_CO2,"#.##")), IF(Uit_NL_Keten_Proces_CO2<0.5,"0",TEXT(Uit_NL_Keten_Proces_CO2,"#.##"))))) -> 1,5 | P71: =IF(VLOOKUP(Hout_Keten_EU,Lijst_EU_Keten,Keten_Titel_NL_EU)="NL","", IF(Uit_EU_Keten_Totaal_CO2<1,IF(Uit_EU_Keten_Proces_CO2<0.005,"0,00",TEXT(Uit_EU_Keten_Proces_CO2,"#.##0,00")), IF(Uit_EU_Keten_Totaal_CO2<10,IF(Uit_EU_Keten_Proces_CO2<0.05,"0,0",TEXT(Uit_EU_Keten_Proces_CO2,"#.##0,0")), IF(Uit_EU_Keten_Totaal_CO2<50,IF(Uit_EU_Keten_Proces_CO2<0.5,"0",TEXT(Uit_EU_Keten_Proces_CO2,"#.##")), IF(Uit_EU_Keten_Proces_CO2<0.5,"0",TEXT(Uit_EU_Keten_Proces_CO2,"#.##")))))) -> 1,8 | R71: =R70 -> gCO2eq/MJ | X71: CO2 Elektromotor | AD71: =IF(Uit_Proces_CO2T<1,IF(Uit_Proces_Stroom_CO2<0.005,"0,00",TEXT(Uit_Proces_Stroom_CO2,"#.##0,00")), IF(Uit_Proces_CO2T<10,IF(Uit_Proces_Stroom_CO2<0.05,"0,0",TEXT(Uit_Proces_Stroom_CO2,"#.##0,0")), IF(Uit_Proces_CO2T<50,IF(Uit_Proces_Stroom_CO2<0.5,"0",TEXT(Uit_Proces_Stroom_CO2,"#.##")), IF(Uit_Proces_Stroom_CO2<0.5,"0",TEXT(Uit_Proces_Stroom_CO2,"#.##"))))) -> 0,0 | AG71: =Uit_Proces_Verbrandingsmotor_CO2_Dim -> gCO2eq/MJ | AN71: CO2 Elektromotor | AT71: =IF(Uit_Transport_CO2T<1,IF(Uit_Transport_Stroom_CO2<0.005,"0,00",TEXT(Uit_Transport_Stroom_CO2,"#.##0,00")), IF(Uit_Transport_CO2T<10,IF(Uit_Transport_Stroom_CO2<0.05,"0,0",TEXT(Uit_Transport_Stroom_CO2,"#.##0,0")), IF(Uit_Transport_CO2T<50,IF(Uit_Transport_Stroom_CO2<0.5,"0",TEXT(Uit_Transport_Stroom_CO2,"#.##")), IF(Uit_Transport_Stroom_CO2<0.5,"0",TEXT(Uit_Transport_Stroom_CO2,"#.##"))))) -> 0,00 | AW71: =Uit_Transport_Verbrandingsmotor_CO2_Dim -> gCO2eq/MJ
G72: Transport | N72: =IF(Uit_NL_Keten_Totaal_CO2<1,IF(Uit_NL_Keten_Transport_CO2<0.005,"0,00",TEXT(Uit_NL_Keten_Transport_CO2,"#.##0,00")), IF(Uit_NL_Keten_Totaal_CO2<10,IF(Uit_NL_Keten_Transport_CO2<0.05,"0,0",TEXT(Uit_NL_Keten_Transport_CO2,"#.##0,0")), IF(Uit_NL_Keten_Totaal_CO2<50,IF(Uit_NL_Keten_Transport_CO2<0.5,"0",TEXT(Uit_NL_Keten_Transport_CO2,"#.##")), IF(Uit_NL_Keten_Transport_CO2<0.5,"0",TEXT(Uit_NL_Keten_Transport_CO2,"#.##"))))) -> 0,9 | P72: =IF(VLOOKUP(Hout_Keten_EU,Lijst_EU_Keten,Keten_Titel_NL_EU)="NL","", IF(Uit_EU_Keten_Totaal_CO2<1,IF(Uit_EU_Keten_Transport_CO2<0.005,"0,00",TEXT(Uit_EU_Keten_Transport_CO2,"#.##0,00")), IF(Uit_EU_Keten_Totaal_CO2<10,IF(Uit_EU_Keten_Transport_CO2<0.05,"0,0",TEXT(Uit_EU_Keten_Transport_CO2,"#.##0,0")), IF(Uit_EU_Keten_Totaal_CO2<50,IF(Uit_EU_Keten_Transport_CO2<0.5,"0",TEXT(Uit_EU_Keten_Transport_CO2,"#.##")), IF(Uit_EU_Keten_Transport_CO2<0.5,"0",TEXT(Uit_EU_Keten_Transport_CO2,"#.##")))))) -> 3,0 | R72: =R70 -> gCO2eq/MJ | X72: CO2 Basis | AD72: =IF(Uit_Proces_CO2T<1,IF(Uit_Proces_Basis_CO2<0.005,"0,00",TEXT(Uit_Proces_Basis_CO2,"#.##0,00")), IF(Uit_Proces_CO2T<10,IF(Uit_Proces_Basis_CO2<0.05,"0,0",TEXT(Uit_Proces_Basis_CO2,"#.##0,0")), IF(Uit_Proces_CO2T<50,IF(Uit_Proces_Basis_CO2<0.5,"0",TEXT(Uit_Proces_Basis_CO2,"#.##")), IF(Uit_Proces_Basis_CO2<0.5,"0",TEXT(Uit_Proces_Basis_CO2,"#.##"))))) -> 0,3 | AG72: =Uit_Proces_Verbrandingsmotor_CO2_Dim -> gCO2eq/MJ | AN72: CO2 Basis | AT72: =IF(Uit_Transport_CO2T<1,IF(Uit_Transport_Basis_CO2<0.005,"0,00",TEXT(Uit_Transport_Basis_CO2,"#.##0,00")), IF(Uit_Transport_CO2T<10,IF(Uit_Transport_Basis_CO2<0.05,"0,0",TEXT(Uit_Transport_Basis_CO2,"#.##0,0")), IF(Uit_Transport_CO2T<50,IF(Uit_Transport_Basis_CO2<0.5,"0",TEXT(Uit_Transport_Basis_CO2,"#.##")), IF(Uit_Transport_Basis_CO2<0.5,"0",TEXT(Uit_Transport_Basis_CO2,"#.##"))))) -> 0,00 | AW72: =Uit_Transport_Verbrandingsmotor_CO2_Dim -> gCO2eq/MJ
G73: Totaal | N73: =IF(Uit_NL_Keten_Totaal_CO2<1,IF(Uit_NL_Keten_Totaal_CO2<0.005,"0,00",TEXT(Uit_NL_Keten_Totaal_CO2,"#.##0,00")), IF(Uit_NL_Keten_Totaal_CO2<10,IF(Uit_NL_Keten_Totaal_CO2<0.05,"0,0",TEXT(Uit_NL_Keten_Totaal_CO2,"#.##0,0")), IF(Uit_NL_Keten_Totaal_CO2<50,IF(Uit_NL_Keten_Totaal_CO2<0.5,"0",TEXT(Uit_NL_Keten_Totaal_CO2,"#.##")), IF(Uit_NL_Keten_Totaal_CO2<0.5,"0",TEXT(Uit_NL_Keten_Totaal_CO2,"#.##"))))) -> 2,4 | P73: =IF(VLOOKUP(Hout_Keten_EU,Lijst_EU_Keten,Keten_Titel_NL_EU)="NL","", IF(Uit_EU_Keten_Totaal_CO2<1,IF(Uit_EU_Keten_Totaal_CO2<0.005,"0,00",TEXT(Uit_EU_Keten_Totaal_CO2,"#.##0,00")), IF(Uit_EU_Keten_Totaal_CO2<10,IF(Uit_EU_Keten_Totaal_CO2<0.05,"0,0",TEXT(Uit_EU_Keten_Totaal_CO2,"#.##0,0")), IF(Uit_EU_Keten_Totaal_CO2<50,IF(Uit_EU_Keten_Totaal_CO2<0.5,"0",TEXT(Uit_EU_Keten_Totaal_CO2,"#.##")), IF(Uit_EU_Keten_Totaal_CO2<0.5,"0",TEXT(Uit_EU_Keten_Totaal_CO2,"#.##")))))) -> 4,8 | R73: =R70 -> gCO2eq/MJ | X73: CO2 Totaal | AD73: =IF(Uit_Proces_CO2T<1,IF(Uit_Proces_CO2T<0.005,"0,00",TEXT(Uit_Proces_CO2T,"#.##0,00")), IF(Uit_Proces_CO2T<10,IF(Uit_Proces_CO2T<0.05,"0,0",TEXT(Uit_Proces_CO2T,"#.##0,0")), IF(Uit_Proces_CO2T<50,IF(Uit_Proces_CO2T<0.5,"0",TEXT(Uit_Proces_CO2T,"#.##")), IF(Uit_Proces_CO2T<0.5,"0",TEXT(Uit_Proces_CO2T,"#.##"))))) -> 1,4 | AG73: =Uit_Proces_Verbrandingsmotor_CO2_Dim -> gCO2eq/MJ | AN73: CO2 Totaal | AT73: =IF(Uit_Transport_CO2T<1,IF(Uit_Transport_CO2T<0.005,"0,00",TEXT(Uit_Transport_CO2T,"#.##0,00")), IF(Uit_Transport_CO2T<10,IF(Uit_Transport_CO2T<0.05,"0,0",TEXT(Uit_Transport_CO2T,"#.##0,0")), IF(Uit_Transport_CO2T<50,IF(Uit_Transport_CO2T<0.5,"0",TEXT(Uit_Transport_CO2T,"#.##")), IF(Uit_Transport_CO2T<0.5,"0",TEXT(Uit_Transport_CO2T,"#.##"))))) -> 0,30 | AW73: =Uit_Transport_Verbrandingsmotor_CO2_Dim -> gCO2eq/MJ
F75: © Dit rekenmodel is eigendom van KandT/Zilverberg. Er kunnen aan het gebruik van het rekenmodel geen rechten worden ontleend
C77: Het E-Land CO2 programma bestaat uit een aantal secties die hieronder zijn aangegegeven
D79: Biomassa | V79: Proces | AN79: Transport
D81: 1-1 In deze sectie worden de resultaten voor de gekozen keten samengevat. | V81: 2-1 In deze sectie worden de resultaten voor de gekozen Proces samengevat. | AN81: 3-1 In deze sectie worden de resultaten voor de gekozen Transsport samengevat.
D85: 1-2 In deze sectie kunnen de invoergegevens voor de biomassa worden aangegeven. In deze sectie kan ook worden aangegeven welke de bronnen zijn voor het bepalen van de CO2 emissiefactoren | V85: 2-2 In deze sectie kunnen de invoergegevens voor een Proces worden aangegeven. Het Proces kan worden uitgevoerd met behulp van apparaten die op een brandstof op op elektriciteit werken. | AN85: 3-2 In deze sectie kunnen de invoergegevens voor een Transport worden aangegeven. Het Transport kan worden uitgevoerd met behulp van voertuigen op basis van een verbrandingsmotor en/of voertuigen met een elektrische aandrijving.
D91: 1-3 In deze sectie kunnen de gegevens voor een bepaalde keten worden ingevoerd. Getoond worden de equivalente CO2 emissies voor de Teelt, de Processen en de Transporten in de keten. Tevens worden voor de gekozen keten de equivalente CO2 emissies voor de afzonderlijke stappen in de keten getoond. De te kiezen ketens zijn zowel in Europa geaccepteerde ketens als specifieke Nederlandse ketens.
D102: 1-4 In deze sectie worden de resultaten voor de gekozen keten samengevat. | V102: 2-3 In deze sectie worden de resultaten voor de gekozen Proces samengevat. | AN102: 3-3 In deze sectie worden de resultaten voor de gekozen Transsport samengevat.
C107: Voor het uitvoeren van de berekeningen zijn basisdata nodig. Het betreft data voor de verschillende biomassaketens, fysische eigenschappen van de verschillende te gebruiken brandstoffen (benzine, diesel, aardgas, etc), CO2 emissiefactoren voor de verschillende brandstoffen en elektriciteit (Elekriciteit-NL, eleektriciteit-EU, etc.), De Global Warming Potentials, houteigenschappen en de vorm van het hout (chips, shreds, etc.). De basisdata zijn afkomstig van de dataverzameling zoals gehanteerd door de Europese Unie en zoals weergegeven in het JRC document. Een veel gebruikte data set in het JRC document is hiernaast weergegeven. | AD107: Dichtheid hout (fijnspar) | AQ107: 425 | AT107: kgds/m3
AD108: Energiewaarde hout | AQ108: 19 | AT108: MJ/kgds
AD109: Energiewaarde diesel | AQ109: 36 | AT109: MJ/liter
AD110: Dieselverbruik 40 ton truck | AQ110: 30.53 | AT110: liter/100km
AD111: Belading | AQ111: 50 | AT111: %
AD112: CO2 diesel | AQ112: 95.1 | AT112: gCO2/MJ
AD114: Vrachtwagen | AQ114: 40 | AT114: ton
AD115: Pay load vrachtwagen | AQ115: 27 | AT115: ton
L118: NL | N118: EU | T118: Hier kan een keuze gemaakt worden voor EU waarden of NL waarden
J119: CO2eq | K119: =IF(Samenvatting_NL_Keten_CO2<10,TEXT(Samenvatting_NL_Keten_CO2,"#.##0,0"),TEXT(Samenvatting_NL_Keten_CO2,"#.##")) -> 82.037 | M119: =IF(VLOOKUP(Hout_Keten_EU,Lijst_EU_Keten,Keten_Titel_NL_EU)="NL","", IF(Samenvatting_EU_Keten_CO2<10,TEXT(Samenvatting_EU_Keten_CO2,"#.##0,0"),TEXT(Samenvatting_EU_Keten_CO2,"#.##"))) -> 165.106 | O119: kgCO2eq | T119: Totale CO2eq emissie van het Proces. | AE119: Eenhedenkeuze: | AJ119: gCO2eq - kgCO2eq - tonCO2eq - MtonCO2eq
J120: Doorzet | K120: =IF(Samenvatting_Hout_Doorzet<10,TEXT(Samenvatting_Hout_Doorzet,"#.##0,0"),TEXT(Samenvatting_Hout_Doorzet,"#.##")) -> 1.803 | M120: =IF(VLOOKUP(Hout_Keten_EU,Lijst_EU_Keten,Keten_Titel_NL_EU)="NL","", IF(Samenvatting_Hout_Doorzet<10,TEXT(Samenvatting_Hout_Doorzet,"#.##0,0"),TEXT(Samenvatting_Hout_Doorzet,"#.##"))) -> 1.803 | O120: tonds | T120: Doorzet van biomassa door het Proces | AE120: Eenhedenkeuze: | AJ120: m3 - kg - kgds - ton - tonds - MJ - GJ - kWh - MWh
J121: CO2eq/Doorzet | K121: =IF(K119/K120<10,TEXT(K119/K120,"#.##0,0"),TEXT(K119/K120,"#.##")) -> 46 | M121: =IF(VLOOKUP(Hout_Keten_EU,Lijst_EU_Keten,Keten_Titel_NL_EU)="NL","", IF(M119/M120<10,TEXT(M119/M120,"#.##0,0"),TEXT(M119/M120,"#.##"))) -> 92 | O121: =Samenvatting_Hout_CO2T_Dim&"/"&Samenvatting_Hout_Doorzet_Dim -> kgCO2eq/tonds | T121: Verhouding van CO2eq en Doorzet | AE121: Eenhedenkeuze: | AJ121: Geen, waarde wordt berekend uit CO2eq en Doorzet
C122: ©KandT/Zilverberg
D124: Opmerkingen:
T125: Opmerkingen vrij in te vullen
D129: Omschrijving | H129: Levering Biomassacentrale Texel | T129: Omschrijving van de levering vrij in te vullen
D130: Houtsoort | K130: Loofhout mix NL | T130: Houtsoort | AE130: Keuze uit: | AJ130: Datalijst met Houtsoort
D131: Houtvorm oogst | K131: Top- en takhout | T131: Houtvorm | AE131: Keuze uit: | AJ131: Datalijst met Houtvorm
D132: Vochtigheid / vochtgehalte oogst | M132: 50 | P132: =Uit_Hout_Vochtgehalte -> 100 | Q132: % | T132: Vochtigheid van de biomassa vrij in te vullen
D133: Hoeveelheid | G133: naar eindgebruiker | M133: 10000 | P133: m3 | T133: Hoeveelheid | AE133: Eenhedenkeuze: | AJ133: uit oogst - naar eindgebruiker
T134: Hoeveelheid | AE134: Eenhedenkeuze: | AJ134: m3 - kg - kgds - ton - tonds - MJ - GJ - kWh - MWh
D135: CO2 Emissiefactoren volgens | K135: BioGrace - II | T135: Keuzeknop voor data uit de BioGrace II vezameling data
K136: CO2 emissiefactoren - 2018 | T136: Keuzeknop voor data uit de CO2 emissiefactoren vezameling data
K137: Beide | T137: Keuzeknop voor beide dataverzamelingen
D140: Keten | G140: 1a-Chips uit top- en tak hout uit bos of landschap | T140: Standaardketen | AE140: Keuze uit: | AJ140: Datalijst standaard biomassaketens
D141: Pathway | G141: =LOOKUP(Hout_Keten_NL,Lijst_NL_Keten_Nr_Titel,Lijst_EU_Keten_Nr_Titel) -> 1a-Woodchips from forest residues
D142: Ketenstappen | K142: NL | M142: EU
C143: =IF(VLOOKUP(Hout_Keten_NL,Lijst_NL_Keten,11)="","",1) -> 1 | D143: =IF(VLOOKUP(Hout_Keten_NL,Lijst_NL_Keten,11)="","",VLOOKUP(Hout_Keten_NL,Lijst_NL_Keten,11)) -> Inzamelen top- en takhout | K143: =IF(VLOOKUP(Hout_Keten_NL,Lijst_NL_Keten,Keten_Stap1+0*Keten_Delta)="","", IF(Uit_NL_Keten_Totaal_CO2<1,IF(Uit_NL_Keten_Stap1_CO2<0.005,"0,00",TEXT(Uit_NL_Keten_Stap1_CO2,"#.##0,00")), IF(Uit_NL_Keten_Totaal_CO2<10,IF(Uit_NL_Keten_Stap1_CO2<0.05,"0,0",TEXT(Uit_NL_Keten_Stap1_CO2,"#.##0,0")), IF(Uit_NL_Keten_Totaal_CO2<50,IF(Uit_NL_Keten_Stap1_CO2<0.5,"0",TEXT(Uit_NL_Keten_Stap1_CO2,"#.##")), IF(Uit_NL_Keten_Stap1_CO2<0.5,"0",TEXT(Uit_NL_Keten_Stap1_CO2,"#.##")))))) -> 0,8 | M143: =IF(VLOOKUP(Hout_Keten_NL,Lijst_NL_Keten,Keten_Stap1+0*Keten_Delta)="","", IF(Uit_NL_Keten_Totaal_CO2<1,IF(Uit_EU_Keten_Stap1_CO2<0.005,"0,00",TEXT(Uit_EU_Keten_Stap1_CO2,"#.##0,00")), IF(Uit_NL_Keten_Totaal_CO2<10,IF(Uit_EU_Keten_Stap1_CO2<0.05,"0,0",TEXT(Uit_EU_Keten_Stap1_CO2,"#.##0,0")), IF(Uit_NL_Keten_Totaal_CO2<50,IF(Uit_EU_Keten_Stap1_CO2<0.5,"0",TEXT(Uit_EU_Keten_Stap1_CO2,"#.##")), IF(Uit_EU_Keten_Stap1_CO2<0.5,"0",TEXT(Uit_EU_Keten_Stap1_CO2,"#.##")))))) -> 1,5 | O143: =IF(VLOOKUP(Hout_Keten_NL,Lijst_NL_Keten,Keten_Stap1+0*Keten_Delta)="","",Uit_NL_EU_Keten_CO2_Dim) -> gCO2eq/MJ | R143: =IF(VLOOKUP(Hout_Keten_NL,Lijst_NL_Keten,Keten_Stap1_CPT+0*Keten_Delta)="","",VLOOKUP(Hout_Keten_NL,Lijst_NL_Keten,Keten_Stap1_CPT+0*Keten_Delta)) -> P | T143: Stappen van de gekozen biomassaketen | AE143: Eenheden | AJ143: Worden bepaald door eenhedenkeuze in sectie 1-4
C144: =IF(VLOOKUP(Hout_Keten_NL,Lijst_NL_Keten,22)="","",2) -> 2 | D144: =IF(VLOOKUP(Hout_Keten_NL,Lijst_NL_Keten,22)="","",VLOOKUP(Hout_Keten_NL,Lijst_NL_Keten,22)) -> Drogen langs de weg | K144: =IF(VLOOKUP(Hout_Keten_NL,Lijst_NL_Keten,Keten_Stap1+1*Keten_Delta)="","", IF(Uit_NL_Keten_Totaal_CO2<1,IF(Uit_NL_Keten_Stap2_CO2<0.005,"0,00",TEXT(Uit_NL_Keten_Stap2_CO2,"#.##0,00")), IF(Uit_NL_Keten_Totaal_CO2<10,IF(Uit_NL_Keten_Stap2_CO2<0.05,"0,0",TEXT(Uit_NL_Keten_Stap2_CO2,"#.##0,0")), IF(Uit_NL_Keten_Totaal_CO2<50,IF(Uit_NL_Keten_Stap2_CO2<0.5,"0",TEXT(Uit_NL_Keten_Stap2_CO2,"#.##")), IF(Uit_NL_Keten_Stap2_CO2<0.5,"0",TEXT(Uit_NL_Keten_Stap2_CO2,"#.##")))))) -> 0,0 | M144: =IF(VLOOKUP(Hout_Keten_NL,Lijst_NL_Keten,Keten_Stap1+1*Keten_Delta)="","", IF(Uit_NL_Keten_Totaal_CO2<1,IF(Uit_EU_Keten_Stap2_CO2<0.005,"0,00",TEXT(Uit_EU_Keten_Stap2_CO2,"#.##0,00")), IF(Uit_NL_Keten_Totaal_CO2<10,IF(Uit_EU_Keten_Stap2_CO2<0.05,"0,0",TEXT(Uit_EU_Keten_Stap2_CO2,"#.##0,0")), IF(Uit_NL_Keten_Totaal_CO2<50,IF(Uit_EU_Keten_Stap2_CO2<0.5,"0",TEXT(Uit_EU_Keten_Stap2_CO2,"#.##")), IF(Uit_EU_Keten_Stap2_CO2<0.5,"0",TEXT(Uit_EU_Keten_Stap2_CO2,"#.##")))))) -> 0,0 | O144: =IF(VLOOKUP(Hout_Keten_NL,Lijst_NL_Keten,Keten_Stap1+1*Keten_Delta)="","",Uit_NL_EU_Keten_CO2_Dim) -> gCO2eq/MJ | R144: =IF(VLOOKUP(Hout_Keten_NL,Lijst_NL_Keten,Keten_Stap1_CPT+1*Keten_Delta)="","",VLOOKUP(Hout_Keten_NL,Lijst_NL_Keten,Keten_Stap1_CPT+1*Keten_Delta)) -> P
C145: =IF(VLOOKUP(Hout_Keten_NL,Lijst_NL_Keten,33)="","",3) -> 3 | D145: =IF(VLOOKUP(Hout_Keten_NL,Lijst_NL_Keten,33)="","",VLOOKUP(Hout_Keten_NL,Lijst_NL_Keten,33)) -> Chippen | K145: =IF(VLOOKUP(Hout_Keten_NL,Lijst_NL_Keten,Keten_Stap1+2*Keten_Delta)="","", IF(Uit_NL_Keten_Totaal_CO2<1,IF(Uit_NL_Keten_Stap3_CO2<0.005,"0,00",TEXT(Uit_NL_Keten_Stap3_CO2,"#.##0,00")), IF(Uit_NL_Keten_Totaal_CO2<10,IF(Uit_NL_Keten_Stap3_CO2<0.05,"0,0",TEXT(Uit_NL_Keten_Stap3_CO2,"#.##0,0")), IF(Uit_NL_Keten_Totaal_CO2<50,IF(Uit_NL_Keten_Stap3_CO2<0.5,"0",TEXT(Uit_NL_Keten_Stap3_CO2,"#.##")), IF(Uit_NL_Keten_Stap3_CO2<0.5,"0",TEXT(Uit_NL_Keten_Stap3_CO2,"#.##")))))) -> 0,7 | M145: =IF(VLOOKUP(Hout_Keten_NL,Lijst_NL_Keten,Keten_Stap1+2*Keten_Delta)="","", IF(Uit_NL_Keten_Totaal_CO2<1,IF(Uit_EU_Keten_Stap3_CO2<0.005,"0,00",TEXT(Uit_EU_Keten_Stap3_CO2,"#.##0,00")), IF(Uit_NL_Keten_Totaal_CO2<10,IF(Uit_EU_Keten_Stap3_CO2<0.05,"0,0",TEXT(Uit_EU_Keten_Stap3_CO2,"#.##0,0")), IF(Uit_NL_Keten_Totaal_CO2<50,IF(Uit_EU_Keten_Stap3_CO2<0.5,"0",TEXT(Uit_EU_Keten_Stap3_CO2,"#.##")), IF(Uit_EU_Keten_Stap3_CO2<0.5,"0",TEXT(Uit_EU_Keten_Stap3_CO2,"#.##")))))) -> 0,4 | O145: =IF(VLOOKUP(Hout_Keten_NL,Lijst_NL_Keten,Keten_Stap1+2*Keten_Delta)="","",Uit_NL_EU_Keten_CO2_Dim) -> gCO2eq/MJ | R145: =IF(VLOOKUP(Hout_Keten_NL,Lijst_NL_Keten,Keten_Stap1_CPT+2*Keten_Delta)="","",VLOOKUP(Hout_Keten_NL,Lijst_NL_Keten,Keten_Stap1_CPT+2*Keten_Delta)) -> P
C146: =IF(VLOOKUP(Hout_Keten_NL,Lijst_NL_Keten,44)="","",4) -> 4 | D146: =IF(VLOOKUP(Hout_Keten_NL,Lijst_NL_Keten,44)="","",VLOOKUP(Hout_Keten_NL,Lijst_NL_Keten,44)) -> Transport chips naar afnemer | K146: =IF(VLOOKUP(Hout_Keten_NL,Lijst_NL_Keten,Keten_Stap1+3*Keten_Delta)="","", IF(Uit_NL_Keten_Totaal_CO2<1,IF(Uit_NL_Keten_Stap4_CO2<0.005,"0,00",TEXT(Uit_NL_Keten_Stap4_CO2,"#.##0,00")), IF(Uit_NL_Keten_Totaal_CO2<10,IF(Uit_NL_Keten_Stap4_CO2<0.05,"0,0",TEXT(Uit_NL_Keten_Stap4_CO2,"#.##0,0")), IF(Uit_NL_Keten_Totaal_CO2<50,IF(Uit_NL_Keten_Stap4_CO2<0.5,"0",TEXT(Uit_NL_Keten_Stap4_CO2,"#.##")), IF(Uit_NL_Keten_Stap4_CO2<0.5,"0",TEXT(Uit_NL_Keten_Stap4_CO2,"#.##")))))) -> 0,9 | M146: =IF(VLOOKUP(Hout_Keten_NL,Lijst_NL_Keten,Keten_Stap1+3*Keten_Delta)="","", IF(Uit_NL_Keten_Totaal_CO2<1,IF(Uit_EU_Keten_Stap4_CO2<0.005,"0,00",TEXT(Uit_EU_Keten_Stap4_CO2,"#.##0,00")), IF(Uit_NL_Keten_Totaal_CO2<10,IF(Uit_EU_Keten_Stap4_CO2<0.05,"0,0",TEXT(Uit_EU_Keten_Stap4_CO2,"#.##0,0")), IF(Uit_NL_Keten_Totaal_CO2<50,IF(Uit_EU_Keten_Stap4_CO2<0.5,"0",TEXT(Uit_EU_Keten_Stap4_CO2,"#.##")), IF(Uit_EU_Keten_Stap4_CO2<0.5,"0",TEXT(Uit_EU_Keten_Stap4_CO2,"#.##")))))) -> 3,0 | O146: =IF(VLOOKUP(Hout_Keten_NL,Lijst_NL_Keten,Keten_Stap1+3*Keten_Delta)="","",Uit_NL_EU_Keten_CO2_Dim) -> gCO2eq/MJ | R146: =IF(VLOOKUP(Hout_Keten_NL,Lijst_NL_Keten,Keten_Stap1_CPT+3*Keten_Delta)="","",VLOOKUP(Hout_Keten_NL,Lijst_NL_Keten,Keten_Stap1_CPT+3*Keten_Delta)) -> T
C147: =IF(VLOOKUP(Hout_Keten_NL,Lijst_NL_Keten,55)="","",5) ->  | D147: =IF(VLOOKUP(Hout_Keten_NL,Lijst_NL_Keten,55)="","",VLOOKUP(Hout_Keten_NL,Lijst_NL_Keten,55)) ->  | K147: =IF(VLOOKUP(Hout_Keten_NL,Lijst_NL_Keten,Keten_Stap1+4*Keten_Delta)="","", IF(Uit_NL_Keten_Totaal_CO2<1,IF(Uit_NL_Keten_Stap5_CO2<0.005,"0,00",TEXT(Uit_NL_Keten_Stap5_CO2,"#.##0,00")), IF(Uit_NL_Keten_Totaal_CO2<10,IF(Uit_NL_Keten_Stap5_CO2<0.05,"0,0",TEXT(Uit_NL_Keten_Stap5_CO2,"#.##0,0")), IF(Uit_NL_Keten_Totaal_CO2<50,IF(Uit_NL_Keten_Stap5_CO2<0.5,"0",TEXT(Uit_NL_Keten_Stap5_CO2,"#.##")), IF(Uit_NL_Keten_Stap5_CO2<0.5,"0",TEXT(Uit_NL_Keten_Stap5_CO2,"#.##")))))) ->  | M147: =IF(VLOOKUP(Hout_Keten_NL,Lijst_NL_Keten,Keten_Stap1+4*Keten_Delta)="","", IF(Uit_NL_Keten_Totaal_CO2<1,IF(Uit_EU_Keten_Stap5_CO2<0.005,"0,00",TEXT(Uit_EU_Keten_Stap5_CO2,"#.##0,00")), IF(Uit_NL_Keten_Totaal_CO2<10,IF(Uit_EU_Keten_Stap5_CO2<0.05,"0,0",TEXT(Uit_EU_Keten_Stap5_CO2,"#.##0,0")), IF(Uit_NL_Keten_Totaal_CO2<50,IF(Uit_EU_Keten_Stap5_CO2<0.5,"0",TEXT(Uit_EU_Keten_Stap5_CO2,"#.##")), IF(Uit_EU_Keten_Stap5_CO2<0.5,"0",TEXT(Uit_EU_Keten_Stap5_CO2,"#.##")))))) ->  | O147: =IF(VLOOKUP(Hout_Keten_NL,Lijst_NL_Keten,Keten_Stap1+4*Keten_Delta)="","",Uit_NL_EU_Keten_CO2_Dim) ->  | R147: =IF(VLOOKUP(Hout_Keten_NL,Lijst_NL_Keten,Keten_Stap1_CPT+4*Keten_Delta)="","",VLOOKUP(Hout_Keten_NL,Lijst_NL_Keten,Keten_Stap1_CPT+4*Keten_Delta)) -> 
C148: =IF(VLOOKUP(Hout_Keten_NL,Lijst_NL_Keten,77)="","",6) ->  | D148: =IF(VLOOKUP(Hout_Keten_NL,Lijst_NL_Keten,63)="","",VLOOKUP(Hout_Keten_NL,Lijst_NL_Keten,63)) ->  | K148: =IF(VLOOKUP(Hout_Keten_NL,Lijst_NL_Keten,Keten_Stap1+5*Keten_Delta)="","", IF(Uit_NL_Keten_Totaal_CO2<1,IF(Uit_NL_Keten_Stap6_CO2<0.005,"0,00",TEXT(Uit_NL_Keten_Stap6_CO2,"#.##0,00")), IF(Uit_NL_Keten_Totaal_CO2<10,IF(Uit_NL_Keten_Stap6_CO2<0.05,"0,0",TEXT(Uit_NL_Keten_Stap6_CO2,"#.##0,0")), IF(Uit_NL_Keten_Totaal_CO2<50,IF(Uit_NL_Keten_Stap6_CO2<0.5,"0",TEXT(Uit_NL_Keten_Stap6_CO2,"#.##")), IF(Uit_NL_Keten_Stap6_CO2<0.5,"0",TEXT(Uit_NL_Keten_Stap6_CO2,"#.##")))))) ->  | M148: =IF(VLOOKUP(Hout_Keten_NL,Lijst_NL_Keten,Keten_Stap1+5*Keten_Delta)="","", IF(Uit_NL_Keten_Totaal_CO2<1,IF(Uit_EU_Keten_Stap6_CO2<0.005,"0,00",TEXT(Uit_EU_Keten_Stap6_CO2,"#.##0,00")), IF(Uit_NL_Keten_Totaal_CO2<10,IF(Uit_EU_Keten_Stap6_CO2<0.05,"0,0",TEXT(Uit_EU_Keten_Stap6_CO2,"#.##0,0")), IF(Uit_NL_Keten_Totaal_CO2<50,IF(Uit_EU_Keten_Stap6_CO2<0.5,"0",TEXT(Uit_EU_Keten_Stap6_CO2,"#.##")), IF(Uit_EU_Keten_Stap6_CO2<0.5,"0",TEXT(Uit_EU_Keten_Stap6_CO2,"#.##")))))) ->  | O148: =IF(VLOOKUP(Hout_Keten_NL,Lijst_NL_Keten,Keten_Stap1+5*Keten_Delta)="","",Uit_NL_EU_Keten_CO2_Dim) ->  | R148: =IF(VLOOKUP(Hout_Keten_NL,Lijst_NL_Keten,Keten_Stap1_CPT+5*Keten_Delta)="","",VLOOKUP(Hout_Keten_NL,Lijst_NL_Keten,Keten_Stap1_CPT+5*Keten_Delta)) -> 
T149: Hier wordt detailinformatie weergegeven over de NL-ketenstappen
T153: Hier wordt detailinformatie weergegeven over de EU-ketenstappen
C154: EU
T156: Hier wordt de gevraagde ketenstap weergegeven
D157: Detailinformatie Stap: | I157: 1
K160: NL | M160: EU
D161: Teelt | K161: =IF(Uit_NL_Keten_Totaal_CO2<1,IF(Uit_NL_Keten_Cultivatie_CO2<0.005,"0,00",TEXT(Uit_NL_Keten_Cultivatie_CO2,"#.##0,00")), IF(Uit_NL_Keten_Totaal_CO2<10,IF(Uit_NL_Keten_Cultivatie_CO2<0.05,"0,0",TEXT(Uit_NL_Keten_Cultivatie_CO2,"#.##0,0")), IF(Uit_NL_Keten_Totaal_CO2<50,IF(Uit_NL_Keten_Cultivatie_CO2<0.5,"0",TEXT(Uit_NL_Keten_Cultivatie_CO2,"#.##")), IF(Uit_NL_Keten_Cultivatie_CO2<0.5,"0",TEXT(Uit_NL_Keten_Cultivatie_CO2,"#.##"))))) -> 0,0 | M161: =IF(VLOOKUP(Hout_Keten_EU,Lijst_EU_Keten,Keten_Titel_NL_EU)="NL","", IF(Uit_EU_Keten_Totaal_CO2<1,IF(Uit_EU_Keten_Cultivatie_CO2<0.005,"0,00",TEXT(Uit_EU_Keten_Cultivatie_CO2,"#.##0,00")), IF(Uit_EU_Keten_Totaal_CO2<10,IF(Uit_EU_Keten_Cultivatie_CO2<0.05,"0,0",TEXT(Uit_EU_Keten_Cultivatie_CO2,"#.##0,0")), IF(Uit_EU_Keten_Totaal_CO2<50,IF(Uit_EU_Keten_Cultivatie_CO2<0.5,"0",TEXT(Uit_EU_Keten_Cultivatie_CO2,"#.##")), IF(Uit_EU_Keten_Cultivatie_CO2<0.5,"0",TEXT(Uit_EU_Keten_Cultivatie_CO2,"#.##")))))) -> 0,0 | O161: gCO2eq/MJ | T161: CO2eq voor Teelt | AE161: Eenhedenkeuze: | AJ161: gCO2eq/MJ - kgCO2eq - kgCO2eq/tonds - tonCO2eq - MtonCO2eq
D162: Proces | K162: =IF(Uit_NL_Keten_Totaal_CO2<1,IF(Uit_NL_Keten_Proces_CO2<0.005,"0,00",TEXT(Uit_NL_Keten_Proces_CO2,"#.##0,00")), IF(Uit_NL_Keten_Totaal_CO2<10,IF(Uit_NL_Keten_Proces_CO2<0.05,"0,0",TEXT(Uit_NL_Keten_Proces_CO2,"#.##0,0")), IF(Uit_NL_Keten_Totaal_CO2<50,IF(Uit_NL_Keten_Proces_CO2<0.5,"0",TEXT(Uit_NL_Keten_Proces_CO2,"#.##")), IF(Uit_NL_Keten_Proces_CO2<0.5,"0",TEXT(Uit_NL_Keten_Proces_CO2,"#.##"))))) -> 1,5 | M162: =IF(VLOOKUP(Hout_Keten_EU,Lijst_EU_Keten,Keten_Titel_NL_EU)="NL","", IF(Uit_EU_Keten_Totaal_CO2<1,IF(Uit_EU_Keten_Proces_CO2<0.005,"0,00",TEXT(Uit_EU_Keten_Proces_CO2,"#.##0,00")), IF(Uit_EU_Keten_Totaal_CO2<10,IF(Uit_EU_Keten_Proces_CO2<0.05,"0,0",TEXT(Uit_EU_Keten_Proces_CO2,"#.##0,0")), IF(Uit_EU_Keten_Totaal_CO2<50,IF(Uit_EU_Keten_Proces_CO2<0.5,"0",TEXT(Uit_EU_Keten_Proces_CO2,"#.##")), IF(Uit_EU_Keten_Proces_CO2<0.5,"0",TEXT(Uit_EU_Keten_Proces_CO2,"#.##")))))) -> 1,8 | O162: =O161 -> gCO2eq/MJ | T162: CO2eq voor Proces | AE162: Eenhedenkeuze: | AJ162: Geen - Gelijk aan Teelt
D163: Transport | K163: =IF(Uit_NL_Keten_Totaal_CO2<1,IF(Uit_NL_Keten_Transport_CO2<0.005,"0,00",TEXT(Uit_NL_Keten_Transport_CO2,"#.##0,00")), IF(Uit_NL_Keten_Totaal_CO2<10,IF(Uit_NL_Keten_Transport_CO2<0.05,"0,0",TEXT(Uit_NL_Keten_Transport_CO2,"#.##0,0")), IF(Uit_NL_Keten_Totaal_CO2<50,IF(Uit_NL_Keten_Transport_CO2<0.5,"0",TEXT(Uit_NL_Keten_Transport_CO2,"#.##")), IF(Uit_NL_Keten_Transport_CO2<0.5,"0",TEXT(Uit_NL_Keten_Transport_CO2,"#.##"))))) -> 0,9 | M163: =IF(VLOOKUP(Hout_Keten_EU,Lijst_EU_Keten,Keten_Titel_NL_EU)="NL","", IF(Uit_EU_Keten_Totaal_CO2<1,IF(Uit_EU_Keten_Transport_CO2<0.005,"0,00",TEXT(Uit_EU_Keten_Transport_CO2,"#.##0,00")), IF(Uit_EU_Keten_Totaal_CO2<10,IF(Uit_EU_Keten_Transport_CO2<0.05,"0,0",TEXT(Uit_EU_Keten_Transport_CO2,"#.##0,0")), IF(Uit_EU_Keten_Totaal_CO2<50,IF(Uit_EU_Keten_Transport_CO2<0.5,"0",TEXT(Uit_EU_Keten_Transport_CO2,"#.##")), IF(Uit_EU_Keten_Transport_CO2<0.5,"0",TEXT(Uit_EU_Keten_Transport_CO2,"#.##")))))) -> 3,0 | O163: =O161 -> gCO2eq/MJ | T163: CO2eq voor Transport | AE163: Eenhedenkeuze: | AJ163: Geen - Gelijk aan Teelt
D164: Totaal | K164: =IF(Uit_NL_Keten_Totaal_CO2<1,IF(Uit_NL_Keten_Totaal_CO2<0.005,"0,00",TEXT(Uit_NL_Keten_Totaal_CO2,"#.##0,00")), IF(Uit_NL_Keten_Totaal_CO2<10,IF(Uit_NL_Keten_Totaal_CO2<0.05,"0,0",TEXT(Uit_NL_Keten_Totaal_CO2,"#.##0,0")), IF(Uit_NL_Keten_Totaal_CO2<50,IF(Uit_NL_Keten_Totaal_CO2<0.5,"0",TEXT(Uit_NL_Keten_Totaal_CO2,"#.##")), IF(Uit_NL_Keten_Totaal_CO2<0.5,"0",TEXT(Uit_NL_Keten_Totaal_CO2,"#.##"))))) -> 2,4 | M164: =IF(VLOOKUP(Hout_Keten_EU,Lijst_EU_Keten,Keten_Titel_NL_EU)="NL","", IF(Uit_EU_Keten_Totaal_CO2<1,IF(Uit_EU_Keten_Totaal_CO2<0.005,"0,00",TEXT(Uit_EU_Keten_Totaal_CO2,"#.##0,00")), IF(Uit_EU_Keten_Totaal_CO2<10,IF(Uit_EU_Keten_Totaal_CO2<0.05,"0,0",TEXT(Uit_EU_Keten_Totaal_CO2,"#.##0,0")), IF(Uit_EU_Keten_Totaal_CO2<50,IF(Uit_EU_Keten_Totaal_CO2<0.5,"0",TEXT(Uit_EU_Keten_Totaal_CO2,"#.##")), IF(Uit_EU_Keten_Totaal_CO2<0.5,"0",TEXT(Uit_EU_Keten_Totaal_CO2,"#.##")))))) -> 4,8 | O164: =O161 -> gCO2eq/MJ | T164: CO2eq voor Totaal | AE164: Eenhedenkeuze: | AJ164: Geen - Gelijk aan Teelt
D168: Proces | K168: CO2eq | L168: =IF(Samenvatting_Proces_CO2T<10,TEXT(Samenvatting_Proces_CO2T,"#.##0,0"),TEXT(Samenvatting_Proces_CO2T,"#.##")) -> 47.924.767 | O168: gCO2eq | T168: Totale CO2eq emissie van het Proces. | AE168: Eenhedenkeuze: | AJ168: gCO2eq - kgCO2eq - tonCO2eq - MtonCO2eq
K169: Doorzet | L169: =IF(Samenvatting_Proces_Doorzet<10,TEXT(Samenvatting_Proces_Doorzet,"#.##0,0"),TEXT(Samenvatting_Proces_Doorzet,"#.##")) -> 34.107.141 | O169: MJ | T169: Doorzet van biomassa door het Proces | AE169: Eenhedenkeuze: | AJ169: m3 - kg - kgds - ton - tonds - MJ - GJ - kWh - MWh
K170: CO2eq/Doorzet | L170: =IF(L168/L169<10,TEXT(L168/L169,"#.##0,0"),TEXT(L168/L169,"#.##")) -> 1,4 | O170: =Samenvatting_Proces_CO2T_Dim&"/"&Samenvatting_Proces_Doorzet_Dim -> gCO2eq/MJ | T170: Verhouding van CO2eq en Doorzet | AE170: Eenhedenkeuze: | AJ170: Geen, waarde wordt berekend uit CO2eq en Doorzet
D173: Opmerkingen:
D174: Er wordt per keer zoveel gechipt als in de bunker past: 80/85 m3. Kosten 3 uur chipper 250 €/uur (veel kosten voor heen en weer rijden, vanwege kleine hoeveelheid). | T174: Opmerkingen vrij in te vullen
D178: Omschrijving | K178: Chippen | T178: Omschrijving van het Proces vrij in te vullen
D179: Houtvorm proces | M179: Chips G50/P31,5 | T179: Houtvorm | AE179: Keuze uit: | AJ179: Datalijst met Houtvorm
D180: Verandering Houthoeveelheid | M180: -2 | P180: % | T180: Verandering, in de regel verlies van biomassa in het Proces. Massaverlies is negatief
D181: Verandering Houtvochtigheid | M181: 0 | P181: % | T181: Verandering van de vochtigheid in het Proces. Bijvoorbeeld drogen - verandering is dan negatief. Materiaal wordt droger
D190: Gebruik Brandstof | T190: Werktuig op basis van verbranding voor Proces vrij in te vullen
D191: Werktuig | K191: Chipper | T191: Capaciteit vrij in te vullen | AE191: Eenhedenkeuze: | AJ191: uur-m3/uur-ton/uur-tonds/uur-GJ/uur-MWh/uur-uur/m3-uur/ton-uur/tonds-uur/GJ-uur/MWh
D192: Capaciteit werktuig | L192: =IF(OR(AND(Proces_Verbrandingsmotor_Inzet="",Proces_Verbrandingsmotor_Ja_Nee="Ja"), AND(Proces_Verbrandingsmotor_Inzet_Dim="",Proces_Verbrandingsmotor_Ja_Nee="Ja")),"▼","") ->  | M192: 50 | P192: m3/uur | T192: Brandstof | AE192: Keuze uit: | AJ192: Datalijst met Brandstoffen
D193: Brandstof | L193: =IF(AND(Proces_Verbrandingsmotor_Brandstof="",Proces_Verbrandingsmotor_Ja_Nee="Ja"),"▼","") ->  | M193: EU-Diesel | T193: Euronorm en Categorie | AE193: Keuze uit: | AJ193: Euronorm Euro1 - Euro6,
D194: Euronorm/Categorie | M194: Euro 5 | T194: Brandstofverbruik vrij in te vullen | AE194: Eenhedenkeuze: | AJ194: liter - m3 - kg - ton - liter/uur - m3/uur - kg/uur - ton/uur
D195: Brandstofverbruik | L195: =IF(OR(AND(Proces_Verbrandingsmotor_Verbruik="",Proces_Verbrandingsmotor_Ja_Nee="Ja"), AND(Proces_Verbrandingsmotor_Verbruik_Dim="",Proces_Verbrandingsmotor_Ja_Nee="Ja")),"▼","") ->  | M195: 50 | P195: liter/uur
D197: Gebruik Elektriciteit | T197: Werktuig op basis van elektriciteit voor Proces vrij in te vullen
D198: Werktuig | K198: Hulpaandrijving | T198: Keuze uit vermogen of verbruik | AE198: Eenhedenkeuze: | AJ198: Vermogen: | AN198: kW - MW | AS198: Verbruik: | AV198: kWh - MWh - MJ - GJ
E199: Verbruik | L199: =IF(OR(AND(Proces_Elektromotor_VermogenVerbruik="",Proces_Elektromotor_Ja_Nee="Ja"), AND(Proces_Elektromotor_VermogenVerbruik_Dim="",Proces_Elektromotor_Ja_Nee="Ja")),"▼","") ->  | M199: 2500 | P199: kWh | T199: Stroombron | AE199: Keuze uit: | AJ199: Datalijst met Stroombronnen
D200: Stroombron | J200: =IF(AND(Proces_Elektromotor_Stroombron="",Proces_Elektromotor_Ja_Nee="Ja"),"▼","") ->  | K200: EU-Elektriciteit NL | T200: Loadfactor (=mate belasting van het agregaat) vrij in te vullen | AJ200: Eenheid = %
D201: n.v.T. | L201: =IF(AND(Proces_Elektromotor_Loadfactor="",Proces_Elektromotor_Ja_Nee="Ja",Proces_Elektromotor_Vermogen_Verbruik="Vermogen"),"▼","") ->  | T201: Capaciteit vrij in te vullen | AE201: Eenhedenkeuze: | AJ201: m3/uur - ton/uur - tonds/uur - GJ/uu r-
D202: n.v.t. | L202: =IF(OR(AND(Proces_Elektromotor_Capaciteit="",Proces_Elektromotor_Ja_Nee="Ja",Proces_Elektromotor_Vermogen_Verbruik="Vermogen"), AND(Proces_Elektromotor_Capaciteit_Dim="",Proces_Elektromotor_Ja_Nee="Ja",Proces_Elektromotor_Vermogen_Verbruik="Vermogen")),"▼","") ->  | M202: 50 | P202: m3/uur
T204: Basis CO2 productie vrij in te vullen | AE204: Eenhedenkeuze: | AJ204: gCO2eq/MJ - gCO2eq - kgCO2eq - tonCO2eq
D205: Basis CO2 productie | M205: 10000 | P205: kgCO2eq
K208: =IF(Uit_Proces_Invoer_Uitvoer_Dim="Uitvoer","","Let op CO2/MJ is op invoer") -> 
E209: CO2 gebaseerd op: | K209: Uitvoer | N209: =IF(Uit_Proces_Invoer_Uitvoer_Dim="Invoer","van Hout","naar Transport") -> naar Transport | T209: Modus voor berekening CO2eq | AE209: Eenhedenkeuze: | AJ209: invoer - uitvoer
E210: CO2 Verbrandingsmotor | K210: =IF(Uit_Proces_CO2T<1,IF(Uit_Proces_Brandstof_CO2<0.005,"0,00",TEXT(Uit_Proces_Brandstof_CO2,"#.##0,00")), IF(Uit_Proces_CO2T<10,IF(Uit_Proces_Brandstof_CO2<0.05,"0,0",TEXT(Uit_Proces_Brandstof_CO2,"#.##0,0")), IF(Uit_Proces_CO2T<50,IF(Uit_Proces_Brandstof_CO2<0.5,"0",TEXT(Uit_Proces_Brandstof_CO2,"#.##")), IF(Uit_Proces_Brandstof_CO2<0.5,"0",TEXT(Uit_Proces_Brandstof_CO2,"#.##"))))) -> 1,1 | N210: gCO2eq/MJ | T210: CO2eq voor brandstofverbruik | AE210: Eenhedenkeuze: | AJ210: gCO2eq/MJ - gCO2 - kgCO2 - tonCO2
E211: CO2 Elektromotor | K211: =IF(Uit_Proces_CO2T<1,IF(Uit_Proces_Stroom_CO2<0.005,"0,00",TEXT(Uit_Proces_Stroom_CO2,"#.##0,00")), IF(Uit_Proces_CO2T<10,IF(Uit_Proces_Stroom_CO2<0.05,"0,0",TEXT(Uit_Proces_Stroom_CO2,"#.##0,0")), IF(Uit_Proces_CO2T<50,IF(Uit_Proces_Stroom_CO2<0.5,"0",TEXT(Uit_Proces_Stroom_CO2,"#.##")), IF(Uit_Proces_Stroom_CO2<0.5,"0",TEXT(Uit_Proces_Stroom_CO2,"#.##"))))) -> 0,0 | N211: =Uit_Proces_Verbrandingsmotor_CO2_Dim -> gCO2eq/MJ | T211: CO2eq voor elektriciteitsverbruik | AE211: Eenhedenkeuze: | AJ211: Geen - Gelijk aan Brandstof
E212: CO2 Basis | K212: =IF(Uit_Proces_CO2T<1,IF(Uit_Proces_Basis_CO2<0.005,"0,00",TEXT(Uit_Proces_Basis_CO2,"#.##0,00")), IF(Uit_Proces_CO2T<10,IF(Uit_Proces_Basis_CO2<0.05,"0,0",TEXT(Uit_Proces_Basis_CO2,"#.##0,0")), IF(Uit_Proces_CO2T<50,IF(Uit_Proces_Basis_CO2<0.5,"0",TEXT(Uit_Proces_Basis_CO2,"#.##")), IF(Uit_Proces_Basis_CO2<0.5,"0",TEXT(Uit_Proces_Basis_CO2,"#.##"))))) -> 0,3 | N212: =Uit_Proces_Verbrandingsmotor_CO2_Dim -> gCO2eq/MJ | T212: CO2eq voor basis | AE212: Eenhedenkeuze: | AJ212: Geen - Gelijk aan Brandstof
E213: CO2 Totaal | K213: =IF(Uit_Proces_CO2T<1,IF(Uit_Proces_CO2T<0.005,"0,00",TEXT(Uit_Proces_CO2T,"#.##0,00")), IF(Uit_Proces_CO2T<10,IF(Uit_Proces_CO2T<0.05,"0,0",TEXT(Uit_Proces_CO2T,"#.##0,0")), IF(Uit_Proces_CO2T<50,IF(Uit_Proces_CO2T<0.5,"0",TEXT(Uit_Proces_CO2T,"#.##")), IF(Uit_Proces_CO2T<0.5,"0",TEXT(Uit_Proces_CO2T,"#.##"))))) -> 1,4 | N213: =Uit_Proces_Verbrandingsmotor_CO2_Dim -> gCO2eq/MJ | T213: CO2eq voor totaal Proces | AE213: Eenhedenkeuze: | AJ213: Geen - Gelijk aan Brandstof
D217: Transport | K217: CO2eq | L217: =IF(Samenvatting_Transport_CO2T<10,TEXT(Samenvatting_Transport_CO2T,"#.##0,0"),TEXT(Samenvatting_Transport_CO2T,"#.##")) -> 10.360.419 | O217: gCO2eq | T217: Totale CO2eq emissie van het Transport. | AE217: Eenhedenkeuze: | AJ217: gCO2eq - kgCO2eq - tonCO2eq - MtonCO2eq
K218: Doorzet | L218: =IF(Samenvatting_Transport_Doorzet<10,TEXT(Samenvatting_Transport_Doorzet,"#.##0,0"),TEXT(Samenvatting_Transport_Doorzet,"#.##")) -> 34.107.141 | O218: MJ | T218: Doorzet van biomassa door het Transport | AE218: Eenhedenkeuze: | AJ218: m3 - kg - kgds - ton - tonds - MJ - GJ - kWh - MWh
K219: CO2eq/Doorzet | L219: =IF(L217/L218<10,TEXT(L217/L218,"#.##0,0"),TEXT(L217/L218,"#.##")) -> 0,3 | O219: =Samenvatting_Transport_CO2T_Dim&"/"&Samenvatting_Transport_Doorzet_Dim -> gCO2eq/MJ | T219: Verhouding van CO2eq en Doorzet | AE219: Eenhedenkeuze: | AJ219: Geen, waarde wordt berekend uit CO2eq en Doorzet
D222: Opmerkingen:
D223: Vrachtwagens komen leeg terug | T223: Opmerkingen vrij in te vullen
D227: Omschrijving | K227: Transport naar afnemer | T227: Omschrijving van het Transport vrij in te vullen
D228: Houtvorm | M228: =Proces_Vorm -> Chips G50/P31,5 | T228: Houtvorm | AE228: Keuze uit: | AJ228: Datalijst met Houtvorm
D229: Verandering Houthoeveelheid | M229: 0 | P229: % | T229: Verandering, in de regel verlies van biomassa in het Transport. Massaverlies is negatief
D230: Verandering Houtvochtigheid | M230: 0 | P230: % | T230: Verandering van de vochtigheid in het Transport. Bijvoorbeeld drogen - verandering is dan negatief
D232: Afstand - enkele reis | M232: 50 | P232: km | T232: Reisafstand | AE232: Eenhedenkeuze: | AJ232: vaste waarde: km
D233: Laadruimte | M233: 90 | P233: m3 | T233: Laadruimte van het transportmiddel | AE233: Eenhedenkeuze: | AJ233: vaste waarde: m3
D234: Laadvermogen | M234: 25 | P234: ton | T234: Laadvermogen van het transportmiddel | AE234: Eenhedenkeuze: | AJ234: vaste waarde: ton
D235: Belading heen | M235: 100 | P235: % | T235: Belading heen | AE235: Eenhedenkeuze: | AJ235: vaste waarde: %
D236: Belading terug | M236: 50 | P236: % | T236: Belading terug | AE236: Eenhedenkeuze: | AJ236: vaste waarde: %
D237: Snelheid | M237: 55 | P237: km/uur | T237: Snelheid | AE237: Eenhedenkeuze: | AJ237: vaste waarde: km/uur
D239: Gebruik Brandstof
D240: Werktuig | K240: Vrachtauto DAF 250 | T240: Werktuig op basis van verbranding voor Transport vrij in te vullen
D241: Brandstof | L241: =IF(AND(Transport_Verbrandingsmotor_Brandstof="",Transport_Verbrandingsmotor_ID=1),"▼","") ->  | M241: EU-Diesel | T241: Brandstof | AE241: Keuze uit: | AJ241: Datalijst met Brandstoffen
D242: Euronorm/Categorie | M242: Euro 6 | T242: Euronorm en Categorie | AE242: Keuze uit: | AJ242: Euronorm Euro1 - Euro6,
D243: Brandstofverbruik | L243: =IF(OR(AND(Transport_Verbrandingsmotor_Verbruik="",Transport_Verbrandingsmotor_ID=1), AND(Transport_Verbrandingsmotor_Verbruik_Dim="",Transport_Verbrandingsmotor_ID=1)),"▼","") ->  | M243: 30 | P243: liter/100km | T243: Brandstofverbruik vrij in te vullen | AE243: Eenhedenkeuze: | AJ243: liter - liter/km - liter/100km - kg - kg/km - kg/100km
D246: Gebruik Elektriciteit
D247: n.v.t. | T247: Werktuig op basis vanelektriciteit voor Transport vrij in te vullen
E248: n.v.t. | L248: =IF(OR(AND(Transport_Elektromotor_VermogenVerbruik="",Transport_Elektromotor_Ja_Nee="Ja"), AND(Transport_Elektromotor_VermogenVerbruik_Dim="",Transport_Elektromotor_Ja_Nee="Ja")),"▼","") ->  | T248: Keuze uit vermogen of verbruik | AE248: Eenhedenkeuze: | AJ248: Vermogen: | AN248: kW - MW | AS248: Verbruik: | AV248: kWh - MWh - MJ - GJ
D249: n.v.t. | J249: =IF(AND(Transport_Elektromotor_Stroombron="",Transport_Elektromotor_Ja_Nee="Ja"),"▼","") ->  | T249: Stroombron | AE249: Keuze uit: | AJ249: Datalijst met Stroombronnen
D250: Loadfactor | L250: =IF(AND(Transport_Elektromotor_Loadfactor="",Transport_Elektromotor_Ja_Nee="Ja",Transport_Elektromotor_Vermogen_Verbruik="Vermogen"),"▼","") ->  | P250: % | T250: Loadfactor (=mate belasting van het agregaat) vrij in te vullen | AJ250: Eenheid = %
D254: Basis CO2 productie | M254: 0 | P254: gCO2eq/tkm | T254: Basis CO2 productie vrij in te vullen | AE254: Eenhedenkeuze: | AJ254: gCO2eq/MJ - gCO2eq - kgCO2eq - tonCO2eq
K257: =IF(Uit_Transport_Invoer_Uitvoer_Dim="Uitvoer","","Let op CO2/MJ is op invoer") -> 
E258: CO2 gebaseerd op: | K258: Uitvoer | N258: =IF(Uit_Transport_Invoer_Uitvoer_Dim="Invoer","van Proces","naar eindgebruiker") -> naar eindgebruiker | T258: Modus voor berekening CO2eq | AE258: Eenhedenkeuze: | AJ258: invoer - uitvoer
E259: CO2 Verbranding | K259: =IF(Uit_Transport_CO2T<1,IF(Uit_Transport_Brandstof_CO2<0.005,"0,00",TEXT(Uit_Transport_Brandstof_CO2,"#.##0,00")), IF(Uit_Transport_CO2T<10,IF(Uit_Transport_Brandstof_CO2<0.05,"0,0",TEXT(Uit_Transport_Brandstof_CO2,"#.##0,0")), IF(Uit_Transport_CO2T<50,IF(Uit_Transport_Brandstof_CO2<0.5,"0",TEXT(Uit_Transport_Brandstof_CO2,"#.##")), IF(Uit_Transport_Brandstof_CO2<0.5,"0",TEXT(Uit_Transport_Brandstof_CO2,"#.##"))))) -> 0,30 | N259: gCO2eq/MJ | T259: CO2eq voor brandstofverbruik | AE259: Eenhedenkeuze: | AJ259: gCO2eq/MJ - gCO2eq/tkm - kgCO2eq - kgCO2eq/tonds - tonCO2eq - MtonCO2eq
E260: CO2 Elektromotor | K260: =IF(Uit_Transport_CO2T<1,IF(Uit_Transport_Stroom_CO2<0.005,"0,00",TEXT(Uit_Transport_Stroom_CO2,"#.##0,00")), IF(Uit_Transport_CO2T<10,IF(Uit_Transport_Stroom_CO2<0.05,"0,0",TEXT(Uit_Transport_Stroom_CO2,"#.##0,0")), IF(Uit_Transport_CO2T<50,IF(Uit_Transport_Stroom_CO2<0.5,"0",TEXT(Uit_Transport_Stroom_CO2,"#.##")), IF(Uit_Transport_Stroom_CO2<0.5,"0",TEXT(Uit_Transport_Stroom_CO2,"#.##"))))) -> 0,00 | N260: =Uit_Transport_Verbrandingsmotor_CO2_Dim -> gCO2eq/MJ | T260: CO2eq voor elektriciteitsverbruik | AE260: Eenhedenkeuze: | AJ260: Geen - Gelijk aan Brandstof
E261: CO2 Basis | K261: =IF(Uit_Transport_CO2T<1,IF(Uit_Transport_Basis_CO2<0.005,"0,00",TEXT(Uit_Transport_Basis_CO2,"#.##0,00")), IF(Uit_Transport_CO2T<10,IF(Uit_Transport_Basis_CO2<0.05,"0,0",TEXT(Uit_Transport_Basis_CO2,"#.##0,0")), IF(Uit_Transport_CO2T<50,IF(Uit_Transport_Basis_CO2<0.5,"0",TEXT(Uit_Transport_Basis_CO2,"#.##")), IF(Uit_Transport_Basis_CO2<0.5,"0",TEXT(Uit_Transport_Basis_CO2,"#.##"))))) -> 0,00 | N261: =Uit_Transport_Verbrandingsmotor_CO2_Dim -> gCO2eq/MJ | T261: CO2eq voor basis | AE261: Eenhedenkeuze: | AJ261: Geen - Gelijk aan Brandstof
E262: CO2 Totaal | K262: =IF(Uit_Transport_CO2T<1,IF(Uit_Transport_CO2T<0.005,"0,00",TEXT(Uit_Transport_CO2T,"#.##0,00")), IF(Uit_Transport_CO2T<10,IF(Uit_Transport_CO2T<0.05,"0,0",TEXT(Uit_Transport_CO2T,"#.##0,0")), IF(Uit_Transport_CO2T<50,IF(Uit_Transport_CO2T<0.5,"0",TEXT(Uit_Transport_CO2T,"#.##")), IF(Uit_Transport_CO2T<0.5,"0",TEXT(Uit_Transport_CO2T,"#.##"))))) -> 0,30 | N262: =Uit_Transport_Verbrandingsmotor_CO2_Dim -> gCO2eq/MJ | T262: CO2eq voor totaal Transport | AE262: Eenhedenkeuze: | AJ262: Geen - Gelijk aan Brandstof

Sheet E-Land-CO2
A1: Inhoud | C1: 1 | D1: =C1+1 -> 2 | E1: =D1+1 -> 3 | F1: 4 | G1: 5 | H1: 6 | I1: 7 | J1: 8 | K1: 9 | L1: 10 | M1: 11 | N1: 12 | O1: 13 | P1: 14 | Q1: 15 | R1: 16 | S1: 1 | T1: =S1+1 -> 2 | U1: =T1+1 -> 3 | V1: 4 | W1: 5 | X1: 6 | Y1: 7 | Z1: 8 | AA1: 9 | AB1: 10 | AC1: 11 | AD1: 12 | AE1: 13 | AF1: 14 | AG1: 15 | AH1: 16 | AI1: 1 | AJ1: =AI1+1 -> 2 | AK1: =AJ1+1 -> 3 | AL1: 4 | AM1: 5 | AN1: 6 | AO1: 7 | AP1: 8 | AQ1: 9 | AR1: 10 | AS1: 11 | AT1: 12 | AU1: 13 | AV1: 14 | AW1: 15 | AX1: 16
L3: NL | N3: EU | BA3: 1 | BB3: =BA3+1 -> 2 | BC3: =BB3+1 -> 3 | BD3: 4 | BE3: 5 | BF3: 6 | BG3: 7 | BH3: 8 | BI3: 9 | BJ3: 10 | BK3: 11 | BL3: 12 | BM3: 13 | BN3: 14 | BO3: 15 | BP3: 16 | BS3: 1 | BT3: =BS3+1 -> 2 | BU3: =BT3+1 -> 3 | BV3: 4 | BW3: 5 | BX3: 6 | BY3: 7 | BZ3: 8 | CA3: 9 | CB3: 10 | CC3: 11 | CD3: 12 | CE3: 13 | CF3: 14 | CG3: 15 | CH3: 16
J4: CO2eq | K4: =IF(Samenvatting_NL_Keten_CO2<10,TEXT(Samenvatting_NL_Keten_CO2,"#.##0,0"),TEXT(Samenvatting_NL_Keten_CO2,"#.##")) -> 82.037 | M4: =IF(VLOOKUP(Hout_Keten_EU,Lijst_EU_Keten,Keten_Titel_NL_EU)="NL","", IF(Samenvatting_EU_Keten_CO2<10,TEXT(Samenvatting_EU_Keten_CO2,"#.##0,0"),TEXT(Samenvatting_EU_Keten_CO2,"#.##"))) -> 165.106 | O4: kgCO2eq | T4: Proces | AA4: CO2eq | AB4: =IF(Samenvatting_Proces_CO2T<10,TEXT(Samenvatting_Proces_CO2T,"#.##0,0"),TEXT(Samenvatting_Proces_CO2T,"#.##")) -> 47.924.767 | AE4: gCO2eq | AJ4: Transport | AQ4: CO2eq | AR4: =IF(Samenvatting_Transport_CO2T<10,TEXT(Samenvatting_Transport_CO2T,"#.##0,0"),TEXT(Samenvatting_Transport_CO2T,"#.##")) -> 10.360.419 | AU4: gCO2eq | BB4: Hulp | BI4: CO2eq | BJ4: =IF(Samenvatting_Transport_CO2T<10,TEXT(Samenvatting_Transport_CO2T,"#.##0,0"),TEXT(Samenvatting_Transport_CO2T,"#.##")) -> 10.360.419 | BM4: gCO2eq | BS4: Hulp - fossiel vergelijk
J5: Doorzet | K5: =IF(Samenvatting_Hout_Doorzet<10,TEXT(Samenvatting_Hout_Doorzet,"#.##0,0"),TEXT(Samenvatting_Hout_Doorzet,"#.##")) -> 1.803 | M5: =IF(VLOOKUP(Hout_Keten_EU,Lijst_EU_Keten,Keten_Titel_NL_EU)="NL","", IF(Samenvatting_Hout_Doorzet<10,TEXT(Samenvatting_Hout_Doorzet,"#.##0,0"),TEXT(Samenvatting_Hout_Doorzet,"#.##"))) -> 1.803 | O5: tonds | AA5: Doorzet | AB5: =IF(Samenvatting_Proces_Doorzet<10,TEXT(Samenvatting_Proces_Doorzet,"#.##0,0"),TEXT(Samenvatting_Proces_Doorzet,"#.##")) -> 34.107.141 | AE5: MJ | AQ5: Doorzet | AR5: =IF(Samenvatting_Transport_Doorzet<10,TEXT(Samenvatting_Transport_Doorzet,"#.##0,0"),TEXT(Samenvatting_Transport_Doorzet,"#.##")) -> 34.107.141 | AU5: MJ | BI5: Doorzet | BJ5: =IF(Samenvatting_Drogen_Doorzet<10,TEXT(Samenvatting_Drogen_Doorzet,"#.##0,0"),TEXT(Samenvatting_Drogen_Doorzet,"#.##")) -> 31.006.492 | BM5: MJ
J6: CO2eq/Doorzet | K6: =IF(K4/K5<10,TEXT(K4/K5,"#.##0,0"),TEXT(K4/K5,"#.##")) -> 46 | M6: =IF(VLOOKUP(Hout_Keten_EU,Lijst_EU_Keten,Keten_Titel_NL_EU)="NL","", IF(M4/M5<10,TEXT(M4/M5,"#.##0,0"),TEXT(M4/M5,"#.##"))) -> 92 | O6: =Samenvatting_Hout_CO2T_Dim&"/"&Samenvatting_Hout_Doorzet_Dim -> kgCO2eq/tonds | AA6: CO2eq/Doorzet | AB6: =IF(AB4/AB5<10,TEXT(AB4/AB5,"#.##0,0"),TEXT(AB4/AB5,"#.##")) -> 1,4 | AE6: =Samenvatting_Proces_CO2T_Dim&"/"&Samenvatting_Proces_Doorzet_Dim -> gCO2eq/MJ | AQ6: CO2eq/Doorzet | AR6: =IF(AR4/AR5<10,TEXT(AR4/AR5,"#.##0,0"),TEXT(AR4/AR5,"#.##")) -> 0,3 | AU6: =Samenvatting_Transport_CO2T_Dim&"/"&Samenvatting_Transport_Doorzet_Dim -> gCO2eq/MJ | BI6: CO2eq/Doorzet | BJ6: =IF(BJ4/BJ5<10,TEXT(BJ4/BJ5,"#.##0,0"),TEXT(BJ4/BJ5,"#.##")) -> 0,3 | BM6: =Samenvatting_Drogen_CO2_Dim&"/"&Samenvatting_Drogen_Doorzet_Dim -> gCO2eq/MJ
C7: ©KandT/Zilverberg
D9: Opmerkingen: | T9: Opmerkingen: | AJ9: Opmerkingen:
T10: Er wordt per keer zoveel gechipt als in de bunker past: 80/85 m3. Kosten 3 uur chipper 250 €/uur (veel kosten voor heen en weer rijden, vanwege kleine hoeveelheid). | AJ10: Vrachtwagens komen leeg terug | BB10: Droogproces | BT10: Fossiel vergelijk
D14: Omschrijving | H14: Levering Biomassacentrale Texel | T14: Omschrijving | AA14: Chippen | AJ14: Omschrijving | AQ14: Transport naar afnemer | BB14: Houtsoort | BI14: Eiken | BT14: Keten Fossiel (ter vergelijk) | CC14: Aardgas
D15: Houtsoort | K15: Loofhout mix NL | T15: Houtvorm proces | AC15: Chips G50/P31,5 | AJ15: Houtvorm | AS15: =Proces_Vorm -> Chips G50/P31,5 | BB15: Houtvorm | BI15: Chips G30/P16 | BT15: Eindproduct | CC15: Warmte | CF15: -
D16: Houtvorm oogst | K16: Top- en takhout | T16: Verandering Houthoeveelheid | AC16: -2 | AF16: % | AJ16: Verandering Houthoeveelheid | AS16: 0 | AV16: % | BB16: Vochtigheid / vochtgehalte | BK16: 50 | BN16: =Uit_Hout_Vochtgehalte -> 100 | BO16: % | BT16: Rendement omzetting | CC16: 85 | CF16: % | CG16: i
D17: Vochtigheid / vochtgehalte oogst | M17: 50 | P17: =Uit_Hout_Vochtgehalte -> 100 | Q17: % | T17: Verandering Houtvochtigheid | AC17: 0 | AF17: % | AJ17: Verandering Houtvochtigheid | AS17: 0 | AV17: % | BB17: Verandering Houtvochtigheid | BK17: -20 | BN17: % | BT17: CO2 productie | BZ17: Hout | CC17: Fossiel
D18: Hoeveelheid | G18: naar eindgebruiker | M18: 10000 | P18: m3 | BB18: Hoeveelheid | BK18: 100 | BN18: tonds | BU18: Front-End | CC18: 85 | CF18: gCO2eq/MJ
AJ19: Afstand - enkele reis | AS19: 50 | AV19: km | BU19: Omzetting | CC19: 85 | CF19: =CF18 -> gCO2eq/MJ
D20: CO2 Emissiefactoren volgens | K20: BioGrace - II | AJ20: Laadruimte | AS20: 90 | AV20: m3 | BB20: Gebruik Warmte - EU standaard: 1.100 kWh/ton water | BJ20: (1.100kWh/ton water) | BU20: Totaal | CC20: 85 | CF20: =CF18 -> gCO2eq/MJ
K21: CO2 emissiefactoren - 2018 | AJ21: Laadvermogen | AS21: 25 | AV21: ton | BB21: Warmtebenutting | BK21: 90 | BN21: %
K22: Beide | AJ22: Belading heen | AS22: 100 | AV22: % | BB22: Warmtetoevoer | BI22: =IF(Proces_Warmte_Ja_Nee="Nee","","1.100 / "&IF(Drogen_Warmtebenutting=0,0,TEXT(1100*Drogen_Warmtebenutting/100,"#.##"))) ->  | BL22: =IF(Proces_Warmte_Ja_Nee="Nee","","kWh/ton water") -> 
AJ23: Belading terug | AS23: 50 | AV23: %
AJ24: Snelheid | AS24: 55 | AV24: km/uur | BB24: Aandeel elektriciteit | BK24: 15 | BN24: %
D25: Keten | G25: 1a-Chips uit top- en tak hout uit bos of landschap
D26: Pathway | G26: =LOOKUP(Hout_Keten_NL,Lijst_NL_Keten_Nr_Titel,Lijst_EU_Keten_Nr_Titel) -> 1a-Woodchips from forest residues | T26: Gebruik Brandstof | AJ26: Gebruik Brandstof | BB26: Capaciteit | BK26: 30 | BN26: m3/uur
D27: Ketenstappen | K27: NL | M27: EU | T27: Werktuig | AA27: Chipper | AJ27: Werktuig | AQ27: Vrachtauto DAF 250 | BB27: Brandstof | BI27: EU-Diesel
C28: =IF(VLOOKUP(Hout_Keten_NL,Lijst_NL_Keten,11)="","",1) -> 1 | D28: =IF(VLOOKUP(Hout_Keten_NL,Lijst_NL_Keten,11)="","",VLOOKUP(Hout_Keten_NL,Lijst_NL_Keten,11)) -> Inzamelen top- en takhout | K28: =IF(VLOOKUP(Hout_Keten_NL,Lijst_NL_Keten,Keten_Stap1+0*Keten_Delta)="","", IF(Uit_NL_Keten_Totaal_CO2<1,IF(Uit_NL_Keten_Stap1_CO2<0.005,"0,00",TEXT(Uit_NL_Keten_Stap1_CO2,"#.##0,00")), IF(Uit_NL_Keten_Totaal_CO2<10,IF(Uit_NL_Keten_Stap1_CO2<0.05,"0,0",TEXT(Uit_NL_Keten_Stap1_CO2,"#.##0,0")), IF(Uit_NL_Keten_Totaal_CO2<50,IF(Uit_NL_Keten_Stap1_CO2<0.5,"0",TEXT(Uit_NL_Keten_Stap1_CO2,"#.##")), IF(Uit_NL_Keten_Stap1_CO2<0.5,"0",TEXT(Uit_NL_Keten_Stap1_CO2,"#.##")))))) -> 0,8 | M28: =IF(VLOOKUP(Hout_Keten_NL,Lijst_NL_Keten,Keten_Stap1+0*Keten_Delta)="","", IF(Uit_NL_Keten_Totaal_CO2<1,IF(Uit_EU_Keten_Stap1_CO2<0.005,"0,00",TEXT(Uit_EU_Keten_Stap1_CO2,"#.##0,00")), IF(Uit_NL_Keten_Totaal_CO2<10,IF(Uit_EU_Keten_Stap1_CO2<0.05,"0,0",TEXT(Uit_EU_Keten_Stap1_CO2,"#.##0,0")), IF(Uit_NL_Keten_Totaal_CO2<50,IF(Uit_EU_Keten_Stap1_CO2<0.5,"0",TEXT(Uit_EU_Keten_Stap1_CO2,"#.##")), IF(Uit_EU_Keten_Stap1_CO2<0.5,"0",TEXT(Uit_EU_Keten_Stap1_CO2,"#.##")))))) -> 1,5 | O28: =IF(VLOOKUP(Hout_Keten_NL,Lijst_NL_Keten,Keten_Stap1+0*Keten_Delta)="","",Uit_NL_EU_Keten_CO2_Dim) -> gCO2eq/MJ | R28: =IF(VLOOKUP(Hout_Keten_NL,Lijst_NL_Keten,Keten_Stap1_CPT+0*Keten_Delta)="","",VLOOKUP(Hout_Keten_NL,Lijst_NL_Keten,Keten_Stap1_CPT+0*Keten_Delta)) -> P | T28: Capaciteit werktuig | AB28: =IF(OR(AND(Proces_Verbrandingsmotor_Inzet="",Proces_Verbrandingsmotor_Ja_Nee="Ja"), AND(Proces_Verbrandingsmotor_Inzet_Dim="",Proces_Verbrandingsmotor_Ja_Nee="Ja")),"▼","") ->  | AC28: 50 | AF28: m3/uur | AJ28: Brandstof | AR28: =IF(AND(Transport_Verbrandingsmotor_Brandstof="",Transport_Verbrandingsmotor_ID=1),"▼","") ->  | AS28: EU-Diesel | BB28: Brandstofverbruik | BK28: =IF(Uit_Proces_Drogen_Brandstofverbruik<10,TEXT(Uit_Proces_Drogen_Brandstofverbruik,"#.##0,0"),TEXT(Uit_Proces_Drogen_Brandstofverbruik,"#.##")) ->  | BN28: kWh
C29: =IF(VLOOKUP(Hout_Keten_NL,Lijst_NL_Keten,22)="","",2) -> 2 | D29: =IF(VLOOKUP(Hout_Keten_NL,Lijst_NL_Keten,22)="","",VLOOKUP(Hout_Keten_NL,Lijst_NL_Keten,22)) -> Drogen langs de weg | K29: =IF(VLOOKUP(Hout_Keten_NL,Lijst_NL_Keten,Keten_Stap1+1*Keten_Delta)="","", IF(Uit_NL_Keten_Totaal_CO2<1,IF(Uit_NL_Keten_Stap2_CO2<0.005,"0,00",TEXT(Uit_NL_Keten_Stap2_CO2,"#.##0,00")), IF(Uit_NL_Keten_Totaal_CO2<10,IF(Uit_NL_Keten_Stap2_CO2<0.05,"0,0",TEXT(Uit_NL_Keten_Stap2_CO2,"#.##0,0")), IF(Uit_NL_Keten_Totaal_CO2<50,IF(Uit_NL_Keten_Stap2_CO2<0.5,"0",TEXT(Uit_NL_Keten_Stap2_CO2,"#.##")), IF(Uit_NL_Keten_Stap2_CO2<0.5,"0",TEXT(Uit_NL_Keten_Stap2_CO2,"#.##")))))) -> 0,0 | M29: =IF(VLOOKUP(Hout_Keten_NL,Lijst_NL_Keten,Keten_Stap1+1*Keten_Delta)="","", IF(Uit_NL_Keten_Totaal_CO2<1,IF(Uit_EU_Keten_Stap2_CO2<0.005,"0,00",TEXT(Uit_EU_Keten_Stap2_CO2,"#.##0,00")), IF(Uit_NL_Keten_Totaal_CO2<10,IF(Uit_EU_Keten_Stap2_CO2<0.05,"0,0",TEXT(Uit_EU_Keten_Stap2_CO2,"#.##0,0")), IF(Uit_NL_Keten_Totaal_CO2<50,IF(Uit_EU_Keten_Stap2_CO2<0.5,"0",TEXT(Uit_EU_Keten_Stap2_CO2,"#.##")), IF(Uit_EU_Keten_Stap2_CO2<0.5,"0",TEXT(Uit_EU_Keten_Stap2_CO2,"#.##")))))) -> 0,0 | O29: =IF(VLOOKUP(Hout_Keten_NL,Lijst_NL_Keten,Keten_Stap1+1*Keten_Delta)="","",Uit_NL_EU_Keten_CO2_Dim) -> gCO2eq/MJ | R29: =IF(VLOOKUP(Hout_Keten_NL,Lijst_NL_Keten,Keten_Stap1_CPT+1*Keten_Delta)="","",VLOOKUP(Hout_Keten_NL,Lijst_NL_Keten,Keten_Stap1_CPT+1*Keten_Delta)) -> P | T29: Brandstof | AB29: =IF(AND(Proces_Verbrandingsmotor_Brandstof="",Proces_Verbrandingsmotor_Ja_Nee="Ja"),"▼","") ->  | AC29: EU-Diesel | AJ29: Euronorm/Categorie | AS29: Euro 6 | BB29: Stroombron | BI29: EU-Elektriciteit EU mix (0.4 kV)
C30: =IF(VLOOKUP(Hout_Keten_NL,Lijst_NL_Keten,33)="","",3) -> 3 | D30: =IF(VLOOKUP(Hout_Keten_NL,Lijst_NL_Keten,33)="","",VLOOKUP(Hout_Keten_NL,Lijst_NL_Keten,33)) -> Chippen | K30: =IF(VLOOKUP(Hout_Keten_NL,Lijst_NL_Keten,Keten_Stap1+2*Keten_Delta)="","", IF(Uit_NL_Keten_Totaal_CO2<1,IF(Uit_NL_Keten_Stap3_CO2<0.005,"0,00",TEXT(Uit_NL_Keten_Stap3_CO2,"#.##0,00")), IF(Uit_NL_Keten_Totaal_CO2<10,IF(Uit_NL_Keten_Stap3_CO2<0.05,"0,0",TEXT(Uit_NL_Keten_Stap3_CO2,"#.##0,0")), IF(Uit_NL_Keten_Totaal_CO2<50,IF(Uit_NL_Keten_Stap3_CO2<0.5,"0",TEXT(Uit_NL_Keten_Stap3_CO2,"#.##")), IF(Uit_NL_Keten_Stap3_CO2<0.5,"0",TEXT(Uit_NL_Keten_Stap3_CO2,"#.##")))))) -> 0,7 | M30: =IF(VLOOKUP(Hout_Keten_NL,Lijst_NL_Keten,Keten_Stap1+2*Keten_Delta)="","", IF(Uit_NL_Keten_Totaal_CO2<1,IF(Uit_EU_Keten_Stap3_CO2<0.005,"0,00",TEXT(Uit_EU_Keten_Stap3_CO2,"#.##0,00")), IF(Uit_NL_Keten_Totaal_CO2<10,IF(Uit_EU_Keten_Stap3_CO2<0.05,"0,0",TEXT(Uit_EU_Keten_Stap3_CO2,"#.##0,0")), IF(Uit_NL_Keten_Totaal_CO2<50,IF(Uit_EU_Keten_Stap3_CO2<0.5,"0",TEXT(Uit_EU_Keten_Stap3_CO2,"#.##")), IF(Uit_EU_Keten_Stap3_CO2<0.5,"0",TEXT(Uit_EU_Keten_Stap3_CO2,"#.##")))))) -> 0,4 | O30: =IF(VLOOKUP(Hout_Keten_NL,Lijst_NL_Keten,Keten_Stap1+2*Keten_Delta)="","",Uit_NL_EU_Keten_CO2_Dim) -> gCO2eq/MJ | R30: =IF(VLOOKUP(Hout_Keten_NL,Lijst_NL_Keten,Keten_Stap1_CPT+2*Keten_Delta)="","",VLOOKUP(Hout_Keten_NL,Lijst_NL_Keten,Keten_Stap1_CPT+2*Keten_Delta)) -> P | T30: Euronorm/Categorie | AC30: Euro 5 | AJ30: Brandstofverbruik | AR30: =IF(OR(AND(Transport_Verbrandingsmotor_Verbruik="",Transport_Verbrandingsmotor_ID=1), AND(Transport_Verbrandingsmotor_Verbruik_Dim="",Transport_Verbrandingsmotor_ID=1)),"▼","") ->  | AS30: 30 | AV30: liter/100km | BB30: Stroomverbruik | BK30: =IF(Uit_Proces_Drogen_Elektriciteitsverbruik<10,TEXT(Uit_Proces_Drogen_Elektriciteitsverbruik,"#.##0,0"),TEXT(Uit_Proces_Drogen_Elektriciteitsverbruik,"#.##")) ->  | BN30: kWh
C31: =IF(VLOOKUP(Hout_Keten_NL,Lijst_NL_Keten,44)="","",4) -> 4 | D31: =IF(VLOOKUP(Hout_Keten_NL,Lijst_NL_Keten,44)="","",VLOOKUP(Hout_Keten_NL,Lijst_NL_Keten,44)) -> Transport chips naar afnemer | K31: =IF(VLOOKUP(Hout_Keten_NL,Lijst_NL_Keten,Keten_Stap1+3*Keten_Delta)="","", IF(Uit_NL_Keten_Totaal_CO2<1,IF(Uit_NL_Keten_Stap4_CO2<0.005,"0,00",TEXT(Uit_NL_Keten_Stap4_CO2,"#.##0,00")), IF(Uit_NL_Keten_Totaal_CO2<10,IF(Uit_NL_Keten_Stap4_CO2<0.05,"0,0",TEXT(Uit_NL_Keten_Stap4_CO2,"#.##0,0")), IF(Uit_NL_Keten_Totaal_CO2<50,IF(Uit_NL_Keten_Stap4_CO2<0.5,"0",TEXT(Uit_NL_Keten_Stap4_CO2,"#.##")), IF(Uit_NL_Keten_Stap4_CO2<0.5,"0",TEXT(Uit_NL_Keten_Stap4_CO2,"#.##")))))) -> 0,9 | M31: =IF(VLOOKUP(Hout_Keten_NL,Lijst_NL_Keten,Keten_Stap1+3*Keten_Delta)="","", IF(Uit_NL_Keten_Totaal_CO2<1,IF(Uit_EU_Keten_Stap4_CO2<0.005,"0,00",TEXT(Uit_EU_Keten_Stap4_CO2,"#.##0,00")), IF(Uit_NL_Keten_Totaal_CO2<10,IF(Uit_EU_Keten_Stap4_CO2<0.05,"0,0",TEXT(Uit_EU_Keten_Stap4_CO2,"#.##0,0")), IF(Uit_NL_Keten_Totaal_CO2<50,IF(Uit_EU_Keten_Stap4_CO2<0.5,"0",TEXT(Uit_EU_Keten_Stap4_CO2,"#.##")), IF(Uit_EU_Keten_Stap4_CO2<0.5,"0",TEXT(Uit_EU_Keten_Stap4_CO2,"#.##")))))) -> 3,0 | O31: =IF(VLOOKUP(Hout_Keten_NL,Lijst_NL_Keten,Keten_Stap1+3*Keten_Delta)="","",Uit_NL_EU_Keten_CO2_Dim) -> gCO2eq/MJ | R31: =IF(VLOOKUP(Hout_Keten_NL,Lijst_NL_Keten,Keten_Stap1_CPT+3*Keten_Delta)="","",VLOOKUP(Hout_Keten_NL,Lijst_NL_Keten,Keten_Stap1_CPT+3*Keten_Delta)) -> T | T31: Brandstofverbruik | AB31: =IF(OR(AND(Proces_Verbrandingsmotor_Verbruik="",Proces_Verbrandingsmotor_Ja_Nee="Ja"), AND(Proces_Verbrandingsmotor_Verbruik_Dim="",Proces_Verbrandingsmotor_Ja_Nee="Ja")),"▼","") ->  | AC31: 50 | AF31: liter/uur
C32: =IF(VLOOKUP(Hout_Keten_NL,Lijst_NL_Keten,55)="","",5) ->  | D32: =IF(VLOOKUP(Hout_Keten_NL,Lijst_NL_Keten,55)="","",VLOOKUP(Hout_Keten_NL,Lijst_NL_Keten,55)) ->  | K32: =IF(VLOOKUP(Hout_Keten_NL,Lijst_NL_Keten,Keten_Stap1+4*Keten_Delta)="","", IF(Uit_NL_Keten_Totaal_CO2<1,IF(Uit_NL_Keten_Stap5_CO2<0.005,"0,00",TEXT(Uit_NL_Keten_Stap5_CO2,"#.##0,00")), IF(Uit_NL_Keten_Totaal_CO2<10,IF(Uit_NL_Keten_Stap5_CO2<0.05,"0,0",TEXT(Uit_NL_Keten_Stap5_CO2,"#.##0,0")), IF(Uit_NL_Keten_Totaal_CO2<50,IF(Uit_NL_Keten_Stap5_CO2<0.5,"0",TEXT(Uit_NL_Keten_Stap5_CO2,"#.##")), IF(Uit_NL_Keten_Stap5_CO2<0.5,"0",TEXT(Uit_NL_Keten_Stap5_CO2,"#.##")))))) ->  | M32: =IF(VLOOKUP(Hout_Keten_NL,Lijst_NL_Keten,Keten_Stap1+4*Keten_Delta)="","", IF(Uit_NL_Keten_Totaal_CO2<1,IF(Uit_EU_Keten_Stap5_CO2<0.005,"0,00",TEXT(Uit_EU_Keten_Stap5_CO2,"#.##0,00")), IF(Uit_NL_Keten_Totaal_CO2<10,IF(Uit_EU_Keten_Stap5_CO2<0.05,"0,0",TEXT(Uit_EU_Keten_Stap5_CO2,"#.##0,0")), IF(Uit_NL_Keten_Totaal_CO2<50,IF(Uit_EU_Keten_Stap5_CO2<0.5,"0",TEXT(Uit_EU_Keten_Stap5_CO2,"#.##")), IF(Uit_EU_Keten_Stap5_CO2<0.5,"0",TEXT(Uit_EU_Keten_Stap5_CO2,"#.##")))))) ->  | O32: =IF(VLOOKUP(Hout_Keten_NL,Lijst_NL_Keten,Keten_Stap1+4*Keten_Delta)="","",Uit_NL_EU_Keten_CO2_Dim) ->  | R32: =IF(VLOOKUP(Hout_Keten_NL,Lijst_NL_Keten,Keten_Stap1_CPT+4*Keten_Delta)="","",VLOOKUP(Hout_Keten_NL,Lijst_NL_Keten,Keten_Stap1_CPT+4*Keten_Delta)) -> 
C33: =IF(VLOOKUP(Hout_Keten_NL,Lijst_NL_Keten,77)="","",6) ->  | D33: =IF(VLOOKUP(Hout_Keten_NL,Lijst_NL_Keten,63)="","",VLOOKUP(Hout_Keten_NL,Lijst_NL_Keten,63)) ->  | K33: =IF(VLOOKUP(Hout_Keten_NL,Lijst_NL_Keten,Keten_Stap1+5*Keten_Delta)="","", IF(Uit_NL_Keten_Totaal_CO2<1,IF(Uit_NL_Keten_Stap6_CO2<0.005,"0,00",TEXT(Uit_NL_Keten_Stap6_CO2,"#.##0,00")), IF(Uit_NL_Keten_Totaal_CO2<10,IF(Uit_NL_Keten_Stap6_CO2<0.05,"0,0",TEXT(Uit_NL_Keten_Stap6_CO2,"#.##0,0")), IF(Uit_NL_Keten_Totaal_CO2<50,IF(Uit_NL_Keten_Stap6_CO2<0.5,"0",TEXT(Uit_NL_Keten_Stap6_CO2,"#.##")), IF(Uit_NL_Keten_Stap6_CO2<0.5,"0",TEXT(Uit_NL_Keten_Stap6_CO2,"#.##")))))) ->  | M33: =IF(VLOOKUP(Hout_Keten_NL,Lijst_NL_Keten,Keten_Stap1+5*Keten_Delta)="","", IF(Uit_NL_Keten_Totaal_CO2<1,IF(Uit_EU_Keten_Stap6_CO2<0.005,"0,00",TEXT(Uit_EU_Keten_Stap6_CO2,"#.##0,00")), IF(Uit_NL_Keten_Totaal_CO2<10,IF(Uit_EU_Keten_Stap6_CO2<0.05,"0,0",TEXT(Uit_EU_Keten_Stap6_CO2,"#.##0,0")), IF(Uit_NL_Keten_Totaal_CO2<50,IF(Uit_EU_Keten_Stap6_CO2<0.5,"0",TEXT(Uit_EU_Keten_Stap6_CO2,"#.##")), IF(Uit_EU_Keten_Stap6_CO2<0.5,"0",TEXT(Uit_EU_Keten_Stap6_CO2,"#.##")))))) ->  | O33: =IF(VLOOKUP(Hout_Keten_NL,Lijst_NL_Keten,Keten_Stap1+5*Keten_Delta)="","",Uit_NL_EU_Keten_CO2_Dim) ->  | R33: =IF(VLOOKUP(Hout_Keten_NL,Lijst_NL_Keten,Keten_Stap1_CPT+5*Keten_Delta)="","",VLOOKUP(Hout_Keten_NL,Lijst_NL_Keten,Keten_Stap1_CPT+5*Keten_Delta)) ->  | T33: Gebruik Elektriciteit | AJ33: Gebruik Elektriciteit | BB33: CO2 emissie brandstof | BJ33: =IF(Uit_Transport_Brandstof_CO2<50,TEXT(Uit_Transport_Brandstof_CO2,"#.##0,0"),TEXT(Uit_Transport_Brandstof_CO2,"#.##")) -> 0,3 | BM33: gCO2eq/MJ
T34: Werktuig | AA34: Hulpaandrijving | AJ34: n.v.t. | BB34: CO2 emissie elektriciteit | BJ34: =IF(Uit_Transport_Stroom_CO2<50,TEXT(Uit_Transport_Stroom_CO2,"#.##0,0"),TEXT(Uit_Transport_Stroom_CO2,"#.##")) -> 0,0 | BM34: =Uit_Transport_Verbrandingsmotor_CO2_Dim -> gCO2eq/MJ
U35: Verbruik | AB35: =IF(OR(AND(Proces_Elektromotor_VermogenVerbruik="",Proces_Elektromotor_Ja_Nee="Ja"), AND(Proces_Elektromotor_VermogenVerbruik_Dim="",Proces_Elektromotor_Ja_Nee="Ja")),"▼","") ->  | AC35: 2500 | AF35: kWh | AK35: n.v.t. | AR35: =IF(OR(AND(Transport_Elektromotor_VermogenVerbruik="",Transport_Elektromotor_Ja_Nee="Ja"), AND(Transport_Elektromotor_VermogenVerbruik_Dim="",Transport_Elektromotor_Ja_Nee="Ja")),"▼","") ->  | BB35: CO2 emissie droogproces | BJ35: =IF(Uit_Transport_Basis_CO2<50,TEXT(Uit_Transport_Basis_CO2,"#.##0,0"),TEXT(Uit_Transport_Basis_CO2,"#.##")) -> 0,0 | BM35: =Uit_Transport_Verbrandingsmotor_CO2_Dim -> gCO2eq/MJ | CL35: =IF(VLOOKUP(Hout_Keten_NL,Lijst_2D_Keten_Stap_Detail_NL,1+Hout_Keten_Stap_Detail_Nr)="","Geen ketenstap",VLOOKUP(Hout_Keten_NL,Lijst_2D_Keten_Stap_Detail_NL,1+Hout_Keten_Stap_Detail_Nr)) -> Bundelen en stobben oogsten is geen gebruikelijk praktijk in NL. Uitrijden varieert - afhankelijk van de situatie - tussen ca. 1 en 2 liter per verse ton. Het conservatief gemiddelde op basis van de gegevens van de partijen uit de keten in NL wordt gesteld op ca. 2 liter per verse ton. Dit is ca. 4 liter per ton droge stof. Een aantal bedrijven in Nederland chippen in het bos, en rijden met trekker en dumper uit naar het bospad. Dit scenario is in dit project niet beschreven.
T36: Stroombron | Z36: =IF(AND(Proces_Elektromotor_Stroombron="",Proces_Elektromotor_Ja_Nee="Ja"),"▼","") ->  | AA36: EU-Elektriciteit NL | AJ36: n.v.t. | AP36: =IF(AND(Transport_Elektromotor_Stroombron="",Transport_Elektromotor_Ja_Nee="Ja"),"▼","") ->  | CL36: =IF(VLOOKUP(Hout_Keten_EU,Lijst_EU_Keten,Keten_Titel_NL_EU)="NL","", IF(VLOOKUP(Hout_Keten_EU,Lijst_2D_Keten_Stap_Detail_EU,1+Hout_Keten_Stap_Detail_Nr)="","Geen ketenstap", VLOOKUP(Hout_Keten_EU,Lijst_2D_Keten_Stap_Detail_EU,1+Hout_Keten_Stap_Detail_Nr))) -> Dit is inclusief forwarden, bundelen, oliegebruik, transport van machines van en naar de werkplek, laden en lossen. Het bevat scenario's los top- en takhout, bundelen en oogst van stobben. Voor het olieverbruik wordt uitgegaan van 6 % van het dieselverbruik van de machines. De emissiefactor van olie is gelijkgesteld aan diesel. De vochtigheid (M) is aangenomen op 50 %.
T37: n.v.T. | AB37: =IF(AND(Proces_Elektromotor_Loadfactor="",Proces_Elektromotor_Ja_Nee="Ja",Proces_Elektromotor_Vermogen_Verbruik="Vermogen"),"▼","") ->  | AJ37: Loadfactor | AR37: =IF(AND(Transport_Elektromotor_Loadfactor="",Transport_Elektromotor_Ja_Nee="Ja",Transport_Elektromotor_Vermogen_Verbruik="Vermogen"),"▼","") ->  | AV37: %
T38: n.v.t. | AB38: =IF(OR(AND(Proces_Elektromotor_Capaciteit="",Proces_Elektromotor_Ja_Nee="Ja",Proces_Elektromotor_Vermogen_Verbruik="Vermogen"), AND(Proces_Elektromotor_Capaciteit_Dim="",Proces_Elektromotor_Ja_Nee="Ja",Proces_Elektromotor_Vermogen_Verbruik="Vermogen")),"▼","") ->  | AC38: 50 | AF38: m3/uur
C39: EU
T41: Basis CO2 productie | AC41: 10000 | AF41: kgCO2eq | AJ41: Basis CO2 productie | AS41: 0 | AV41: gCO2eq/tkm | BB41: =IF(Uit_NL_Keten_Stap1_CO2<1,IF(Uit_NL_Keten_Stap1_CO2<0.005,"0,00",TEXT(Uit_NL_Keten_Stap1_CO2,"#.##0,00")), IF(Uit_NL_Keten_Totaal_CO2<10,IF(Uit_NL_Keten_Stap1_CO2<0.05,"0,0",TEXT(Uit_NL_Keten_Stap1_CO2,"#.##0,0")), IF(Uit_NL_Keten_Totaal_CO2<50,IF(Uit_NL_Keten_Stap1_CO2<0.5,"0",TEXT(Uit_NL_Keten_Stap1_CO2,"#.##")), IF(Uit_NL_Keten_Stap1_CO2<0.5,"0",TEXT(Uit_NL_Keten_Stap1_CO2,"#.##"))))) -> 0,78
D42: Detailinformatie Stap: | I42: 1
AA44: =IF(Uit_Proces_Invoer_Uitvoer_Dim="Uitvoer","","Let op CO2/MJ is op invoer") ->  | AQ44: =IF(Uit_Transport_Invoer_Uitvoer_Dim="Uitvoer","","Let op CO2/MJ is op invoer") -> 
K45: NL | M45: EU | U45: CO2 gebaseerd op: | AA45: Uitvoer | AD45: =IF(Uit_Proces_Invoer_Uitvoer_Dim="Invoer","van Hout","naar Transport") -> naar Transport | AK45: CO2 gebaseerd op: | AQ45: Uitvoer | AT45: =IF(Uit_Transport_Invoer_Uitvoer_Dim="Invoer","van Proces","naar eindgebruiker") -> naar eindgebruiker
D46: Teelt | K46: =IF(Uit_NL_Keten_Totaal_CO2<1,IF(Uit_NL_Keten_Cultivatie_CO2<0.005,"0,00",TEXT(Uit_NL_Keten_Cultivatie_CO2,"#.##0,00")), IF(Uit_NL_Keten_Totaal_CO2<10,IF(Uit_NL_Keten_Cultivatie_CO2<0.05,"0,0",TEXT(Uit_NL_Keten_Cultivatie_CO2,"#.##0,0")), IF(Uit_NL_Keten_Totaal_CO2<50,IF(Uit_NL_Keten_Cultivatie_CO2<0.5,"0",TEXT(Uit_NL_Keten_Cultivatie_CO2,"#.##")), IF(Uit_NL_Keten_Cultivatie_CO2<0.5,"0",TEXT(Uit_NL_Keten_Cultivatie_CO2,"#.##"))))) -> 0,0 | M46: =IF(VLOOKUP(Hout_Keten_EU,Lijst_EU_Keten,Keten_Titel_NL_EU)="NL","", IF(Uit_EU_Keten_Totaal_CO2<1,IF(Uit_EU_Keten_Cultivatie_CO2<0.005,"0,00",TEXT(Uit_EU_Keten_Cultivatie_CO2,"#.##0,00")), IF(Uit_EU_Keten_Totaal_CO2<10,IF(Uit_EU_Keten_Cultivatie_CO2<0.05,"0,0",TEXT(Uit_EU_Keten_Cultivatie_CO2,"#.##0,0")), IF(Uit_EU_Keten_Totaal_CO2<50,IF(Uit_EU_Keten_Cultivatie_CO2<0.5,"0",TEXT(Uit_EU_Keten_Cultivatie_CO2,"#.##")), IF(Uit_EU_Keten_Cultivatie_CO2<0.5,"0",TEXT(Uit_EU_Keten_Cultivatie_CO2,"#.##")))))) -> 0,0 | O46: gCO2eq/MJ | U46: CO2 Verbrandingsmotor | AA46: =IF(Uit_Proces_CO2T<1,IF(Uit_Proces_Brandstof_CO2<0.005,"0,00",TEXT(Uit_Proces_Brandstof_CO2,"#.##0,00")), IF(Uit_Proces_CO2T<10,IF(Uit_Proces_Brandstof_CO2<0.05,"0,0",TEXT(Uit_Proces_Brandstof_CO2,"#.##0,0")), IF(Uit_Proces_CO2T<50,IF(Uit_Proces_Brandstof_CO2<0.5,"0",TEXT(Uit_Proces_Brandstof_CO2,"#.##")), IF(Uit_Proces_Brandstof_CO2<0.5,"0",TEXT(Uit_Proces_Brandstof_CO2,"#.##"))))) -> 1,1 | AD46: gCO2eq/MJ | AK46: CO2 Verbranding | AQ46: =IF(Uit_Transport_CO2T<1,IF(Uit_Transport_Brandstof_CO2<0.005,"0,00",TEXT(Uit_Transport_Brandstof_CO2,"#.##0,00")), IF(Uit_Transport_CO2T<10,IF(Uit_Transport_Brandstof_CO2<0.05,"0,0",TEXT(Uit_Transport_Brandstof_CO2,"#.##0,0")), IF(Uit_Transport_CO2T<50,IF(Uit_Transport_Brandstof_CO2<0.5,"0",TEXT(Uit_Transport_Brandstof_CO2,"#.##")), IF(Uit_Transport_Brandstof_CO2<0.5,"0",TEXT(Uit_Transport_Brandstof_CO2,"#.##"))))) -> 0,30 | AT46: gCO2eq/MJ
D47: Proces | K47: =IF(Uit_NL_Keten_Totaal_CO2<1,IF(Uit_NL_Keten_Proces_CO2<0.005,"0,00",TEXT(Uit_NL_Keten_Proces_CO2,"#.##0,00")), IF(Uit_NL_Keten_Totaal_CO2<10,IF(Uit_NL_Keten_Proces_CO2<0.05,"0,0",TEXT(Uit_NL_Keten_Proces_CO2,"#.##0,0")), IF(Uit_NL_Keten_Totaal_CO2<50,IF(Uit_NL_Keten_Proces_CO2<0.5,"0",TEXT(Uit_NL_Keten_Proces_CO2,"#.##")), IF(Uit_NL_Keten_Proces_CO2<0.5,"0",TEXT(Uit_NL_Keten_Proces_CO2,"#.##"))))) -> 1,5 | M47: =IF(VLOOKUP(Hout_Keten_EU,Lijst_EU_Keten,Keten_Titel_NL_EU)="NL","", IF(Uit_EU_Keten_Totaal_CO2<1,IF(Uit_EU_Keten_Proces_CO2<0.005,"0,00",TEXT(Uit_EU_Keten_Proces_CO2,"#.##0,00")), IF(Uit_EU_Keten_Totaal_CO2<10,IF(Uit_EU_Keten_Proces_CO2<0.05,"0,0",TEXT(Uit_EU_Keten_Proces_CO2,"#.##0,0")), IF(Uit_EU_Keten_Totaal_CO2<50,IF(Uit_EU_Keten_Proces_CO2<0.5,"0",TEXT(Uit_EU_Keten_Proces_CO2,"#.##")), IF(Uit_EU_Keten_Proces_CO2<0.5,"0",TEXT(Uit_EU_Keten_Proces_CO2,"#.##")))))) -> 1,8 | O47: =O46 -> gCO2eq/MJ | U47: CO2 Elektromotor | AA47: =IF(Uit_Proces_CO2T<1,IF(Uit_Proces_Stroom_CO2<0.005,"0,00",TEXT(Uit_Proces_Stroom_CO2,"#.##0,00")), IF(Uit_Proces_CO2T<10,IF(Uit_Proces_Stroom_CO2<0.05,"0,0",TEXT(Uit_Proces_Stroom_CO2,"#.##0,0")), IF(Uit_Proces_CO2T<50,IF(Uit_Proces_Stroom_CO2<0.5,"0",TEXT(Uit_Proces_Stroom_CO2,"#.##")), IF(Uit_Proces_Stroom_CO2<0.5,"0",TEXT(Uit_Proces_Stroom_CO2,"#.##"))))) -> 0,0 | AD47: =Uit_Proces_Verbrandingsmotor_CO2_Dim -> gCO2eq/MJ | AK47: CO2 Elektromotor | AQ47: =IF(Uit_Transport_CO2T<1,IF(Uit_Transport_Stroom_CO2<0.005,"0,00",TEXT(Uit_Transport_Stroom_CO2,"#.##0,00")), IF(Uit_Transport_CO2T<10,IF(Uit_Transport_Stroom_CO2<0.05,"0,0",TEXT(Uit_Transport_Stroom_CO2,"#.##0,0")), IF(Uit_Transport_CO2T<50,IF(Uit_Transport_Stroom_CO2<0.5,"0",TEXT(Uit_Transport_Stroom_CO2,"#.##")), IF(Uit_Transport_Stroom_CO2<0.5,"0",TEXT(Uit_Transport_Stroom_CO2,"#.##"))))) -> 0,00 | AT47: =Uit_Transport_Verbrandingsmotor_CO2_Dim -> gCO2eq/MJ
D48: Transport | K48: =IF(Uit_NL_Keten_Totaal_CO2<1,IF(Uit_NL_Keten_Transport_CO2<0.005,"0,00",TEXT(Uit_NL_Keten_Transport_CO2,"#.##0,00")), IF(Uit_NL_Keten_Totaal_CO2<10,IF(Uit_NL_Keten_Transport_CO2<0.05,"0,0",TEXT(Uit_NL_Keten_Transport_CO2,"#.##0,0")), IF(Uit_NL_Keten_Totaal_CO2<50,IF(Uit_NL_Keten_Transport_CO2<0.5,"0",TEXT(Uit_NL_Keten_Transport_CO2,"#.##")), IF(Uit_NL_Keten_Transport_CO2<0.5,"0",TEXT(Uit_NL_Keten_Transport_CO2,"#.##"))))) -> 0,9 | M48: =IF(VLOOKUP(Hout_Keten_EU,Lijst_EU_Keten,Keten_Titel_NL_EU)="NL","", IF(Uit_EU_Keten_Totaal_CO2<1,IF(Uit_EU_Keten_Transport_CO2<0.005,"0,00",TEXT(Uit_EU_Keten_Transport_CO2,"#.##0,00")), IF(Uit_EU_Keten_Totaal_CO2<10,IF(Uit_EU_Keten_Transport_CO2<0.05,"0,0",TEXT(Uit_EU_Keten_Transport_CO2,"#.##0,0")), IF(Uit_EU_Keten_Totaal_CO2<50,IF(Uit_EU_Keten_Transport_CO2<0.5,"0",TEXT(Uit_EU_Keten_Transport_CO2,"#.##")), IF(Uit_EU_Keten_Transport_CO2<0.5,"0",TEXT(Uit_EU_Keten_Transport_CO2,"#.##")))))) -> 3,0 | O48: =O46 -> gCO2eq/MJ | U48: CO2 Basis | AA48: =IF(Uit_Proces_CO2T<1,IF(Uit_Proces_Basis_CO2<0.005,"0,00",TEXT(Uit_Proces_Basis_CO2,"#.##0,00")), IF(Uit_Proces_CO2T<10,IF(Uit_Proces_Basis_CO2<0.05,"0,0",TEXT(Uit_Proces_Basis_CO2,"#.##0,0")), IF(Uit_Proces_CO2T<50,IF(Uit_Proces_Basis_CO2<0.5,"0",TEXT(Uit_Proces_Basis_CO2,"#.##")), IF(Uit_Proces_Basis_CO2<0.5,"0",TEXT(Uit_Proces_Basis_CO2,"#.##"))))) -> 0,3 | AD48: =Uit_Proces_Verbrandingsmotor_CO2_Dim -> gCO2eq/MJ | AK48: CO2 Basis | AQ48: =IF(Uit_Transport_CO2T<1,IF(Uit_Transport_Basis_CO2<0.005,"0,00",TEXT(Uit_Transport_Basis_CO2,"#.##0,00")), IF(Uit_Transport_CO2T<10,IF(Uit_Transport_Basis_CO2<0.05,"0,0",TEXT(Uit_Transport_Basis_CO2,"#.##0,0")), IF(Uit_Transport_CO2T<50,IF(Uit_Transport_Basis_CO2<0.5,"0",TEXT(Uit_Transport_Basis_CO2,"#.##")), IF(Uit_Transport_Basis_CO2<0.5,"0",TEXT(Uit_Transport_Basis_CO2,"#.##"))))) -> 0,00 | AT48: =Uit_Transport_Verbrandingsmotor_CO2_Dim -> gCO2eq/MJ
D49: Totaal | K49: =IF(Uit_NL_Keten_Totaal_CO2<1,IF(Uit_NL_Keten_Totaal_CO2<0.005,"0,00",TEXT(Uit_NL_Keten_Totaal_CO2,"#.##0,00")), IF(Uit_NL_Keten_Totaal_CO2<10,IF(Uit_NL_Keten_Totaal_CO2<0.05,"0,0",TEXT(Uit_NL_Keten_Totaal_CO2,"#.##0,0")), IF(Uit_NL_Keten_Totaal_CO2<50,IF(Uit_NL_Keten_Totaal_CO2<0.5,"0",TEXT(Uit_NL_Keten_Totaal_CO2,"#.##")), IF(Uit_NL_Keten_Totaal_CO2<0.5,"0",TEXT(Uit_NL_Keten_Totaal_CO2,"#.##"))))) -> 2,4 | M49: =IF(VLOOKUP(Hout_Keten_EU,Lijst_EU_Keten,Keten_Titel_NL_EU)="NL","", IF(Uit_EU_Keten_Totaal_CO2<1,IF(Uit_EU_Keten_Totaal_CO2<0.005,"0,00",TEXT(Uit_EU_Keten_Totaal_CO2,"#.##0,00")), IF(Uit_EU_Keten_Totaal_CO2<10,IF(Uit_EU_Keten_Totaal_CO2<0.05,"0,0",TEXT(Uit_EU_Keten_Totaal_CO2,"#.##0,0")), IF(Uit_EU_Keten_Totaal_CO2<50,IF(Uit_EU_Keten_Totaal_CO2<0.5,"0",TEXT(Uit_EU_Keten_Totaal_CO2,"#.##")), IF(Uit_EU_Keten_Totaal_CO2<0.5,"0",TEXT(Uit_EU_Keten_Totaal_CO2,"#.##")))))) -> 4,8 | O49: =O46 -> gCO2eq/MJ | U49: CO2 Totaal | AA49: =IF(Uit_Proces_CO2T<1,IF(Uit_Proces_CO2T<0.005,"0,00",TEXT(Uit_Proces_CO2T,"#.##0,00")), IF(Uit_Proces_CO2T<10,IF(Uit_Proces_CO2T<0.05,"0,0",TEXT(Uit_Proces_CO2T,"#.##0,0")), IF(Uit_Proces_CO2T<50,IF(Uit_Proces_CO2T<0.5,"0",TEXT(Uit_Proces_CO2T,"#.##")), IF(Uit_Proces_CO2T<0.5,"0",TEXT(Uit_Proces_CO2T,"#.##"))))) -> 1,4 | AD49: =Uit_Proces_Verbrandingsmotor_CO2_Dim -> gCO2eq/MJ | AK49: CO2 Totaal | AQ49: =IF(Uit_Transport_CO2T<1,IF(Uit_Transport_CO2T<0.005,"0,00",TEXT(Uit_Transport_CO2T,"#.##0,00")), IF(Uit_Transport_CO2T<10,IF(Uit_Transport_CO2T<0.05,"0,0",TEXT(Uit_Transport_CO2T,"#.##0,0")), IF(Uit_Transport_CO2T<50,IF(Uit_Transport_CO2T<0.5,"0",TEXT(Uit_Transport_CO2T,"#.##")), IF(Uit_Transport_CO2T<0.5,"0",TEXT(Uit_Transport_CO2T,"#.##"))))) -> 0,30 | AT49: =Uit_Transport_Verbrandingsmotor_CO2_Dim -> gCO2eq/MJ
C51: © Dit rekenmodel is eigendom van KandT/Zilverberg. Er kunnen aan het gebruik van het rekenmodel geen rechten worden ontleend
E54: Biomassa | K54: =Hout_Soort -> Loofhout mix NL | U54: Biomassa | AA54: =Hout_Soort -> Loofhout mix NL | AK54: Biomassa | AQ54: =Hout_Soort -> Loofhout mix NL | BY54: =SUM(M34:N36) -> 0 | CA54: gCO2/tonds
E55: Vorm | K55: =Hout_Vorm -> Top- en takhout | U55: Vorm | AA55: =Proces_Vorm -> Chips G50/P31,5 | AK55: Vorm | AQ55: =Transport_Vorm -> Chips G50/P31,5 | BA55: ="CO2 ter vergelijk voor: "&Hout_Fossiel_Soort -> CO2 ter vergelijk voor: Aardgas | BG55: =IF(Uit_Hout_Fossiel_CO2<10,TEXT(Uit_Hout_Fossiel_CO2,"#.##0,0"),TEXT(Uit_Hout_Fossiel_CO2,"#.##")) ->  | BJ55: gCO2eq/MJ | CA55: gCO2/tkm
E56: Vulling (houtvolume in m3 per m3) | K56: =Hout_Vorm_Vulling -> 0.3 | N56: m3/m3 | U56: Vulling (houtvolume in m3 per m3) | AA56: =Proces_Vorm_Vulling -> 0.33 | AD56: m3/m3 | AK56: Vulling (houtvolume in m3 per m3) | AQ56: =Transport_Vorm_Vulling -> 0.33 | AT56: m3/m3 | CA56: gCO2/MJ
E57: Vochtigheid | K57: =Hout_Vochtigheid -> 50 | N57: % | U57: Vochtigheid + Δ vochtigheid | AA57: =Proces_Vochtigheid -> 50 | AD57: % | AK57: Vochtigheid + Δ vochtigheid | AQ57: =Transport_Vochtigheid -> 50 | AT57: %
U58: Verlies, vocht-vormverandering | AA58: =IF(Uit_Proces_Doorzet_Verlies<10,TEXT(Uit_Proces_Doorzet_Verlies,"#.##0,0"),TEXT(Uit_Proces_Doorzet_Verlies,"#.##")) ->  | AD58: m3 | AK58: Verlies, vocht-vormverandering | AQ58: =IF(Uit_Transport_Doorzet_Verlies<10,TEXT(Uit_Transport_Doorzet_Verlies,"#.##0,0"),TEXT(Uit_Transport_Doorzet_Verlies,"#.##")) ->  | AT58: m3
E59: Dichtheid massief | K59: =Hout_RHO_VF1 -> 1071.036 | N59: kg/m3 | U59: Dichtheid massief | AA59: =Proces_RHO_VF1 -> 1071.036 | AD59: kg/m3 | AK59: Dichtheid massief | AQ59: =Transport_RHO_VF1 -> 1071.036 | AT59: kg/m3
E60: Dichtheid bij vorm | K60: =Hout_RHO -> 321.3108 | N60: kg/m3 | U60: Dichtheid bij vorm | AA60: =Proces_RHO -> 353.44188 | AD60: kg/m3 | AK60: Dichtheid bij vorm | AQ60: =Transport_RHO -> 353.44188 | AT60: kg/m3
E61: LHV - volume | K61: =IF(Uit_Hout_LHVv<10,TEXT(Uit_Hout_LHVv,"#.##0,0"),TEXT(Uit_Hout_LHVv,"#.##")) -> 0,9 | N61: MWh/m3 | U61: LHV - volume | AA61: =IF(Uit_Proces_LHVv<10,TEXT(Uit_Proces_LHVv,"#.##0,0"),TEXT(Uit_Proces_LHVv,"#.##")) -> 3,4 | AD61: GJ/m3 | AK61: LHV - volume | AQ61: =IF(Uit_Transport_LHVv<10,TEXT(Uit_Transport_LHVv,"#.##0,0"),TEXT(Uit_Transport_LHVv,"#.##")) -> 3,4 | AT61: GJ/m3
E62: LHV - massa | K62: =IF(Uit_Hout_LHVm<10,TEXT(Uit_Hout_LHVm,"#.##0,0"),TEXT(Uit_Hout_LHVm,"#.##")) -> 9,7 | N62: GJ/ton | U62: LHV - massa | AA62: =IF(Uit_Proces_LHVm<10,TEXT(Uit_Proces_LHVm,"#.##0,0"),TEXT(Uit_Proces_LHVm,"#.##")) -> 9,7 | AD62: GJ/ton | AK62: LHV - massa | AQ62: =IF(Uit_Transport_LHVm<10,TEXT(Uit_Transport_LHVm,"#.##0,0"),TEXT(Uit_Transport_LHVm,"#.##")) -> 9,7 | AT62: GJ/ton
E63: Energieinhoud | K63: =IF(Uit_Hout_Doorzet_E<10,TEXT(Uit_Hout_Doorzet_E,"#.##0,0"),TEXT(Uit_Hout_Doorzet_E,"#.##")) -> 34.803 | N63: GJ | U63: Energieinhoud | AA63: =IF(Uit_Proces_Doorzet_E<10,TEXT(Uit_Proces_Doorzet_E,"#.##0,0"),TEXT(Uit_Proces_Doorzet_E,"#.##")) ->  | AD63: GJ | AK63: Energieinhoud | AQ63: =IF(Uit_Transport_Doorzet_E<10,TEXT(Uit_Transport_Doorzet_E,"#.##0,0"),TEXT(Uit_Transport_Doorzet_E,"#.##")) ->  | AT63: GJ
E64: Hoeveelheid | K64: =IF(Uit_Hout_Doorzet_MV<10,TEXT(Uit_Hout_Doorzet_MV,"#.##0,0"),TEXT(Uit_Hout_Doorzet_MV,"#.##")) -> 3.607 | N64: ton | U64: Hoeveelheid | AA64: =IF(Uit_Proces_Doorzet_MV<10,TEXT(Uit_Proces_Doorzet_MV,"#.##0,0"),TEXT(Uit_Proces_Doorzet_MV,"#.##")) ->  | AD64: ton | AK64: Hoeveelheid | AQ64: =IF(Uit_Transport_Doorzet_MV<10,TEXT(Uit_Transport_Doorzet_MV,"#.##0,0"),TEXT(Uit_Transport_Doorzet_MV,"#.##")) ->  | AT64: m3
E65: Energieinhoud/Hoeveelheid | K65: =IF(K63/K64<10,TEXT(K63/K64,"#.##0,0"),TEXT(K63/K64,"#.##")) -> 9,6 | N65: =Uit_Hout_Doorzet_E_Dim&"/"&Uit_Hout_Doorzet_MV_Dim -> GJ/ton | U65: Energieinhoud/Hoeveelheid | AA65: =IF(AA63/AA64<10,TEXT(AA63/AA64,"#.##0,0"),TEXT(AA63/AA64,"#.##")) ->  | AD65: =Uit_Hout_Doorzet_E_Dim&"/"&Uit_Hout_Doorzet_MV_Dim -> GJ/ton | AK65: Energieinhoud/Hoeveelheid | AQ65: =IF(AQ63/AQ64<10,TEXT(AQ63/AQ64,"#.##0,0"),TEXT(AQ63/AQ64,"#.##")) ->  | AT65: =Uit_Hout_Doorzet_E_Dim&"/"&Uit_Hout_Doorzet_MV_Dim -> GJ/ton
E66: Hoeveelheid/Energieinhoud | K66: =IF(K64/K63<10,TEXT(K64/K63,"#.##0,0"),TEXT(K64/K63,"#.##")) -> 0,1 | N66: =Uit_Hout_Doorzet_MV_Dim&"/"&Uit_Hout_Doorzet_E_Dim -> ton/GJ | U66: Hoeveelheid/Energieinhoud | AA66: =IF(AA64/AA63<10,TEXT(AA64/AA63,"#.##0,0"),TEXT(AA64/AA63,"#.##")) ->  | AD66: =Uit_Hout_Doorzet_MV_Dim&"/"&Uit_Hout_Doorzet_E_Dim -> ton/GJ | AK66: Hoeveelheid/Energieinhoud | AQ66: =IF(AQ64/AQ63<10,TEXT(AQ64/AQ63,"#.##0,0"),TEXT(AQ64/AQ63,"#.##")) ->  | AT66: =Uit_Hout_Doorzet_MV_Dim&"/"&Uit_Hout_Doorzet_E_Dim -> ton/GJ

Sheet Verklaring
C2: Algemene Vereniging Inlands Hout | G2: BedriijfsLogo
C3: Kokermolen 11
C4: 3994 DG Houten
C5: Tel. 030 6930040
C6: Email: info@avih.nl
C8: =Hout_Omschrijving -> Levering Biomassacentrale Texel
C11: Leveringsomvang
C12: Oogstsmateriaal | D12: =Hout_Soort -> Loofhout mix NL
C13: Oogstvorm | D13: =Hout_Vorm -> Top- en takhout | E13: Geleverd | F13: =Proces_Vorm -> Chips G50/P31,5
C14: Vochtigheid | D14: =Hout_Vochtigheid&" %" -> 50 % | E14: Vochtigheid | F14: =Transport_Vochtigheid&" %" -> 50 % | J14: Dimensie
C15: Aangevoerd | D15: =IF(K15<1,IF(K15<0.005,"0,00",TEXT(K15,"#.##0,00")), IF(K15<10,IF(K15<0.05,"0,0",TEXT(K15,"#.##0,0")), IF(K15<50,IF(K15<0.5,"0",TEXT(K15,"#.##")), IF(K15<0.5,"0",TEXT(K15,"#.##")))))&" "&J15 -> 3.607 ton | E15: Hoeveelheid | F15: =IF(L15<1,IF(L15<0.005,"0,00",TEXT(L15,"#.##0,00")), IF(L15<10,IF(L15<0.05,"0,0",TEXT(L15,"#.##0,0")), IF(L15<50,IF(L15<0.5,"0",TEXT(L15,"#.##")), IF(L15<0.5,"0",TEXT(L15,"#.##")))))&" "&J15 -> 3.534 ton | J15: ton | K15: =IF(J15="m3",Uit_Hout_Doorzet_m3, IF(J15="kg",Uit_Hout_Doorzet_kg, IF(J15="kgds",Uit_Hout_Doorzet_kgds, IF(J15="ton",Uit_Hout_Doorzet_ton, IF(J15="tonds",Uit_Hout_Doorzet_tonds, IF(J15="MJ",Uit_Hout_Doorzet_MJ, IF(J15="GJ",Uit_Hout_Doorzet_GJ, IF(J15="kWh",Uit_Hout_Doorzet_kWh, IF(J15="MWh",Uit_Hout_Doorzet_MWh,))))))))) -> 3606.549796 | L15: =IF(J15="m3",Uit_Transport_Doorzet_m3, IF(J15="kg",Uit_Transport_Doorzet_kg, IF(J15="kgds",Uit_Transport_Doorzet_kgds, IF(J15="ton",Uit_Transport_Doorzet_ton, IF(J15="tonds",Uit_Transport_Doorzet_tonds, IF(J15="MJ",Uit_Transport_Doorzet_MJ, IF(J15="GJ",Uit_Transport_Doorzet_GJ, IF(J15="kWh",Uit_Transport_Doorzet_kWh, IF(J15="MWh",Uit_Transport_Doorzet_MWh,))))))))) -> 3534.4188
C17: CO2 emissiefactoren | D17: Proces/Transport | E17: EU-dimensie
C18: Proces | D18: =Proces_Omschrijving -> Chippen | E18: =TEXT(Uit_Proces_Verbrandingsmotor_CO2T_g_MJ+Uit_Proces_Elektromotor_CO2T_g_MJ,"#.##0,0")&" gCO2eq/MJ" -> 1,1 gCO2eq/MJ | F18: =IF(K18<1,IF(K18<0.005,"0,00",TEXT(K18,"#.##0,00")), IF(K18<10,IF(K18<0.05,"0,0",TEXT(K18,"#.##0,0")), IF(K18<50,IF(K18<0.5,"0",TEXT(K18,"#.##")), IF(K18<0.5,"0",TEXT(K18,"#.##")))))&" "&J18 -> 21 kgCO2eq/tonds | J18: kgCO2eq/tonds | K18: =IF(J18="gCO2eq/MJ",(Uit_Proces_Verbrandingsmotor_CO2T_g_MJ+Uit_Proces_Elektromotor_CO2T_g_MJ), IF(J18="kgCO2eq/tonds",(Uit_Proces_Verbrandingsmotor_CO2T_kg_tonds+Uit_Proces_Elektromotor_CO2T_kg_tonds), IF(J18="kgCO2eq",(Uit_Proces_Verbrandingsmotor_CO2T_kg+Uit_Proces_Elektromotor_CO2T_kg), IF(J18="tonCO2eq",(Uit_Proces_Verbrandingsmotor_CO2T_ton+Uit_Proces_Elektromotor_CO2T_ton), IF(J18="MtonCO2eq",(Uit_Proces_Verbrandingsmotor_CO2T_Mton+Uit_Proces_Elektromotor_CO2T_Mton),))))) -> 21.46025667
C19: Transport | D19: =Transport_Afstand&" km enkele reis" -> 50 km enkele reis | E19: =TEXT(Uit_Transport_Verbrandingsmotor_CO2T_g_MJ+Uit_Transport_Elektromotor_CO2T_g_MJ,"#.##0,0")&" gCO2eq/MJ" -> 0,3 gCO2eq/MJ | F19: =IF(K19<1,IF(K19<0.005,"0,00",TEXT(K19,"#.##0,00")), IF(K19<10,IF(K19<0.05,"0,0",TEXT(K19,"#.##0,0")), IF(K19<50,IF(K19<0.5,"0",TEXT(K19,"#.##")), IF(K19<0.5,"0",TEXT(K19,"#.##")))))&" "&J19 -> 0,28 gCO2eq/tkm | J19: gCO2eq/tkm | K19: =IF(J19="gCO2eq/MJ",(Uit_Transport_Verbrandingsmotor_CO2T_g_MJ+Uit_Transport_Elektromotor_CO2T_g_MJ), IF(J19="gCO2eq/tkm",(Uit_Transport_Verbrandingsmotor_CO2T_g_tkm+Uit_Transport_Elektromotor_CO2T_g_tkm), IF(J19="kgCO2eq/tonds",(Uit_Transport_Verbrandingsmotor_CO2T_kg_tonds+Uit_Transport_Elektromotor_CO2T_kg_tonds), IF(J19="kgCO2eq",(Uit_Transport_Verbrandingsmotor_CO2T_kg+Uit_Transport_Elektromotor_CO2T_kg), IF(J19="tonCO2eq",(Uit_Transport_Verbrandingsmotor_CO2T_ton+Uit_Transport_Elektromotor_CO2T_ton), IF(J19="MtonCO2eq",(Uit_Transport_Verbrandingsmotor_CO2T_Mton+Uit_Transport_Elektromotor_CO2T_Mton),)))))) -> 0.2771908892
C20: Overige | E20: =TEXT(Uit_Proces_Basis_CO2T_g_MJ+Uit_Transport_Basis_CO2T_g_MJ,"#.##0,0")&" gCO2eq/MJ" -> 0,3 gCO2eq/MJ | F20: =IF(K20<1,IF(K20<0.005,"0,00",TEXT(K20,"#.##0,00")), IF(K20<10,IF(K20<0.05,"0,0",TEXT(K20,"#.##0,0")), IF(K20<50,IF(K20<0.5,"0",TEXT(K20,"#.##")), IF(K20<0.5,"0",TEXT(K20,"#.##")))))&" "&J20 -> 5,7 kgCO2eq/tonds | J20: kgCO2eq/tonds | K20: =IF(J20="gCO2eq/MJ",(Uit_Proces_Basis_CO2T_g_MJ+Uit_Transport_Basis_CO2T_g_MJ), IF(J20="kgCO2eq/tonds",(Uit_Proces_Basis_CO2T_kg_tonds+Uit_Transport_Basis_CO2T_kg_tonds), IF(J20="kgCO2eq",(Uit_Proces_Basis_CO2T_kg+Uit_Transport_Basis_CO2T_kg), IF(J20="tonCO2eq",(Uit_Proces_Basis_CO2T_ton+Uit_Transport_Basis_CO2T_ton), IF(J20="tonCO2eq",(Uit_Proces_Basis_CO2T_tonds+Uit_Transport_Basis_CO2T_tonds),))))) -> 5.658638982
C21: Totaal | E21: =TEXT(Uit_Proces_Verbrandingsmotor_CO2T_g_MJ+Uit_Proces_Elektromotor_CO2T_g_MJ+ Uit_Transport_Verbrandingsmotor_CO2T_g_MJ+Uit_Transport_Elektromotor_CO2T_g_MJ+ Uit_Proces_Basis_CO2T_g_MJ+Uit_Transport_Basis_CO2T_g_MJ,"#.##0,0")&" gCO2eq/MJ" -> 1,7 gCO2eq/MJ | J21: gCO2eq/MJ | K21: =IF(J21="gCO2eq/MJ",(Uit_Proces_Verbrandingsmotor_CO2T_g_MJ+Uit_Proces_Elektromotor_CO2T_g_MJ), IF(J21="kgCO2eq/ton",(Uit_Proces_Verbrandingsmotor_CO2T_kg_tonds+Uit_Proces_Elektromotor_CO2T_kg_tonds), IF(J21="kgCO2eq",(Uit_Proces_Verbrandingsmotor_CO2T_kg+Uit_Proces_Elektromotor_CO2T_kg), IF(J21="tonCO2eq",(Uit_Proces_Verbrandingsmotor_CO2T_ton+Uit_Proces_Elektromotor_CO2T_ton), IF(J21="tonCO2eq",(Uit_Proces_Verbrandingsmotor_CO2T_tonds+Uit_Proces_Elektromotor_CO2T_tonds),))))) -> 1.111930398
C24: Vergelijkbare keten NL/EU | D24: =Hout_Keten_NL -> 1a-Chips uit top- en tak hout uit bos of landschap | F24: =Hout_Keten_EU -> 1a-Woodchips from forest residues
E25: NL-keten1 | F25: EU-keten2
C26: De CO2eq emissies | D26: Proces | E26: =TEXT(Keten_NL_Proces_CO2,"#.##0,0")&" gCO2eq/MJ" -> 1,5 gCO2eq/MJ | F26: =TEXT(Keten_EU_Proces_CO2,"#.##0,0")&" gCO2eq/MJ" -> 1,8 gCO2eq/MJ
D27: Transport | E27: =TEXT(Keten_NL_Transport_CO2,"#.##0,0")&" gCO2eq/MJ" -> 0,9 gCO2eq/MJ | F27: =TEXT(Keten_EU_Transport_CO2,"#.##0,0")&" gCO2eq/MJ" -> 3,0 gCO2eq/MJ
D28: Totaal | E28: =TEXT(Keten_NL_Transport_CO2+Keten_NL_Proces_CO2,"#.##0,0")&" gCO2eq/MJ" -> 2,4 gCO2eq/MJ | F28: =TEXT(Keten_EU_Transport_CO2+Keten_EU_Proces_CO2,"#.##0,0")&" gCO2eq/MJ" -> 4,8 gCO2eq/MJ
C30: De NL-keten is gebaseerd op | D30: CO2 emissiefactoren voor Nederlandse houtige biobrandstoffen en -grondstoffen.
D31: Rapport AVIH 2018
C32: De EU-keten is gebaseerd op | D32: BioGrace-II / JRC
C35: Datum: | D35: =TODAY() -> 2018-03-28
C36: Plaats | D36: Houten

Sheet Details
B2: Algemene Vereniging Inlands Hout | I2: BedriijfsLogo
B3: Kokermolen 11
B4: 3994 DG Houten
B5: Tel. 030 6930040
B6: Email: info@avih.nl
B9: =Hout_Omschrijving -> Levering Biomassacentrale Texel | G9: ="Berekening: " -> Berekening:
G10: ="Datum: " -> Datum: | H10: =TODAY() -> 2018-03-28
B13: Invoer | C13: Biomassa | D13: % | E13: Proces | F13: % | G13: Transport | H13: % | I13: Dimensie
B14: Houtsoort | C14: =Hout_Soort -> Loofhout mix NL | E14: =Hout_Soort -> Loofhout mix NL | G14: =Hout_Soort -> Loofhout mix NL
B15: Vorm | C15: =Hout_Vorm -> Top- en takhout | E15: =Proces_Vorm -> Chips G50/P31,5 | G15: =Transport_Vorm -> Chips G50/P31,5
B16: Vochtigheid / vochtgehalte | C16: =Hout_Vochtigheid -> 50 | E16: =Proces_Vochtigheid -> 50 | G16: =Transport_Vochtigheid -> 50 | I16: %
B17: Doorzet | C17: =Uit_Hout_Doorzet_m3 -> 11224.4898 | D17: =C17/C17*100 -> 100 | E17: =Uit_Proces_Doorzet_m3 -> 10000 | F17: =E17/C17*100 -> 89.09090909 | G17: =Uit_Transport_Doorzet_m3 -> 10000 | H17: =G17/C17*100 -> 89.09090909 | I17: m3
C18: =Uit_Hout_Doorzet_kg -> 3606549.796 | D18: =C18/C18*100 -> 100 | E18: =Uit_Proces_Doorzet_kg -> 3534418.8 | F18: =E18/C18*100 -> 98 | G18: =Uit_Transport_Doorzet_kg -> 3534418.8 | H18: =G18/C18*100 -> 98 | I18: kg
C19: =Uit_Hout_Doorzet_kgds -> 1803274.898 | D19: 100 | E19: =Uit_Proces_Doorzet_kgds -> 1767209.4 | F19: 98 | G19: =Uit_Transport_Doorzet_kgds -> 1767209.4 | H19: 98 | I19: kgds
C20: =Uit_Hout_Doorzet_ton -> 3606.549796 | D20: 100 | E20: =Uit_Proces_Doorzet_ton -> 3534.4188 | F20: 98 | G20: =Uit_Transport_Doorzet_ton -> 3534.4188 | H20: 98 | I20: ton
C21: =Uit_Hout_Doorzet_tonds -> 1803.274898 | D21: 100 | E21: =Uit_Proces_Doorzet_tonds -> 1767.2094 | F21: 98 | G21: =Uit_Transport_Doorzet_tonds -> 1767.2094 | H21: 98 | I21: tonds
C22: =Uit_Hout_Doorzet_MJ -> 34803205.53 | D22: 100 | E22: =Uit_Proces_Doorzet_MJ -> 34107141.42 | F22: 98 | G22: =Uit_Transport_Doorzet_MJ -> 34107141.42 | H22: 98 | I22: MJ
C23: =Uit_Hout_Doorzet_GJ -> 34803.20553 | D23: 100 | E23: =Uit_Proces_Doorzet_GJ -> 34107.14142 | F23: 98 | G23: =Uit_Transport_Doorzet_GJ -> 34107.14142 | H23: 98 | I23: GJ
C24: =Uit_Hout_Doorzet_MWh -> 9667.557092 | D24: 100 | E24: =Uit_Proces_Doorzet_MWh -> 9474.20595 | F24: 98 | G24: =Uit_Transport_Doorzet_MWh -> 9474.20595 | H24: 98 | I24: MWh
C25: =Uit_Hout_Doorzet_kWh -> 9667557.092 | D25: 100 | E25: =Uit_Proces_Doorzet_kWh -> 9474205.95 | F25: 98 | G25: =Uit_Transport_Doorzet_kWh -> 9474205.95 | H25: 98 | I25: kWh
G26: =Uit_Transport_TonKilometer_tonkm -> 37376478.81 | I26: tonkm
B28: Uitvoer | C28: Biomassa | E28: Proces | G28: Transport | I28: Dimensie
B29: Dichtheid massief | C29: =Hout_RHO_VF1 -> 1071.036 | E29: =Proces_RHO_VF1 -> 1071.036 | G29: =Transport_RHO_VF1 -> 1071.036 | I29: kg/m3
B30: Vulling (houtvolume in m3 per m3) | C30: =Hout_Vorm_Vulling -> 0.3 | E30: =Proces_Vorm_Vulling -> 0.33 | G30: =Transport_Vorm_Vulling -> 0.33 | I30: m3/m3
B31: Dichtheid bij vorm | C31: =Hout_RHO -> 321.3108 | E31: =Proces_RHO -> 353.44188 | G31: =Transport_RHO -> 353.44188 | I31: kg/m3
B32: LHV - volume | C32: =Uit_Hout_LHVv -> 0.86129145 | E32: =Uit_Proces_LHVv -> 3.410714142 | G32: =Uit_Transport_LHVv -> 3.410714142 | I32: =Hout_LHVv_Dim -> MWh/m3
B33: LHV - massa | C33: =Uit_Hout_LHVm -> 9.65 | E33: =Uit_Proces_LHVm -> 9.65 | G33: =Uit_Transport_LHVm -> 9.65 | I33: =Hout_LHVm_Dim -> GJ/ton
B34: Energieinhoud | C34: =Uit_Hout_Doorzet_GJ -> 34803.20553 | E34: =Uit_Proces_Doorzet_GJ -> 34107.14142 | G34: =Uit_Transport_Doorzet_GJ -> 34107.14142 | I34: =Uit_Hout_Doorzet_E_Dim -> GJ
B35: Hoeveelheid | C35: =Uit_Hout_Doorzet_ton -> 3606.549796 | E35: =Uit_Proces_Doorzet_ton -> 3534.4188 | G35: =Uit_Transport_Doorzet_ton -> 3534.4188 | I35: =Uit_Hout_Doorzet_MV_Dim -> ton
B36: Energieinhoud/Hoeveelheid | C36: =C34/C35 -> 9.65 | E36: =E34/E35 -> 9.65 | G36: =G34/G35 -> 9.65 | I36: =Uit_Hout_Doorzet_E_Dim&"/"&Uit_Hout_Doorzet_MV_Dim -> GJ/ton
B37: Hoeveelheid/Energieinhoud | C37: =C35/C34 -> 0.103626943 | E37: =E35/E34 -> 0.103626943 | G37: =G35/G34 -> 0.103626943 | I37: =Uit_Hout_Doorzet_MV_Dim&"/"&Uit_Hout_Doorzet_E_Dim -> ton/GJ
B40: Invoer | C40: Biomassa | E40: Proces | G40: Transport | I40: Dimensie
B41: Omschrijving | E41: =Proces_Omschrijving -> Chippen | G41: =Transport_Omschrijving -> Transport naar afnemer
B42: Houtvorm | C42: =Hout_Vorm -> Top- en takhout | E42: =Proces_Vorm -> Chips G50/P31,5 | G42: =E42 -> Chips G50/P31,5
B43: Houtverlies | C43: 0 | E43: =Proces_Houtverlies -> -2 | G43: =Transport_Houtverlies -> 0 | I43: %
B44: Δ vochtigheid | C44: 0 | E44: =Proces_Delta_Vochtigheid -> 0 | G44: =Transport_Delta_Vochtigheid -> 0 | I44: %
B46: Afstand - enkele reis | G46: =Transport_Afstand -> 50 | I46: km
B47: Laadvermogen | G47: =Transport_Laadvermogen_ton -> 25 | I47: =Transport_Laadvermogen_Dim -> ton
B48: Belading heen | G48: =Transport_Belading_Heen -> 100 | I48: %
B49: Snelheid | G49: =Transport_Snelheid_km_uur -> 55 | I49: km/uur
B51: Aandrijving | E51: =IF(Proces_Verbrandingsmotor_Ja_Nee="Nee","Geen aandrijving","Verbrandingsmotor") -> Verbrandingsmotor | G51: Verbrandingsmotor
B52: Werktuig / voertuig | E52: =Proces_Verbrandingsmotor_Type -> Chipper | G52: =Transport_Verbrandingsmotor_Type -> Vrachtauto DAF 250
B53: Brandstof | E53: =Proces_Verbrandingsmotor_Brandstof -> EU-Diesel | G53: =Transport_Verbrandingsmotor_Brandstof -> EU-Diesel
B54: Euronorm | E54: =Proces_Verbrandingsmotor_Euronorm -> Euro 5 | G54: =Transport_Verbrandingsmotor_Euronorm -> Euro 6
B55: Brandstofverbruik | E55: =Proces_Verbrandingsmotor_Verbruik&" "&Proces_Verbrandingsmotor_Verbruik_Dim -> 50 liter/uur | G55: =Transport_Verbrandingsmotor_Verbruik&" "&Transport_Verbrandingsmotor_Verbruik_Dim -> 30 liter/100km
B56: Inzet Verbrandingsmotor | E56: =Proces_Verbrandingsmotor_Inzet&" " &Proces_Verbrandingsmotor_Inzet_Dim -> 50 m3/uur
B57: CO2 emissie | E57: =Uit_Proces_Verbrandingsmotor_CO2T_g_MJ -> 1.074724113 | G57: =Uit_Transport_Verbrandingsmotor_CO2T_g_MJ -> 0.3037610004 | I57: gCO2eq/MJ
B58: CO2 emissie | G58: =Uit_Transport_Verbrandingsmotor_CO2T_g_tkm -> 0.2771908892 | I58: gCO2eq/tkm
B59: CO2 emissie | E59: =Uit_Proces_Verbrandingsmotor_CO2T_kg -> 36655.76732 | G59: =Uit_Transport_Verbrandingsmotor_CO2T_kg -> 10360.4194 | I59: kgCO2eq
B60: CO2 emissie | E60: =Uit_Proces_Verbrandingsmotor_CO2T_kg_tonds -> 20.74217539 | G60: =Uit_Transport_Verbrandingsmotor_CO2T_kg_tonds -> 5.862587308 | I60: kgCO2eq/tonds
B61: CO2 emissie | E61: =Uit_Proces_Verbrandingsmotor_CO2T_ton -> 36.65576732 | G61: =Uit_Transport_Verbrandingsmotor_CO2T_ton -> 10.3604194 | I61: tonCO2eq
B62: CO2 emissie | E62: =Uit_Proces_Verbrandingsmotor_CO2T_Mton -> 0.03665576732 | G62: =Uit_Transport_Verbrandingsmotor_CO2T_Mton -> 0.0103604194 | I62: MtonCO2eq
B64: Aandrijving | E64: =IF(Proces_Elektromotor_Ja_Nee="Nee","Geen elektrische aandrijving","Elektromotor") -> Elektromotor | G64: =IF(Transport_Elektromotor_Ja_Nee="Nee","Geen elektrische aandrijving","Elektromotor") -> Geen elektrische aandrijving
B65: Werktuig | E65: =Proces_Elektromotor_Werktuig -> Hulpaandrijving | G65: =IF(Transport_Elektromotor_Ja_Nee="Nee","",Transport_Verbrandingsmotor_Type) -> 
B66: Stroombron | E66: =Proces_Elektromotor_Stroombron -> EU-Elektriciteit NL | G66: =IF(Transport_Elektromotor_Ja_Nee="Nee","",Transport_Elektromotor_Stroombron) -> 
B67: Vermogen - Stroomverbruik | E67: =Proces_Elektromotor_VermogenVerbruik&" "&Proces_Elektromotor_VermogenVerbruik_Dim -> 2500 kWh | G67: =Transport_Elektromotor_VermogenVerbruik&" "&Transport_Elektromotor_VermogenVerbruik_Dim -> 
B68: Inzet Elektromotor | E68: =Proces_Elektromotor_Capaciteit&" "&Proces_Elektromotor_Capaciteit_Dim -> 50 m3/uur
B69: CO2 emissie | E69: =Uit_Proces_Elektromotor_CO2T_g_MJ -> 0.03720628429 | G69: =Uit_Transport_Elektromotor_CO2T_g_MJ -> 0 | I69: gCO2eq/MJ
B70: CO2 emissie | G70: =Uit_Transport_Elektromotor_CO2T_g_tkm -> 0 | I70: gCO2eq/tkm
B71: CO2 emissie | E71: =Uit_Proces_Elektromotor_CO2T_kg -> 1269 | G71: =Uit_Transport_Elektromotor_CO2T_kg -> 0 | I71: kgCO2eq
B72: CO2 emissie | E72: =Uit_Proces_Elektromotor_CO2T_kg_tonds -> 0.7180812868 | G72: =Uit_Transport_Elektromotor_CO2T_kg_tonds -> 0 | I72: kgCO2eq/tonds
B73: CO2 emissie | E73: =Uit_Proces_Elektromotor_CO2T_ton -> 1.269 | G73: =Uit_Transport_Elektromotor_CO2T_ton -> 0 | I73: tonCO2eq
B74: CO2 emissie | E74: =Uit_Proces_Elektromotor_CO2T_Mton -> 0.001269 | G74: =Uit_Transport_Elektromotor_CO2T_Mton -> 0 | I74: MtonCO2eq
B76: Totaal CO2eq | E76: =E57+E69 -> 1.111930398 | G76: =G57+G69 -> 0.3037610004 | I76: gCO2eq/MJ

Sheet Blad1 (hidden)

Sheet Invoer (hidden)
C2: = Invoergegeven
J3: Stap 1 | M3: Stap 2 | P3: Stap 3 | S3: Stap 4 | V3: Stap 5 | Y3: Stap 6
B6: Biomassa | C6: Omschrijving | E6: =Hout_Omschrijving -> Levering Biomassacentrale Texel
C7: Houtsoort | E7: =Hout_Soort -> Loofhout mix NL
C8: Houtvorm | E8: =Hout_Vorm -> Top- en takhout
C9: Vochtigheid / vochtgehalte | E9: =Hout_Vochtigheid -> 50 | F9: %
C10: Hoeveelheid | E10: =Hout_Doorzet_Oogst_Eindgebruiker -> 10000 | F10: =Hout_Doorzet_Dim -> m3
B12: Keten | C12: Keten-NL | E12: =Hout_Keten_NL -> 1a-Chips uit top- en tak hout uit bos of landschap
C13: Detail ketenstap nummer | E13: =Hout_Keten_Stap_Detail_Nr -> 1
C14: Dimensie keten CO2 emissie | E14: =Uit_NL_EU_Keten_CO2_Dim -> gCO2eq/MJ
B17: Proces | C17: Opmerkingen | E17: =Proces_Opmerkingen -> Er wordt per keer zoveel gechipt als in de bunker past: 80/85 m3. Kosten 3 uur chipper 250 €/uur (veel kosten voor heen en weer rijden, vanwege kleine hoeveelheid).
C18: Omschrijving | E18: =Proces_Omschrijving -> Chippen
C19: Houtvorm proces | E19: =Proces_Vorm -> Chips G50/P31,5
C20: Verandering Houthoeveelheid | E20: =Proces_Houtverlies -> -2 | F20: %
C21: Verandering Houtvochtigheid | E21: =Proces_Delta_Vochtigheid -> 0 | F21: %
C23: Gebruik verbrandings motor | E23: Ja
C24: Werktuig | E24: =Proces_Verbrandingsmotor_Type -> Chipper
C25: Capaciteit werktuig | E25: =Proces_Verbrandingsmotor_Inzet -> 50 | F25: =Proces_Verbrandingsmotor_Inzet_Dim -> m3/uur
C26: Stroombron | E26: =Proces_Verbrandingsmotor_Brandstof -> EU-Diesel
E27: =Proces_Verbrandingsmotor_Euronorm -> Euro 5
E28: =Proces_Verbrandingsmotor_Verbruik -> 50 | F28: =Proces_Verbrandingsmotor_Verbruik_Dim -> liter/uur
C30: Gebruik elektromotor | E30: Ja
C31: Werktuig | E31: =Proces_Elektromotor_Werktuig -> Hulpaandrijving
C32: Capaciteit werktuig | E32: =Proces_EVerbrandingsmotor_Inzet ->  | F32: =Proces_Verbrandingsmotor_Inzet_Dim -> m3/uur
C33: Brandstof | E33: =Proces_Verbrandingsmotor_Brandstof -> EU-Diesel
C34: Euronorm/Categorie | E34: =Proces_Verbrandingsmotor_Euronorm -> Euro 5
C35: Brandstofverbruik | E35: =Proces_Verbrandingsmotor_Verbruik -> 50 | F35: =Proces_Verbrandingsmotor_Verbruik_Dim -> liter/uur
C37: Basis CO2 productie | E37: =Proces_CO2_Productie_Basis -> 10000 | F37: =Proces_CO2_Productie_Basis_Dim -> kgCO2eq
C39: CO2 gebaseerd op | E39: =Uit_Proces_Invoer_Uitvoer_Dim -> Uitvoer
B45: Transport | C45: Opmerkingen | E45: =Transport_Opmerkingen -> Vrachtwagens komen leeg terug
C46: Omschrijving | E46: =Transport_Omschrijving -> Transport naar afnemer
C47: Verandering Houthoeveelheid | E47: =Transport_Houtverlies -> 0 | F47: %
C48: Verandering Houtvochtigheid | E48: =Transport_Delta_Vochtigheid -> 0 | F48: %
C50: Afstand - enkele reis | E50: =Transport_Afstand -> 50 | F50: =Transport_Afstand_Dim -> km
C51: Laadvermogen | E51: =Transport_Laadvermogen_ton -> 25 | F51: =Transport_Laadvermogen_Dim -> ton
C52: Belading heen (terug = leeg) | E52: =Transport_Belading_Heen -> 100 | F52: %
C53: Snelheid | E53: =Transport_Snelheid_km_uur -> 55 | F53: km/uur
C56: Voertuig | E56: =Proces_Elektromotor_Werktuig -> Hulpaandrijving
C57: Brandstof | E57: =Transport_Verbrandingsmotor_Brandstof -> EU-Diesel
C58: Euronorm/Categorie | E58: =Proces_Verbrandingsmotor_Euronorm -> Euro 5
C59: Brandstofverbruik | E59: =Transport_Verbrandingsmotor_Verbruik -> 30 | F59: =Transport_Verbrandingsmotor_Verbruik_Dim -> liter/100km
C61: Gebruik elektromotor | E61: Ja
C62: Voertuig | E62: =Transport_Elektromotor_Type -> 0
C63: Brandstof | E63: =Transport_Verbrandingsmotor_Brandstof -> EU-Diesel
C64: Brandstofverbruik | E64: =Transport_Verbrandingsmotor_Verbruik -> 30 | F64: =Transport_Verbrandingsmotor_Verbruik_Dim -> liter/100km
C66: Basis CO2 productie | E66: =Transport_CO2_Productie_Basis -> 0 | F66: =Transport_CO2_Productie_Basis_Dim -> gCO2eq/tkm
C68: CO2 gebaseerd op | E68: =Uit_Transport_Invoer_Uitvoer_Dim -> Uitvoer

Sheet 1 Chips, top, tak (hidden)
B2: Keten | D2: 1 | E2: Chips uit top en tak hout uit het bos | Y2: ="Keten - "&'Ketens-Berekend'!E8 -> Keten - 1a | AY2: ='Ketens-Berekend'!C8 -> 1a-Chips uit top- en tak hout uit bos of landschap
B4: Omschrijving verschillen EU - NL | H4: Proces- en transportstappen | N4: Samenvatting CO2eq emissiefactoren
N5: Proces | P5: JRC | Q5: JRC | R5: NL | T5: Eenheid | Y5: Samenvatting | AJ5: Bos of landschap | AZ5: Proces- en transportstappen | BL5: Doorzet | BO5: CO2eq-Emissies | BW5: Toelichting
AJ6: NL | AM6: =Keten_EU -> EU | BO6: EU | BR6: NL | BW6: EU | CI6: NL
BL7: MJ | BO7: MJdiesel/MJhout
AJ8: MJchips | BK8: Biomassa uit bos of landschap | BL8: =BL10 -> 1.078947368
B9: Hieronder staan ‘dataset’, proces- en transportstappen beschreven zoals erkend als representatief voor de Europese Unie (JRC 2014 en 2017). Dit is de 'typische' waarde voor Europa. De 'typische' NL-praktijk verschilt hier: P1: er wordt niet gebundeld en er worden geen stobben geoogst. (JRC-waarde is voor NL aangehouden, vanwege onvoldoende data voor berekenen alternatief) P2: hout wordt meestal niet gedroogd langs de weg en vrijwel direct gechipt en met een vochtigheid (M45) aan de klant geleverd. (NL) T1: Transport is in een straal van maximaal 150 km met een walkingfloor trailer of containers (27 ton laadvermogen). (NL) | H9: P1 Inzamelen van top- en takhout | M9: P1 | N9: Inzamelen | P9: =E142*#REF!*#REF! ->  | Q9: =E142*#REF!*#REF! ->  | R9: =Q9 ->  | T9: kg/tonds chips | AZ9: P1 Inzamelen van top- en takhout | BO9: =IF(BO7="kgCO2/tonds",DF39*CP204*CP221) -> FALSE | BR9: =DF45*CP204*CP221 -> 14.77553684
BL10: =BL12*CP204 -> 1.078947368
H11: P2 Drogen langs de weg | M11: P2 | N11: Opslag | T11: kg/tonds chips | AB11: NL | AJ11: ='Ketens-Berekend'!C8 -> 1a-Chips uit top- en tak hout uit bos of landschap | AR11: =Keten_NL ->  | AZ11: P2 Drogen langs de weg
AB12: EU | AR12: =Keten_EU -> EU | BL12: =CP221 -> 1.025
H13: P3 Chippen | M13: P3 | N13: Chippen | P13: =#REF! ->  | Q13: =#REF! ->  | R13: =#REF! ->  | T13: kg/tonds chips | AZ13: P3 Chippen | BO13: =CP226*CP221 -> 6.217407383 | BR13: =CP230*CP221 -> 14.03676
N14: Subtotaal proces | Q14: =SUM(Q9:Q13) ->  | R14: =SUM(R9:R13) ->  | T14: kg/tonds chips | BL14: 1
N15: Subtotaal proces | Q15: =E141*#REF!*#REF!+#REF!*#REF! ->  | R15: =Q15 ->  | T15: g/MJchips | AZ15: T1 Transport chips naar afnemer | BO15: =BQ118 -> 57 | BR15: =BQ124 -> 4.125675676
AJ16: NL | AM16: =Keten_EU -> EU | BK16: Biomassa naar eindgebruiker | BL16: 1
N17: Transport | P17: JRC-min | Q17: JRC-max | R17: NL | AZ17: Totaal Processen | BO17: =SUM(BO9:BQ13) -> 6.217407383 | BR17: =SUM(BR9:BT13) -> 28.81229684
H18: T1 Transport chips naar afnemer | M18: T1 | N18: Transport naar afnemer | P18: =#REF! ->  | Q18: =#REF! ->  | R18: =#REF! ->  | T18: kg/tonds chips | AJ18: MJhout | AZ18: Totaal Transporten | BO18: =BO15 -> 57 | BR18: =BR15 -> 4.125675676
AJ19: Eindverbruik | AZ19: Totaal | BE19: kgCO2/tondschips | BO19: =BO17+BO18 -> 63.21740738 | BR19: =BR17+BR18 -> 32.93797252
AZ20: Totaal | BE20: gCO2/MJchips | BO20: =BO19/$CU$121 -> 3.327231967 | BR20: =BR19/$CU$121 -> 1.733577501
AJ27: NL | AK27: 30 | AM27: 1 | BF27: NL | BI27: EU | BL27: Eenheid
AJ28: =Keten_EU -> EU | AK28: 30 | AM28: 1 | BB28: Houtdoorzet | BF28: 1 | BI28: 1 | BL28: MJ
AK29: % | AM29: m3 | BB29: Vochtigheid | BF29: 45 | BI29: 30 | BL29: %
BF34: NL | BI34: EU | BL34: Eenheid | BR34: EU | CD34: NL | CS34: P1 | CU34: =LOOKUP(AY2,Lijst_NL_Keten_Nr_Titel,Lijst_NL_Keten_Stap1_Titel) -> 
BB35: Diesel | BF35: 1 | BI35: 1 | BL35: MJ | BR35: De data voor proces- en transportstappen zijn erkend als representatief voor de Europese Unie (JRC 2014 en 2017). Dit is de 'typische' waarden voor Europa. | CD35: P1: er wordt niet gebundeld en er worden geen stobben geoogst. (voor NL is de JRC waarde aangehouden, vanwege onvoldoende data voor het berekenen van de NL situatie) P2: hout wordt meestal niet gedroogd langs de weg en vrijwel direct gechipt en met een vochtigheid (M45) aan de klant geleverd. (NL) P3: In NL wordt vooral chipper met diesel langs de weg gechipt. T1: Transport is in een straal van maximaal 150 km met een walkingfloor trailer of 2 containers (27 ton laadvermogen). (NL) | CX35: I/O | DA35: Eenheid | DF35: Waarde | DJ35: Bron
AB36: =Keten_NL ->  | AC36: 100 | AE36: 2.5 | AJ36: ="P1 - "& LOOKUP(AY2,Lijst_NL_Keten_Nr_Titel,Lijst_NL_Keten_Stap1_Titel) ->  | AR36: =Keten_NL ->  | BB36: Afstand | BF36: 120 | BI36: 500 | BL36: km | CS36: EU | CU36: Hout | CX36: Input | DA36: MJin/MJout | DF36: 1 | DJ36: 1
AB37: =Keten_EU -> EU | AC37: 500 | AE37: 5 | AR37: =Keten_EU -> EU | CU37: Diesel | CX37: Input | DA37: MJ/MJhout | DF37: 0.01202216749 | DJ37: 1
AB38: =Keten_NL ->  | AC38: km | AE38: liter | AR38: =Keten_NL ->  | AU38: gCO2/MJ | BF38: NL | BI38: EU | BL38: Eenheid | CU38: CO2 | CX38: Output | DA38: gCOeq/Mjhout | DF38: =CP190*$CU$117 -> 1.143308128
BB39: CO2 | BF39: 1 | BI39: 1 | BL39: MJ | CU39: CO2 | CX39: Output | DA39: kgCO2eq/tonds | DF39: =DF38*$R$189 -> 21.72285443
BB40: Afstand | BF40: 120 | BI40: 500 | BL40: km | CS40: NL | CU40: Hout | CX40: Input | DA40: MJhout | DF40: 0.01202216749 | DJ40: 1
CU41: Hout | CX41: Output | DA41: MJhout | DF41: 0.01202216749 | DJ41: 1
CU42: Diesel | CX42: Input | DA42: MJ/MJhout | DF42: =DF43*CU122/CU121/1000 -> 0.007578947368 | DJ42: 2
CU43: Diesel | CX43: Input | DA43: liter/tonds | DF43: 4 | DJ43: 2
CU44: CO2 | CX44: Output | DA44: gCOeq/Mjhout | DF44: =DF42*$CU$117 -> 0.7207578947
AJ45: NL | AK45: 30 | AM45: 1 | BF45: NL | BI45: EU | BL45: Eenheid | CU45: CO2 | CX45: Output | DA45: kgCO2eq/tonds | DF45: =DF44*$R$189 -> 13.6944
AJ46: =Keten_EU -> EU | AK46: 30 | AM46: 1 | BB46: Houtdoorzet | BF46: 1 | BI46: 1 | BL46: MJ
AK47: % | AM47: MJ | BB47: Vochtigheid | BF47: 45 | BI47: 30 | BL47: %
BF52: NL | BI52: EU | BL52: Eenheid
BB53: Diesel | BF53: 1 | BI53: 1 | BL53: MJ
AB54: =Keten_NL ->  | AC54: 100 | AE54: 2.5 | AJ54: =LOOKUP(AY2,Lijst_NL_Keten_Nr_Titel,Lijst_NL_Keten_Stap2_Titel) ->  | AR54: =Keten_NL ->  | BB54: Afstand | BF54: 120 | BI54: 500 | BL54: km
AB55: =Keten_EU -> EU | AC55: 500 | AE55: 5 | AR55: =Keten_EU -> EU
AB56: =Keten_NL ->  | AC56: km | AE56: liter | AS56: liter | AU56: gCO2/MJ | BF56: NL | BI56: EU | BL56: Eenheid
BB57: CO2 | BF57: 1 | BI57: 1 | BL57: MJ
BB58: Afstand | BF58: 120 | BI58: 500 | BL58: km
AJ63: NL | AK63: =BI65 -> 30 | AM63: =IF(AM65="MJ",BF64, IF(AM65="kg",BF64/JRC_Basis_Hout_LHVm/(100-BF65)*100, IF(AM65="kgds",BF64/JRC_Basis_Hout_LHVm, IF(AM65="kWh",BF64/3.6,FALSE)))) -> 1.025 | BF63: NL | BI63: EU | BL63: Eenheid
AJ64: =Keten_EU -> EU | AK64: 30 | AM64: =IF(AM65="MJ",BI64, IF(AM65="kg",BI64/JRC_Basis_Hout_LHVm/(100-BF65)*100, IF(AM65="kgds",BI64/JRC_Basis_Hout_LHVm, IF(AM65="kWh",BI64/3.6,FALSE)))) -> 1.025 | BB64: Houtdoorzet | BF64: 1.025 | BI64: 1.025 | BL64: MJ
AK65: % | AM65: MJ | BB65: Vochtigheid | BF65: 45 | BI65: 30 | BL65: %
BF70: NL | BI70: EU | BL70: Eenheid
BB71: Diesel | BF71: 1 | BI71: 1 | BL71: MJ
AB72: =Keten_NL ->  | AC72: 100 | AE72: 2.5 | AJ72: =LOOKUP(AY2,Lijst_NL_Keten_Nr_Titel,Lijst_NL_Keten_Stap3_Titel) ->  | AR72: =Keten_NL ->  | BB72: Afstand | BF72: 120 | BI72: 500 | BL72: km
AB73: =Keten_EU -> EU | AC73: 500 | AE73: 5 | AR73: =Keten_EU -> EU
AB74: =Keten_NL ->  | AC74: km | AE74: liter | AR74: =Keten_NL ->  | AS74: liter | AU74: gCO2/MJ | BF74: NL | BI74: EU | BL74: Eenheid
BB75: CO2 | BF75: 1 | BI75: 1 | BL75: MJ
BB76: Afstand | BF76: 120 | BI76: 500 | BL76: km
AJ81: NL | AK81: 30 | AM81: =IF(AM83="MJ",BF82, IF(AM83="kg",BF82/JRC_Basis_Hout_LHVm/(100-BF83)*100, IF(AM83="kgds",BF82/JRC_Basis_Hout_LHVm, IF(AM83="kWh",BF82/3.6,FALSE)))) -> 1 | BF81: NL | BI81: EU | BL81: Eenheid
AJ82: =Keten_EU -> EU | AK82: 30 | AM82: =IF(AM83="MJ",BI82, IF(AM83="kg",BI82/JRC_Basis_Hout_LHVm/(100-BF83)*100, IF(AM83="kgds",BI82/JRC_Basis_Hout_LHVm, IF(AM83="kWh",BI82/3.6,FALSE)))) -> 1 | BB82: Houtdoorzet | BF82: 1 | BI82: 1 | BL82: MJ
AK83: % | AM83: MJ | BB83: Vochtigheid | BF83: 45 | BI83: 30 | BL83: %
BF88: NL | BI88: EU | BL88: Eenheid
BB89: Diesel | BF89: 1 | BI89: 0.003357 | BL89: MJ/MJchips
AB90: =Keten_NL ->  | AC90: 100 | AE90: 2.5 | AJ90: =LOOKUP(AY2,Lijst_NL_Keten_Nr_Titel,Lijst_NL_Keten_Stap4_Titel) ->  | AR90: =Keten_NL ->  | BB90: Afstand | BF90: 120 | BI90: 500 | BL90: km
AB91: =Keten_EU -> EU | AC91: 500 | AE91: 5 | AR91: =Keten_EU -> EU
AB92: =Keten_NL ->  | AC92: km | AE92: liter | AR92: =Keten_NL ->  | AS92: liter | AU92: gCO2/MJ | BF92: NL | BI92: EU | BL92: Eenheid
BB93: CO2 | BF93: 1 | BI93: 1 | BL93: MJ
BB94: Afstand | BF94: 120 | BI94: 500 | BL94: km
AJ99: NL | AK99: 30 | AM99: =IF(AM101="MJ",BF100, IF(AM101="kg",BF100/JRC_Basis_Hout_LHVm/(100-BF101)*100, IF(AM101="kgds",BF100/JRC_Basis_Hout_LHVm, IF(AM101="kWh",BF100/3.6,FALSE)))) -> 1 | BF99: NL | BI99: EU | BL99: Eenheid
AJ100: =Keten_EU -> EU | AK100: 30 | AM100: =IF(AM101="MJ",BI100, IF(AM101="kg",BI100/JRC_Basis_Hout_LHVm/(100-BF101)*100, IF(AM101="kgds",BI100/JRC_Basis_Hout_LHVm, IF(AM101="kWh",BI100/3.6,FALSE)))) -> 1 | BB100: Houtdoorzet | BF100: 1 | BI100: 1 | BL100: MJ
AK101: % | AM101: MJ | BB101: Vochtigheid | BF101: 45 | BI101: 30 | BL101: %
AJ106: Eindgebruiker
AZ113: Transportstappen
AZ114: T1 Transport van chips naar de afnemer
AZ115: T1 Transport van chips naar de afnemer | BX115: Omschrijving JRC
BH116: I/O | BJ116: Eenheid | BQ116: Aantal | BT116: Omschrijving | BX116: JRC: De vochtigheid voor het Europees gemiddelde (JRC) is nog steeds aangenomen op 30 %. JRC min = 1-500 km = 500 km truck JRC max = boven 10.000 km = 100 km truck, 750 km train, 16.500 km bulk carrier NL: De vochtigheid van de NL chips is aangenomen op 45 %. De gemiddelde straal in NL voor afnemers van NL houtige biomassa is maximaal 100 km. Voor een truck van 40 ton, payload 27 ton chips is het verbruik diesel is 30,53 liter per 100 km, inclusief lege terugrit (dataset JRC 2017). Met vochtigheid M45 is dit 14,8 ton droge stof. Verbruik diesel is 30,53 liter/14,8 ton droge stof = 2,06 liter/ton droge stof | CN116: CO2 emissiefactoren JRC 2017
AZ117: CO2 | BH117: Output | BJ117: g/MJchips | BQ117: 3 | BT117: 1-500 km | CN117: EU Diesel WTW | CU117: 95.1 | CX117: gCO2 / MJdiesel
BH118: Output | BJ118: kg/tonds chi | BQ118: =BQ117*$CU$121 -> 57
AZ119: CO2 | BH119: Output | BJ119: g/MJchips | BQ119: 20.5 | BT119: boven 10.000 km | CN119: Gebruikte aannames algemeen JRC 2017
BH120: Output | BJ120: kg/tonds chi | BQ120: =BQ119*$CU$121 -> 389.5 | CN120: Dichtheid hout (fijnspar) | CU120: 425 | CX120: kgdroge stof/m3
AZ121: Diesel NL | BH121: Input | BJ121: MJ/MJhout | BQ121: =BQ122*CU122/CU121/1000 -> 0.003903157895 | BU121: 3 | CN121: Energiewaarde hout | CU121: 19 | CX121: MJ/kgdroge stof
AZ122: Diesel NL | BH122: Input | BJ122: liter/tonds | BQ122: 2.06 | BT122: 3 | CN122: Energiewaarde diesel | CU122: 36 | CX122: MJ/liter
AZ123: CO2-NL | BH123: Output | BJ123: g/MJchips | BQ123: =BQ124/$CU$121 -> 0.217140825 | BT123: straal maximaal | CN123: Dieselverbruik 40 ton truck | CU123: 30.53 | CX123: l/100 km
AZ124: CO2-NL | BH124: Output | BJ124: kg/tonds chi | BQ124: =CU123/100*(BT124*2)/14.8 -> 4.125675676 | BT124: 100 | BV124: km | CN124: Laadfactor | CU124: 50 | CX124: %
BX126: Bron:
BX127: 3 | BY127: Beschrijving en data van partijen in de houtketen in Nederland in de periode 11-2017 <-> 2-2018
BX128: alg. | BY128: Giuntoli, J., Agostini, A., Edwards, R., & Marelli, L. (2017) ofwel JRC 2017
BI129: NL | BM129: MJ/MJchips
BI130: EU
BW133: Toelichting
BW134: EU | CI134: NL
B135: Processtappen | BW135: Dit is inclusief forwarden, bundelen, oliegebruik, transport van machines van en naar de werkplek, laden en lossen. Het bevat scenario's los top- en takhout, bundelen en oogst van stobben. Voor olieverbruik wordt uitgegaan van 6 % van het dieselverbruik van de machines. Emissiefactor olie is gelijkgesteld aan diesel. De vochtigheid (M) is aangenomen op 50 %. | CI135: Uitrijden varieert - afhankelijk van de situatie - tussen ca. 1 en 2 liter per verse ton. Het conservatief gemiddelde wordt gesteld op ca. 2 liter per verse ton. Dit is ca. 4 liter per ton droge stof. Bundelen en stobben oogsten is geen gebruikelijk praktijk in NL.
B136: P1 Inzamelen van top- en takhout
B137: P1. Oogsten van top en takhout inclusief -deels- stobben | H137: Omschrijving JRC
C138: I/O | D138: Eenheid | E138: Aantal | F138: Bron | H138: Dit is inclusief forwarden, bundelen, oliegebruik, transport van machines van en naar de werkplek, laden en lossen. Het bevat scenario's los top- en takhout, bundelen en oogst van stobben. Voor olieverbruik gaat men uit van 6 % van het dieselverbruik van de machines. Emissiefactor olie is gelijkgesteld aan diesel. De vochtigheid (M) is aangenomen op 50 %.
B139: Diesel | C139: Input | D139: MJ/MJhout | E139: 0.01202216749 | F139: 1
B140: Diesel | C140: Input | D140: liter/tonds | E140: =(E139/$R$190)/(1/$R$189)*1000 -> 6.345032841 | F140: 1
B141: CO2 | C141: Output | D141: g/MJwood | E141: =E139*$R$185 -> 1.143308128
B142: CO2 | C142: Output | D142: kg/tonds | E142: =E141*$R$189 -> 21.72285443
AZ145: Bronnen | BD145: 1 | BH145: E.-L. Lindholm, S. Berg, P.-A. Hansson, Eur. J. Forest Res. (2010), 129, 1223-1235
BD146: 2 | BH146: Beschrijving en data van partijen in de houtketen in Nederland in de periode 11-2017 <-> 2-2018
BD147: Algemeen | BH147: Giuntoli, J., Agostini, A., Edwards, R., & Marelli, L. (2017) ofwel JRC 2017
CG152: MJ/Mjhout | CN152: CO2 emissiefactoren JRC 2017
CG153: liter/tonds | CN153: EU Diesel WTW | CU153: 95.1 | CX153: gCO2 / MJdiesel
CG154: liter/m3
CN155: Gebruikte aannames algemeen JRC 2017
CN156: Dichtheid hout (fijnspar) | CU156: 425 | CX156: kgdroge stof/m3
CN157: Energiewaarde hout | CU157: 19 | CX157: MJ/kgdroge stof
CN158: Energiewaarde diesel | CU158: 36 | CX158: MJ/liter
CN159: Dieselverbruik 40 ton truck | CU159: 30.53 | CX159: l/100 km
CN160: Laadfactor | CU160: 50 | CX160: %
CC168: Biomassa in | CJ168: 1
CC169: Biomassa uit | CJ169: 1
CC170: Energie in
CC171: CO2 uit
O185: EU Diesel WTW | R185: 95.1 | S185: gCO2 / MJdiesel
BY186: Processtappen
O187: Gebruikte aannames algemeen JRC 2017 | CD187: P1 Inzamelen van top- en takhout
O188: Dichtheid hout (fijnspar) | R188: 425 | S188: kgdroge stof/m3 | BY188: P1. Oogsten van top en takhout inclusief -deels- stobben | CW188: Omschrijving
O189: Energiewaarde hout | R189: 19 | S189: MJ/kgdroge stof | CG189: I/O | CI189: Eenheid | CP189: Aantal | CS189: Bron | CW189: JRC: "Dit is inclusief forwarden, bundelen, oliegebruik, transport van machines van en naar de werkplek, laden en lossen. Het bevat scenario's los top- en takhout, bundelen en oogst van stobben. Voor olieverbruik gaat men uit van 6 % van het dieselverbruik van de machines. Emissiefactor olie is gelijkgesteld aan diesel. De vochtigheid (M) is aangenomen op 50 %." NL: uitrijden varieert - afhankelijk van de situatie - tussen ca. 1 en 2 liter per verse ton. Het conservatief gemiddelde stellen we op ca. 2 liter per verse ton. Dit is ca. 4 liter per ton droge stof. Bundelen en stobben oogsten is geen gebruikelijk praktijk in NL.
O190: Energiewaarde diesel | R190: 36 | S190: MJ/liter | BY190: Diesel | CG190: Input | CI190: MJ/MJhout | CP190: 0.01202216749 | CS190: 1
O191: Dieselverbruik 40 ton truck | R191: 30.53 | S191: l/km | BY191: Diesel | CG191: Input | CI191: liter/tonds | CS191: 1
O192: Laadfactor | R192: 50 | S192: % | BY192: CO2 | CG192: Output | CI192: g/MJhout
BY193: CO2 | CG193: Output | CI193: kg/tonds
BY194: Diesel NL | CG194: Input | CI194: MJ/MJhout | CS194: 2
BY195: Diesel NL | CG195: Input | CI195: liter/tonds | CS195: 2
BY196: CO2 NL | CG196: Output | CI196: g/MJhout
BY197: CO2 NL | CG197: Output | CI197: kg/tonds | CW197: Bron:
CW198: 1 | CX198: E.-L. Lindholm, S. Berg, P.-A. Hansson, Eur. J. Forest Res. (2010), 129, 1223-1235
CW199: 2 | CX199: Beschrijving en data van partijen in de houtketen in Nederland in de periode 11-2017 <-> 2-2018
CW200: alg. | CX200: Giuntoli, J., Agostini, A., Edwards, R., & Marelli, L. (2017) ofwel JRC 2017
CD201: P2 Opslag en drogen langs de weg
BY202: P2 Opslag en drogen van top- en takhout langs de weg | CW202: Omschrijving
CG203: I/O | CI203: Eenheid | CP203: Aantal | CS203: Bron | CW203: JRC: "Dit is inclusief drogen in de open lucht langs de weg afgedekt tegen de regen. Gedurende 3-8 maanden. Aangenomen is dat de vochtigheid (M) afneemt van 50 naar 30 %, waarbij een verlies aan droge stof van 5 %." NL: meestal wordt niet gedroogd langs de weg en vrijwel direct gechipt en met een vochtigheid (M45) aan de klant geleverd. Verlies is niet bekend, maar zal door de kortere opslag duur minder zijn. Voor de input/output verhouding telt bij JRC de MJ in droge massa. De vochtigheid telt niet mee bij input/output aan MJ. Voor het gemak is hetzelfde getal aangehouden voor NL, als bij JRC.
BY204: Hout | CG204: Input | CI204: MJ/MJhout | CP204: 1.052631579 | CS204: 1, 2, 3
BY205: Hout | CG205: Output | CI205: MJhout | CP205: 1 | CS205: 1
BY206: Hout-NL | CG206: Input | CI206: MJ/MJhout | CP206: 1.052631579
BY207: Hout-NL | CG207: Output | CI207: MJhout | CP207: 1
CW211: Bron:
CW212: 1 | CX212: Hamelinck, C.N., Suurs, R.A.A., Faaij, A.P.C., Biomass and Bioenergy (2005), 29, 114 - 134
CW213: 2 | CX213: Kofman, P., "Storage of short rotation coppice willow fuel", 2012.
CX214: http://www.coford.ie/media/coford/content/publications/projectreports/cofordconnects/HAR30_LR.PDF
CW215: 3 | CX215: E.-L. Lindholm, S. Berg, P.-A. Hansson, Eur. J. Forest Res. (2010), 129, 1223-1235
CW216: alg. | CX216: Giuntoli, J., Agostini, A., Edwards, R., & Marelli, L. (2017) ofwel JRC 2017
CW217: alg. | CX217: Beschrijving en data van partijen in de houtketen in Nederland in de periode 11-2017 <-> 2-2018
BY218: P3 Chippen
BY219: P3 Chippen | CW219: Omschrijving JRC
CG220: I/O | CI220: Eenheid | CP220: Aantal | CS220: Bron | CW220: JRC: Dit is een gemiddelde tussen efficient centraal chippen (elektrisch) en op kleinere schaal langs de weg chippen (diesel). Er wordt uitgegaan van een verlies van 2,5 % aan droge massa bij chippen. NL: In Nederland wordt vooral met diesel gechipt. Het dieselverbruik bij chippen is ca. 1,5 liter per verse ton. Uitgaande van het conservatief gemiddelde is dit 2 liter per verse ton. Dit is 4 liter per ton droge stof.
BY221: Hout | CG221: Input | CI221: MJ/MJchips | CP221: 1.025 | CS221: 1,2
BY222: Hout | CG222: Input | CI222: MJ/MJchips | CP222: 1
BY223: Diesel | CG223: Input | CI223: MJ/MJchips | CP223: 0.003357 | CS223: 1
BY224: Diesel | CG224: Input | CI224: l/tonds chips | CP224: =(CP223/$CU$122)/(1/$CU$121)*1000 -> 1.77175
BY225: CO2 | CG225: Output | CI225: g/MJchips | CP225: =CP223*$CU$117 -> 0.3192507
BY226: CO2 | CG226: Output | CI226: kg/tonds chi | CP226: =CP225*$R$189 -> 6.0657633
BY227: Diesel NL | CG227: Input | CI227: MJ/MJhout | CP227: =CP228*CU122/CU121/1000 -> 0.007578947368 | CS227: 3 | CW227: Bron:
BY228: Diesel NL | CG228: Input | CI228: liter/tonds | CP228: 4 | CS228: 3 | CW228: 1 | CX228: E.-L. Lindholm, S. Berg, P.-A. Hansson, Eur. J. Forest Res. (2010), 129, 1223-1235
BY229: CO2 NL | CG229: Output | CI229: g/MJhout | CP229: =CP227*$CU$117 -> 0.7207578947 | CW229: 2 | CX229: Sikkema, R., Junginger, M., Pichler, W., Hayes, S., Faaij, A.P.C., Biofuels Bioproducts & Biorefininig (2010), 4, 132 - 153
BY230: CO2 NL | CG230: Output | CI230: kg/tonds | CP230: =CP229*$R$189 -> 13.6944 | CW230: 3 | CX230: Beschrijving en data van partijen in de houtketen in Nederland in de periode 11-2017 <-> 2-2018
CW231: alg. | CX231: Giuntoli, J., Agostini, A., Edwards, R., & Marelli, L. (2017) ofwel JRC 2017

Sheet Berekenen (hidden)
B2: INHOUD | I2: SAMENVATTING
R3: Hout | S3: Proces | T3: Δ | U3: Dimensie
B4: Algemeen | Q4: RHO-0 | R4: =Hout_RHO_0 -> 633 | S4: =Proces_RHO_0 -> 633 | T4: =S4-R4 -> 0 | U4: kg/m3
D5: Kleurcodes | I5: Doorzet Hout | L5: =Uit_Hout_Doorzet_m3 -> 11224.4898 | M5: m3 | Q5: Krimp | R5: =Hout_Krimp -> 15.4 | S5: =Proces_Krimp -> 15.4 | T5: =S5-R5 -> 0 | U5: %
E6: = Definitie van de naam | I6: Doorzet Proces | L6: =Uit_Proces_Doorzet_m3 -> 10000 | M6: m3 | Q6: Vezel verzadigingspunt | R6: =Hout_Krimp_Hs -> 23 | S6: =Proces_Krimp_Hs -> 23 | T6: 0 | U6: %
I7: Doorzet Transport | L7: =Uit_Transport_Doorzet_m3 -> 10000 | M7: m3 | Q7: RHO Volume Factor=1 | R7: =Hout_RHO_VF1 -> 1071.036 | S7: =Proces_RHO_VF1 -> 1071.036 | T7: 0 | U7: m3
D8: Hoofdstuk | G8: Rijnummer | Q8: Massa hout | R8: =Hout_Massa -> 535.518 | S8: =Proces_Massa -> 535.518 | T8: 0 | U8: kg
B9: Hout | G9: =Rij_Hout -> 68 | Q9: Massa water | R9: =Hout_Water -> 535.518 | S9: =Proces_Water -> 535.518 | T9: 0 | U9: kg
D10: Houteigenschappen | G10: =Rij_Hout_Eigenschappen -> 88 | Q10: Water+Hout | R10: =Hout_Massa_Water -> 1071.036 | S10: =Proces_Massa_Water -> 1071.036 | T10: 0 | U10: kg
D11: Doorzet | G11: =Rij_Hout_Doorzet -> 121 | Q11: Volume factor | R11: =Hout_Vorm_Vulling -> 0.3 | S11: =Proces_Vorm_Vulling -> 0.33 | T11: 0.03 | U11: -
D12: Ketens | G12: =Rij_Hout_Keten -> 158 | Q12: RHO bij volume | R12: =Hout_RHO -> 321.3108 | S12: =Proces_RHO -> 353.44188 | T12: 32.13108 | U12: kg/m3
D13: Samenvatting | G13: =Rij_Hout_Samenvatting ->  | Q13: HHV-ds | R13: =Hout_HHVds -> 19.3 | S13: =Proces_HHVds -> 19.3 | T13: 0 | U13: GJ/ton
Q14: H2 | R14: =Hout_H2 -> 6 | S14: =Proces_H2 -> 6 | T14: 0 | U14: %
B15: Proces | G15: =Rij_Proces -> 197 | Q15: LHV-ds | R15: =Hout_LHVds -> 19.3 | S15: =Proces_LHVds -> 19.3 | T15: 0 | U15: GJ/ton
D16: Houteigenschappen | G16: =Rij_Proces_Houteigenschappen -> 199 | Q16: LHV-Hm | R16: =Hout_LHVm -> 9.65 | S16: =Proces_LHVm -> 9.65 | T16: 0 | U16: GJ/ton
D17: Doorzet | G17: =Rij_Proces_Doorzet -> 233 | Q17: LHV-Hv | R17: =Hout_LHVv -> 3.10064922 | S17: =Proces_LHVv -> 3.410714142 | T17: 0.310064922 | U17: GJ/m3
D18: Proces Aandrijving tijd | G18: =Rij_Proces_Aandrijving_Tijd -> 257 | R18: Hout | S18: Proces | T18: Δ | U18: Dimensie | V18: P/H-%
D19: Proces aandrijving CO2 | G19: =Rij_Proces_Aandrijving_CO2 -> 274 | Q19: Doorzet | R19: =Uit_Hout_Doorzet_kg -> 3606549.796 | S19: =Uit_Proces_Doorzet_kg -> 3534418.8 | T19: -72130.99592 | U19: kg | V19: =S19/R19-1 -> -0.02 | X19: 21477.64202
D20: Proces samenvatting | G20: =Rij_Proces_Samenvatting -> 386 | Q20: Doorzet | R20: =Uit_Hout_Doorzet_kgds -> 1803274.898 | S20: =Uit_Proces_Doorzet_kgds -> 1767209.4 | T20: -36065.49796 | U20: kgds | V20: =S20/R20-1 -> -0.02 | X20: 12886.58521
Q21: Doorzet | R21: =Uit_Hout_Doorzet_ton -> 3606.549796 | S21: =Uit_Proces_Doorzet_ton -> 3534.4188 | T21: -72.13099592 | U21: ton | V21: -0.02 | X21: 21.47764202
B22: Transport | G22: =Rij_Transport -> 404 | Q22: Doorzet | R22: =Uit_Hout_Doorzet_tonds -> 1803.274898 | S22: =Uit_Proces_Doorzet_tonds -> 1767.2094 | T22: -36.06549796 | U22: tonds | V22: -0.02 | X22: 12.88658521
D23: Houteigenschappen | G23: =Rij_Transport_Houteigenschappen -> 406 | Q23: Doorzet | R23: =Uit_Hout_Doorzet_GJ -> 34803.20553 | S23: =Uit_Proces_Doorzet_GJ -> 34107.14142 | T23: -696.0641106 | U23: GJ | V23: -0.02 | X23: 216.8009586
D24: Doorzet | G24: =Rij_Transport_Doorzet -> 439 | Q24: Doorzet | R24: =Uit_Hout_Doorzet_MWh -> 9667.557092 | S24: =Uit_Proces_Doorzet_MWh -> 9474.20595 | T24: -193.3511418 | U24: MWh | V24: -0.02 | X24: 60.22248849
D25: Transport Aandrijving CO2 | G25: =Rij_Transport_Aandrijving_CO2 -> 463 | Q25: Doorzet | R25: =Uit_Hout_Doorzet_kWh -> 9667557.092 | S25: =Uit_Proces_Doorzet_kWh -> 9474205.95 | T25: -193351.1418 | U25: kWh | V25: -0.02 | X25: 60222.48849
D26: Transport samenvatting | G26: =Rij_Transport_Samenvatting -> 585
B29: Drogen | D29: Proces Warmtetoevoer (Drogen) CO2 | G29: =Rij_Proces_Warmtetoevoer -> 604
B38: ALGEMEEN | C38: =ROW() -> 38
B42: Methodiek-ID | D42: EU | F42: Algemeen_Berekening_Methodiek_ID
B43: Berekening - methodiek | D43: =IF(Algemeen_Berekening_Methodiek_ID="EU","Biograce II",IF(Algemeen_Berekening_Methodiek_ID="NL","CO2-emissiefactoren","Beide methodieken")) -> Biograce II
F45: De relatie tussen de bovenwaarde (HHV - Higher Heating Vaue) en de onderwaarde (LHV - Lower Heting Value)
F46: van de Verbrandingswaarde (HV - Heating Value) bestaat uit drie termen:
F47: 1. De afhankelijkheid van de vochtigheid: HHV * (100-Vochtigheid)/Vochtigheid
F48: 2. Correctie voor de verdampingswarmte van water: 2,441 * Vochtigheid / 100
F49: 3. Correctie voor het waterstofgehalte van de biomassa: H2/(100*2)*18,02*2,447*(1-Vochtigheid/100)
F50: De LHV wordt daarmee:
F51: LHV = HHV * (100-Vochtigheid)/Vochtigheid - 2,441 * Vochtigheid / 100 - H2/(100*2)*18,02*2,447*(1-Vochtigheid/100)
F52: In BioGrace II wordt alleen de eerste term meegenomen omdat niet duidelijk is waarvoor de
F53: biomassa wordt gebruikt. Dus ook voor de productie van elektriciteit en warmte/koude !
F54: In de regel wordt de waterstofterm nooit meegenomen. (ca 3%)
F55: Alleen in de berekening van eigenschappen van biomassa door Klimaaktiv (Oostenrijk)
B58: Berekening LHVds | D58: 1 | F58: LHV_Vochtigheid
B59: Berekening LHVds-Verdamping | D59: 0 | F59: LHV_Vochtigheid_Verdampingswarmte
B60: Berekening LHVds-Verdamping-H2 | D60: 0 | F60: LHV_Vochtigheid_Verdampingswarmte_H2
F61: 1 = Met term
F62: 0 = Zonder term
B68: HOUT | C68: =ROW() -> 68
B70: Samenvatting Proces | C70: =ROW() -> 70 | O70: =B70 -> Samenvatting Proces
B72: NL of EU | D72: =Hout_Keten_NL_EU -> 0 | F72: Hout_Keten_NL_EU | N72: m3 | O72: MJ
N73: kg | O73: GJ
D74: =Samenvatting_Hout_Doorzet_Dim -> tonds | F74: Samenvatting_Hout_Doorzet_Dim | N74: kgds | O74: MWh
B75: Doorzet | D75: =IF(Samenvatting_Hout_Doorzet_Dim="m3",Uit_Hout_Doorzet_m3, IF(Samenvatting_Hout_Doorzet_Dim="kg",Uit_Hout_Doorzet_kg, IF(Samenvatting_Hout_Doorzet_Dim="kgds",Uit_Hout_Doorzet_kgds, IF(Samenvatting_Hout_Doorzet_Dim="ton",Uit_Hout_Doorzet_ton, IF(Samenvatting_Hout_Doorzet_Dim="tonds",Uit_Hout_Doorzet_tonds, IF(Samenvatting_Hout_Doorzet_Dim="MJ",Uit_Hout_Doorzet_MJ, IF(Samenvatting_Hout_Doorzet_Dim="GJ",Uit_Hout_Doorzet_GJ, IF(Samenvatting_Hout_Doorzet_Dim="kWh",Uit_Hout_Doorzet_kWh, IF(Samenvatting_Hout_Doorzet_Dim="MWh",Uit_Hout_Doorzet_MWh,"Berekening Samenvatting Hout Doorzet"))))))))) -> 1803.274898 | F75: Samenvatting_Hout_Doorzet | N75: ton | O75: kWh
N76: tonds
D77: NL | E77: EU
B78: CO2 Totaal | D78: =Keten_NL_Stap1_6_CO2 -> 2.405263158 | E78: =Keten_EU_Stap1_6_CO2 -> 4.840796533 | F78: gCO2eq/MJ | G78: Samenvatting_NL_Keten_CO2_g_MJ | K78: Samenvatting_EU_Keten_CO2_g_MJ
B80: CO2 Totaal | D80: =Samenvatting_NL_Keten_CO2_g_MJ*Uit_Proces_Doorzet_MJ -> 82036650.68 | E80: =Samenvatting_EU_Keten_CO2_g_MJ*Uit_Proces_Doorzet_MJ -> 165105731.9 | F80: g | G80: Samenvatting_NL_Keten_CO2_g | K80: Samenvatting_EU_Keten_CO2_g | N80: gCO2eq
B81: CO2 Totaal | D81: =Samenvatting_NL_Keten_CO2_g/1000 -> 82036.65068 | E81: =Samenvatting_EU_Keten_CO2_g/1000 -> 165105.7319 | F81: kg | G81: Samenvatting_NL_Keten_CO2_kg | K81: Samenvatting_EU_Keten_CO2_kg | N81: kgCO2eq
B82: CO2 Totaal | D82: =Samenvatting_NL_Keten_CO2_kg/1000 -> 82.03665068 | E82: =Samenvatting_EU_Keten_CO2_kg/1000 -> 165.1057319 | F82: ton | G82: Samenvatting_NL_Keten_CO2_ton | K82: Samenvatting_EU_Keten_CO2_ton | N82: tonCO2eq
B83: CO2 Totaal | D83: =Samenvatting_NL_Keten_CO2_ton/1000 -> 0.08203665068 | E83: =Samenvatting_EU_Keten_CO2_ton/1000 -> 0.1651057319 | F83: Mton | G83: Samenvatting_NL_Keten_CO2_Mton | K83: Samenvatting_EU_Keten_CO2_Mton | N83: MtonCO2eq
D85: =Samenvatting_Hout_CO2T_Dim -> kgCO2eq | E85: =Samenvatting_Hout_CO2T_Dim -> kgCO2eq | G85: Samenvatting_Hout_CO2T_Dim
B86: CO2 productie Hout | D86: =IF(Samenvatting_Hout_CO2T_Dim="gCO2eq",Samenvatting_NL_Keten_CO2_g, IF(Samenvatting_Hout_CO2T_Dim="kgCO2eq",Samenvatting_NL_Keten_CO2_kg, IF(Samenvatting_Hout_CO2T_Dim="tonCO2eq",Samenvatting_NL_Keten_CO2_ton, IF(Samenvatting_Hout_CO2T_Dim="MtonCO2eq",Samenvatting_NL_Keten_CO2_Mton,)))) -> 82036.65068 | E86: =IF(Samenvatting_Hout_CO2T_Dim="gCO2eq",Samenvatting_EU_Keten_CO2_g, IF(Samenvatting_Hout_CO2T_Dim="kgCO2eq",Samenvatting_EU_Keten_CO2_kg, IF(Samenvatting_Hout_CO2T_Dim="tonCO2eq",Samenvatting_EU_Keten_CO2_ton, IF(Samenvatting_Hout_CO2T_Dim="MtonCO2eq",Samenvatting_EU_Keten_CO2_Mton,)))) -> 165105.7319 | F86: =Samenvatting_Hout_CO2T_Dim -> kgCO2eq | G86: Samenvatting_Hout_CO2T
B88: Houteigenschappen | C88: =ROW() -> 88 | O88: Houteigenschappen
B90: Omschrijving | D90: Waarde | E90: Dimensie | F90: Naam
B91: Houtsoort | D91: =Hout_Soort -> Loofhout mix NL | E91: - | F91: Hout_Soort
B92: Vochtigheid | D92: =Hout_Vochtigheid -> 50 | E92: % | F92: Hout_Vochtigheid | Q92: Grundeingabe | R92: Holz- bzw. Brennstoffart | S92: Auswahl im Drop-Down-Menü | V92: Eiche
B93: Vochtgehalte | D93: =Hout_Vochtigheid/(100-Hout_Vochtigheid)*100 -> 100 | E93: % | F93: Uit_Hout_Vochtgehalte | R93: Brennstoffgruppe | S93: Zuordnung zu Gruppen | V93: Laubholz (LH)
R94: Sortiment | S94: Auswahl im Drop-Down-Menü | V94: Holzhackgut G30
B95: RHO-0 | D95: =LOOKUP(Hout_Soort,Lijst_Hout_Soort,Lijst_Hout_RHO_Darr) -> 633 | E95: kg/m3 | F95: Hout_RHO_0 | R95: Umrechnungsfaktor | S95: 1 fm = x rm bzw. x srm | V95: 2.5
B96: Krimp | D96: =LOOKUP(Hout_Soort,Lijst_Hout_Soort,Lijst_Hout_Krimp) -> 15.4 | E96: % | F96: Hout_Krimp | R96: Einheit | S96: Übliches Handelsmaß | V96: srm
B97: Vezel verzadigingspunt | D97: =LOOKUP(Hout_Soort,Lijst_Hout_Soort,Lijst_Hout_VVP) -> 23 | E97: % | F97: Hout_Krimp_Hs
B98: RHO Volume Factor=1 | D98: =IF(Hout_Vochtigheid>Hout_Krimp_Hs,Hout_RHO_0*(1-Hout_Krimp/100)/(1-Hout_Vochtigheid/100),Hout_RHO_0*(1-Hout_Vochtigheid/Hout_Krimp_Hs*Hout_Krimp/100)/(1-Hout_Vochtigheid/100)) -> 1071.036 | E98: m3 | F98: Hout_RHO_VF1 | Q98: Wasseranteil | R98: Wassergehalt (H2O) | S98: % (Gewicht, FS) | V98: 50
B99: Massa hout | D99: =Hout_RHO_VF1*(1-Hout_Vochtigheid/100) -> 535.518 | E99: kg | F99: Hout_Massa | R99: Wasserstoffgehalt (H) | S99: % (Gewicht, TS) | V99: 6
B100: Massa water | D100: =Hout_RHO_VF1*Hout_Vochtigheid/100 -> 535.518 | E100: kg | F100: Hout_Water
B101: Totale massa | D101: =Hout_Massa+Hout_Water -> 1071.036 | E101: kg | F101: Hout_Massa_Water | Q101: Brennwert (Ho) | R101: Ho der Trockensubstanz (TS) | S101: MJ/kg TS | V101: 19.3228482 | W101: =Hout_HHVds-V101 -> -0.0228482
R102: Ho der TS | S102: kWh/kg TS | V102: 5.367457833
B103: Volume soort | D103: =Hout_Vorm -> Top- en takhout | E103: - | F103: Hout_Vorm | Q103: Heizwert (Hu) | R103: Hu der TS | S103: MJ/kg TS | V103: 18 | W103: =Hout_LHVds-V103 -> 1.3
B104: Volume Type Factor | D104: =LOOKUP(Hout_Vorm,Lijst_Volume_Vorm,Lijst_Volume_Vorm_Factor) -> 0.3 | E104: m3/m3 | F104: Hout_Vorm_Vulling | R104: Hu der TS | S104: kWh/kg TS | V104: 5
B105: RHO bij Volume Factor | D105: =Hout_RHO_VF1*Hout_Vorm_Vulling -> 321.3108 | E105: kg/m3 | F105: Hout_RHO | R105: Hu der Frischsubstanz (FS) | S105: MJ/kg FS | V105: 7.7765 | W105: =Hout_LHVm-V105 -> 1.8735
B106: Asgehalte | D106: =LOOKUP(Hout_Vorm,Lijst_Volume_Vorm,Lijst_Hout_Asgehalte) -> 2 | E106: % | F106: Hout_Asgehalte | R106: Hu der FS | S106: kWh/kg FS | V106: 2.160138889
R107: Hu der FS | S107: MJ/m³ FS | V107: 3642.388176 | W107: =Hout_LHVv-V107/1000 -> -0.541738956
B108: HHV-ds | D108: =LOOKUP(Hout_Soort,Lijst_Hout_Soort,Lijst_Hout_HHVds) -> 19.3 | E108: GJ/ton | F108: Hout_HHVds | R108: Hu der FS | S108: kWh/m³ FS | V108: 1011.774493
B109: H2 | D109: =LOOKUP(Hout_Soort,Lijst_Hout_Soort,Lijst_Hout_H2) -> 6 | E109: % | F109: Hout_H2
B110: Berekening LHVds | D110: =LHV_Vochtigheid -> 1 | E110: - | F110: LHV_Vochtigheid
B111: Berekening LHVds | D111: =LHV_Vochtigheid_Verdampingswarmte -> 0 | F111: LHV_Vochtigheid_Verdampingswarmte
B112: Berekening LHVds | D112: =LHV_Vochtigheid_Verdampingswarmte_H2 -> 0 | F112: LHV_Vochtigheid_Verdampingswarmte_H2
B113: LHV-ds | D113: =Hout_HHVds -> 19.3 | E113: GJ/tonds | F113: Hout_LHVds | Q113: Dichte | R113: Mittlere Darrdichte | S113: kg/m³ (bei 0 % H2O) | V113: 680 | W113: =Hout_RHO_0-V113 -> -47
B114: LHVm | D114: =LHV_Vochtigheid*Hout_HHVds*(1-Hout_Vochtigheid/100) -LHV_Vochtigheid_Verdampingswarmte*2.447*Hout_Vochtigheid/100 -LHV_Vochtigheid_Verdampingswarmte_H2*Hout_H2/(100*2)*18.02*2.447*(1-Hout_Vochtigheid/100) -> 9.65 | E114: GJ/ton | F114: Hout_LHVm | R114: Mittleres Schwindmaß | S114: % | V114: 13.9
B115: LHVv | D115: =Hout_LHVm*Hout_RHO/1000 -> 3.10064922 | E115: GJ/m3 | F115: Hout_LHVv | R115: Roh- bzw. Lagerungsdichte | S115: kg/m³ (bei x % H2O) | V115: 468.384 | W115: =Hout_RHO-V115 -> -147.0732
R116: - Anteil der Holzsubstanz | S116: kg/m³ (TS-Anteil bei x % H2O) | V116: 234.192
D117: =IF(Hout_LHVv_Dim="GJ/m3",Hout_LHVv,Hout_LHVv/3.6) -> 0.86129145 | E117: =Hout_LHVv_Dim -> MWh/m3 | F117: Uit_Hout_LHVv | R117: - Anteil des Wassers | S117: kg/m³ (H2O-Anteil bei x % H2O) | V117: 234.192
D118: =IF(Hout_LHVm_Dim="GJ/ton",Hout_LHVm, IF(Hout_LHVm_Dim="MWh/ton",Hout_LHVm/3.6, IF(Hout_LHVm_Dim="GJ/tonds",Hout_LHVds, IF(Hout_LHVm_Dim="MWh/tonds",Hout_LHVds/3.6,"berekening LHVm")))) -> 9.65 | E118: =Hout_LHVm_Dim -> GJ/ton | F118: Uit_Hout_LHVm | R118: Verhältniszahl m³ pro t FS | S118: m³/t FS | V118: 2.135000342
Q120: Aschenanfall | R120: Aschengehalt (Schätzwert) | S120: % (Gewicht, TS) | V120: 1.5
B121: Hout - Doorzet | C121: =ROW() -> 121 | O121: Doorzet | R121: Aschendichte (Schätzwert) | S121: kg/m³ | V121: 700
B123: Doorzet | D123: =Hout_Doorzet_Oogst_Eindgebruiker -> 10000 | F123: Hout_Doorzet_Oogst_Eindgebruiker
B124: Doorzet_Dim | D124: =Hout_Doorzet_Dim -> m3 | F124: Hout_Doorzet_Dim
N125: Controle
B126: Doorzet | D126: =Uit_Hout_Doorzet_Oogst_Eindgebruiker_GJ/Hout_LHVv -> 10000 | E126: m3 | F126: Uit_Hout_Doorzet_m3 | N126: =Uit_Hout_Doorzet_Oogst_Eindgebruiker_m3*Hout_LHVv -> 31006.4922 | O126: GJ
B127: Doorzet | D127: =Uit_Hout_Doorzet_Oogst_Eindgebruiker_GJ/Hout_LHVm*1000 -> 3213108 | E127: kg | F127: Uit_Hout_Doorzet_kg | N127: =Uit_Hout_Doorzet_Oogst_Eindgebruiker_kg*Hout_LHVm/1000 -> 31006.4922 | O127: GJ
B128: Doorzet | D128: =Uit_Hout_Doorzet_Oogst_Eindgebruiker_kg*(1-Hout_Vochtigheid/100) -> 1606554 | E128: kgds | F128: Uit_Hout_Doorzet_Oogst_Eindgebruiker_kgds | N128: =Uit_Hout_Doorzet_Oogst_Eindgebruiker_kgds/(1-Hout_Vochtigheid/100)*Hout_LHVm/1000 -> 31006.4922 | O128: GJ
B129: Doorzet | D129: =Uit_Hout_Doorzet_Oogst_Eindgebruiker_GJ/Hout_LHVm -> 3213.108 | E129: ton | F129: Uit_Hout_Doorzet_Oogst_Eindgebruiker_ton | N129: =Uit_Hout_Doorzet_Oogst_Eindgebruiker_ton*Hout_LHVm -> 31006.4922 | O129: GJ
B130: Doorzet | D130: =Uit_Hout_Doorzet_Oogst_Eindgebruiker_GJ/Hout_LHVds -> 1606.554 | E130: tonds | F130: Uit_Hout_Doorzet_Oogst_Eindgebruiker_tonds | N130: =Uit_Hout_Doorzet_Oogst_Eindgebruiker_GJ -> 31006.4922 | O130: GJ
B131: Doorzet | D131: =IF(Hout_Doorzet_Dim="m3",Hout_Doorzet_Oogst_Eindgebruiker*Hout_LHVv, IF(Hout_Doorzet_Dim="kg",Hout_Doorzet_Oogst_Eindgebruiker*Hout_LHVm/1000, IF(Hout_Doorzet_Dim="kgds",Hout_Doorzet_Oogst_Eindgebruiker*Hout_LHVds/1000, IF(Hout_Doorzet_Dim="ton",Hout_Doorzet_Oogst_Eindgebruiker*Hout_LHVm, IF(Hout_Doorzet_Dim="tonds",Hout_Doorzet_Oogst_Eindgebruiker*Hout_LHVds, IF(Hout_Doorzet_Dim="MJ",Hout_Doorzet_Oogst_Eindgebruiker/1000, IF(Hout_Doorzet_Dim="GJ",Hout_Doorzet_Oogst_Eindgebruiker, IF(Hout_Doorzet_Dim="kWh",Hout_Doorzet_Oogst_Eindgebruiker*3.6/1000, IF(Hout_Doorzet_Dim="MWh",Hout_Doorzet_Oogst_Eindgebruiker*3.6))))))))) -> 31006.4922 | E131: GJ | F131: Uit_Hout_Doorzet_Oogst_Eindgebruiker_GJ | H131: <--De doorzet wordt in eerste instantie berekend voor GJ | N131: =Uit_Hout_Doorzet_Oogst_Eindgebruiker_GJ -> 31006.4922 | O131: GJ
B132: Doorzet | D132: =Uit_Hout_Doorzet_Oogst_Eindgebruiker_GJ*1000 -> 31006492.2 | E132: MJ | F132: Uit_Hout_Doorzet_Oogst_Eindgebruiker_MJ | H132: Daaruit worden de andere dimensies berekend | N132: =Uit_Hout_Doorzet_Oogst_Eindgebruiker_MJ/1000 -> 31006.4922 | O132: GJ
B133: Doorzet | D133: =Uit_Hout_Doorzet_Oogst_Eindgebruiker_GJ/3.6 -> 8612.9145 | E133: MWh | F133: Uit_Hout_Doorzet_Oogst_Eindgebruiker_MWh | N133: =Uit_Hout_Doorzet_Oogst_Eindgebruiker_MWh*3.6 -> 31006.4922 | O133: GJ
B134: Doorzet | D134: =Uit_Hout_Doorzet_Oogst_Eindgebruiker_GJ/3.6*1000 -> 8612914.5 | E134: kWh | F134: Uit_Hout_Doorzet_Oogst_Eindgebruiker_kWh | N134: =Uit_Hout_Doorzet_Oogst_Eindgebruiker_kWh*3.6/1000 -> 31006.4922 | O134: GJ
D136: =IF(Hout_Oogst_Eindgebruiker="naar eindgebruiker","tonds",Hout_Doorzet_Dim) -> tonds
D137: =IF(Hout_Oogst_Eindgebruiker="naar eindgebruiker",Uit_Proces_Doorzet_tonds/((100+Proces_Houtverlies)/100),Hout_Doorzet_Oogst_Eindgebruiker) -> 1803.274898 | F137: Hout_Doorzet
B140: Doorzet | D140: =Uit_Hout_Doorzet_GJ/Hout_LHVv -> 11224.4898 | E140: m3 | F140: Uit_Hout_Doorzet_m3 | N140: Controle
B141: Doorzet | D141: =Uit_Hout_Doorzet_GJ/Hout_LHVm*1000 -> 3606549.796 | E141: kg | F141: Uit_Hout_Doorzet_kg | N141: =Uit_Hout_Doorzet_m3*Hout_LHVv -> 34803.20553 | O141: GJ
B142: Doorzet | D142: =Uit_Hout_Doorzet_kg*(1-Hout_Vochtigheid/100) -> 1803274.898 | E142: kgds | F142: Uit_Hout_Doorzet_kgds | N142: =Uit_Hout_Doorzet_kg*Hout_LHVm/1000 -> 34803.20553 | O142: GJ
B143: Doorzet | D143: =Uit_Hout_Doorzet_GJ/Hout_LHVm -> 3606.549796 | E143: ton | F143: Uit_Hout_Doorzet_ton | N143: =Uit_Hout_Doorzet_kgds/(1-Hout_Vochtigheid/100)*Hout_LHVm/1000 -> 34803.20553 | O143: GJ
B144: Doorzet | D144: =Uit_Hout_Doorzet_GJ/Hout_LHVds -> 1803.274898 | E144: tonds | F144: Uit_Hout_Doorzet_tonds | N144: =Uit_Hout_Doorzet_ton*Hout_LHVm -> 34803.20553 | O144: GJ
B145: Doorzet | D145: =IF(D136="m3",Hout_Doorzet*Hout_LHVv, IF(D136="kg",Hout_Doorzet*Hout_LHVm/1000, IF(D136="kgds",Hout_Doorzet*Hout_LHVds/1000, IF(D136="ton",Hout_Doorzet*Hout_LHVm, IF(D136="tonds",Hout_Doorzet*Hout_LHVds, IF(D136="MJ",Hout_Doorzet/1000, IF(D136="GJ",Hout_Doorzet, IF(D136="kWh",Hout_Doorzet*3.6/1000, IF(D136="MWh",Hout_Doorzet*3.6))))))))) -> 34803.20553 | E145: GJ | F145: Uit_Hout_Doorzet_GJ | H145: <--De doorzet wordt in eerste instantie berekend voor GJ | N145: =Uit_Hout_Doorzet_tonds*Hout_LHVds -> 34803.20553 | O145: GJ
B146: Doorzet | D146: =Uit_Hout_Doorzet_GJ*1000 -> 34803205.53 | E146: MJ | F146: Uit_Hout_Doorzet_MJ | H146: Daaruit worden de andere dimensies berekend | N146: =Uit_Hout_Doorzet_GJ -> 34803.20553 | O146: GJ
B147: Doorzet | D147: =Uit_Hout_Doorzet_GJ/3.6 -> 9667.557092 | E147: MWh | F147: Uit_Hout_Doorzet_MWh | N147: =Uit_Hout_Doorzet_MJ/1000 -> 34803.20553 | O147: GJ
B148: Doorzet | D148: =Uit_Hout_Doorzet_GJ/3.6*1000 -> 9667557.092 | E148: kWh | F148: Uit_Hout_Doorzet_kWh | N148: =Uit_Hout_Doorzet_MWh*3.6 -> 34803.20553 | O148: GJ
N149: =Uit_Hout_Doorzet_kWh*3.6/1000 -> 34803.20553 | O149: GJ
B151: Doorzet_Dim | D151: =Uit_Hout_Doorzet_MV_Dim -> ton | F151: Uit_Hout_Doorzet_MV_Dim
B152: Doorzet_MV | D152: =IF(Uit_Hout_Doorzet_MV_Dim="kg",Uit_Hout_Doorzet_kg, IF(Uit_Hout_Doorzet_MV_Dim="kgds",Uit_Hout_Doorzet_kgds, IF(Uit_Hout_Doorzet_MV_Dim="liter",Uit_Hout_Doorzet_liter, IF(Uit_Hout_Doorzet_MV_Dim="m3",Uit_Hout_Doorzet_m3, IF(Uit_Hout_Doorzet_MV_Dim="ton",Uit_Hout_Doorzet_ton, IF(Uit_Hout_Doorzet_MV_Dim="tonds",Uit_Hout_Doorzet_tonds)))))) -> 3606.549796 | F152: Uit_Hout_Doorzet_MV
B154: Doorzet_Dim | D154: =Uit_Hout_Doorzet_E_Dim -> GJ | F154: Uit_Hout_Doorzet_E_Dim
B155: Doorzet_E | D155: =IF(Uit_Hout_Doorzet_E_Dim="GJ",Uit_Hout_Doorzet_GJ, IF(Uit_Hout_Doorzet_E_Dim="MWh",Uit_Hout_Doorzet_MWh, IF(Uit_Hout_Doorzet_E_Dim="MJ",Uit_Hout_Doorzet_MJ, IF(Uit_Hout_Doorzet_E_Dim="kWh",Uit_Hout_Doorzet_MWh*1000)))) -> 34803.20553 | F155: Uit_Hout_Doorzet_E
B158: Keten | C158: =ROW() -> 158 | O158: =B158 -> Keten
B161: Hout keten | D161: =Hout_Keten_NL -> 1a-Chips uit top- en tak hout uit bos of landschap
D162: NL | E162: EU
B163: CO2 productie Cultivatie | D163: =VLOOKUP(Hout_Keten_NL,Lijst_NL_Keten,Keten_Cultivatie_CO2) -> 0 | E163: =VLOOKUP(Hout_Keten_EU,Lijst_EU_Keten,Keten_Cultivatie_CO2) -> 0 | F163: gCO2/MJ | G163: Keten_NL_Cultivatie_CO2 | J163: Keten_EU_Cultivatie_CO2 | N163: gCO2eq/MJ
B164: CO2 productie Proces | D164: =VLOOKUP(Hout_Keten_NL,Lijst_NL_Keten,Keten_Proces_CO2) -> 1.516436676 | E164: =VLOOKUP(Hout_Keten_EU,Lijst_EU_Keten,Keten_Proces_CO2) -> 1.840796533 | F164: gCO2/MJ | G164: Keten_NL_Proces_CO2 | J164: Keten_EU_Proces_CO2 | N164: gCO2eq/tonds
B165: CO2 productie Transport | D165: =VLOOKUP(Hout_Keten_NL,Lijst_NL_Keten,Keten_Transport_CO2) -> 0.890136 | E165: =VLOOKUP(Hout_Keten_EU,Lijst_EU_Keten,Keten_Transport_CO2) -> 3 | F165: gCO2/MJ | G165: Keten_NL_Transport_CO2 | J165: Keten_EU_Transport_CO2 | N165: kgCO2eq
B166: CO2 productie Verbranding | D166: =VLOOKUP(Hout_Keten_NL,Lijst_NL_Keten,Keten_Verbranding_CO2) -> 0.4135818839 | E166: =VLOOKUP(Hout_Keten_EU,Lijst_EU_Keten,Keten_Verbranding_CO2) -> 0.4135818839 | F166: gCO2/MJ | G166: Keten_NL_Verbranding_CO2 | J166: Keten_EU_Verbranding_CO2 | N166: tonCO2eq
B167: CO2 Totaal ex Verbranding | D167: =Keten_NL_Cultivatie_CO2+Keten_NL_Proces_CO2+Keten_NL_Transport_CO2 -> 2.406572676 | E167: =IF(Keten_EU_Cultivatie_CO2="n.a.","n.a.",Keten_EU_Cultivatie_CO2+Keten_EU_Proces_CO2+Keten_EU_Transport_CO2) -> 4.840796533 | F167: gCO2/MJ | G167: Keten_NL_Totaal_CO2 | J167: Keten_EU_Totaal_CO2 | N167: MtonCO2eq
B169: CO2 productie | D169: =Uit_NL_EU_Keten_CO2_Dim -> gCO2eq/MJ | F169: Uit_NL_EU_Keten_CO2_Dim
B170: CO2 productie Cultivatie | D170: =IF(Uit_NL_EU_Keten_CO2_Dim="gCO2eq/MJ",Keten_NL_Cultivatie_CO2, IF(Uit_NL_EU_Keten_CO2_Dim="kgCO2eq/tonds",Keten_NL_Cultivatie_CO2*JRC_Basis_Hout_LHVm, IF(Uit_NL_EU_Keten_CO2_Dim="kgCO2eq",Keten_NL_Cultivatie_CO2/1000*Uit_Hout_Doorzet_GJ*1000, IF(Uit_NL_EU_Keten_CO2_Dim="tonCO2eq",Keten_NL_Cultivatie_CO2/1000/1000*Uit_Hout_Doorzet_GJ*1000, IF(Uit_NL_EU_Keten_CO2_Dim="MtonCO2eq",Keten_NL_Cultivatie_CO2/1000/1000/1000*Uit_Hout_Doorzet_GJ*1000))))) -> 0 | E170: =IF(Keten_EU_Cultivatie_CO2="n.a.","n.a.", IF(Uit_NL_EU_Keten_CO2_Dim="gCO2eq/MJ",Keten_EU_Cultivatie_CO2, IF(Uit_NL_EU_Keten_CO2_Dim="kgCO2eq/tonds",Keten_EU_Cultivatie_CO2*JRC_Basis_Hout_LHVm, IF(Uit_NL_EU_Keten_CO2_Dim="kgCO2eq",Keten_EU_Cultivatie_CO2/1000*Uit_Hout_Doorzet_GJ*1000, IF(Uit_NL_EU_Keten_CO2_Dim="tonCO2eq",Keten_EU_Cultivatie_CO2/1000/1000*Uit_Hout_Doorzet_GJ*1000, IF(Uit_NL_EU_Keten_CO2_Dim="MtonCO2eq",Keten_EU_Cultivatie_CO2/1000/1000/1000*Uit_Hout_Doorzet_GJ*1000)))))) -> 0 | F170: =Uit_NL_EU_Keten_CO2_Dim -> gCO2eq/MJ | G170: Uit_NL_Keten_Cultivatie_CO2 | J170: Uit_EU_Keten_Cultivatie_CO2
B171: CO2 productie Proces | D171: =IF(Uit_NL_EU_Keten_CO2_Dim="gCO2eq/MJ",Keten_NL_Proces_CO2, IF(Uit_NL_EU_Keten_CO2_Dim="kgCO2eq/tonds",Keten_NL_Proces_CO2*JRC_Basis_Hout_LHVm, IF(Uit_NL_EU_Keten_CO2_Dim="kgCO2eq",Keten_NL_Proces_CO2/1000*Uit_Hout_Doorzet_GJ*1000, IF(Uit_NL_EU_Keten_CO2_Dim="tonCO2eq",Keten_NL_Proces_CO2/1000/1000*Uit_Hout_Doorzet_GJ*1000, IF(Uit_NL_EU_Keten_CO2_Dim="MtonCO2eq",Keten_NL_Proces_CO2/1000/1000/1000*Uit_Hout_Doorzet_GJ*1000))))) -> 1.516436676 | E171: =IF(Keten_EU_Proces_CO2="n.a.","n.a.", IF(Uit_NL_EU_Keten_CO2_Dim="gCO2eq/MJ",Keten_EU_Proces_CO2, IF(Uit_NL_EU_Keten_CO2_Dim="kgCO2eq/tonds",Keten_EU_Proces_CO2*JRC_Basis_Hout_LHVm, IF(Uit_NL_EU_Keten_CO2_Dim="kgCO2eq",Keten_EU_Proces_CO2/1000*Uit_Hout_Doorzet_GJ*1000, IF(Uit_NL_EU_Keten_CO2_Dim="tonCO2eq",Keten_EU_Proces_CO2/1000/1000*Uit_Hout_Doorzet_GJ*1000, IF(Uit_NL_EU_Keten_CO2_Dim="MtonCO2eq",Keten_EU_Proces_CO2/1000/1000/1000*Uit_Hout_Doorzet_GJ*1000)))))) -> 1.840796533 | F171: =Uit_NL_EU_Keten_CO2_Dim -> gCO2eq/MJ | G171: Uit_NL_Keten_Proces_CO2 | J171: Uit_EU_Keten_Proces_CO2
B172: CO2 productie Transport | D172: =IF(Uit_NL_EU_Keten_CO2_Dim="gCO2eq/MJ",Keten_NL_Transport_CO2, IF(Uit_NL_EU_Keten_CO2_Dim="kgCO2eq/tonds",Keten_NL_Transport_CO2*JRC_Basis_Hout_LHVm, IF(Uit_NL_EU_Keten_CO2_Dim="kgCO2eq",Keten_NL_Transport_CO2/1000*Uit_Hout_Doorzet_GJ*1000, IF(Uit_NL_EU_Keten_CO2_Dim="tonCO2eq",Keten_NL_Transport_CO2/1000/1000*Uit_Hout_Doorzet_GJ*1000, IF(Uit_NL_EU_Keten_CO2_Dim="MtonCO2eq",Keten_NL_Transport_CO2/1000/1000/1000*Uit_Hout_Doorzet_GJ*1000))))) -> 0.890136 | E172: =IF(Keten_EU_Transport_CO2="n.a.","n.a.", IF(Uit_NL_EU_Keten_CO2_Dim="gCO2eq/MJ",Keten_EU_Transport_CO2, IF(Uit_NL_EU_Keten_CO2_Dim="kgCO2eq/tonds",Keten_EU_Transport_CO2*JRC_Basis_Hout_LHVm, IF(Uit_NL_EU_Keten_CO2_Dim="kgCO2eq",Keten_EU_Transport_CO2/1000*Uit_Hout_Doorzet_GJ*1000, IF(Uit_NL_EU_Keten_CO2_Dim="tonCO2eq",Keten_EU_Transport_CO2/1000/1000*Uit_Hout_Doorzet_GJ*1000, IF(Uit_NL_EU_Keten_CO2_Dim="MtonCO2eq",Keten_EU_Transport_CO2/1000/1000/1000*Uit_Hout_Doorzet_GJ*1000)))))) -> 3 | F172: =Uit_NL_EU_Keten_CO2_Dim -> gCO2eq/MJ | G172: Uit_NL_Keten_Transport_CO2 | J172: Uit_EU_Keten_Transport_CO2
B173: CO2 Totaal - Verbranding | D173: =IF(Uit_NL_EU_Keten_CO2_Dim="gCO2eq/MJ",Keten_NL_Verbranding_CO2, IF(Uit_NL_EU_Keten_CO2_Dim="kgCO2eq/tonds",Keten_NL_Verbranding_CO2*JRC_Basis_Hout_LHVm, IF(Uit_NL_EU_Keten_CO2_Dim="kgCO2eq",Keten_NL_Verbranding_CO2/1000*Uit_Hout_Doorzet_GJ*1000, IF(Uit_NL_EU_Keten_CO2_Dim="tonCO2eq",Keten_NL_Verbranding_CO2/1000/1000*Uit_Hout_Doorzet_GJ*1000, IF(Uit_NL_EU_Keten_CO2_Dim="MtonCO2eq",Keten_NL_Verbranding_CO2/1000/1000/1000*Uit_Hout_Doorzet_GJ*1000))))) -> 0.4135818839 | E173: =IF(Keten_EU_Verbranding_CO2="n.a.","n.a.", IF(Uit_NL_EU_Keten_CO2_Dim="gCO2eq/MJ",Keten_EU_Verbranding_CO2, IF(Uit_NL_EU_Keten_CO2_Dim="kgCO2eq/tonds",Keten_EU_Verbranding_CO2*JRC_Basis_Hout_LHVm, IF(Uit_NL_EU_Keten_CO2_Dim="kgCO2eq",Keten_EU_Verbranding_CO2/1000*Uit_Hout_Doorzet_GJ*1000, IF(Uit_NL_EU_Keten_CO2_Dim="tonCO2eq",Keten_EU_Verbranding_CO2/1000/1000*Uit_Hout_Doorzet_GJ*1000, IF(Uit_NL_EU_Keten_CO2_Dim="MtonCO2eq",Keten_EU_Verbranding_CO2/1000/1000/1000*Uit_Hout_Doorzet_GJ*1000)))))) -> 0.4135818839 | F173: =Uit_NL_EU_Keten_CO2_Dim -> gCO2eq/MJ | G173: Uit_NL_Keten_Verbranding_CO2 | J173: Uit_EU_Keten_Verbranding_CO2
B174: CO2 Totaal ex Verbranding | D174: =Uit_NL_Keten_Cultivatie_CO2+Uit_NL_Keten_Proces_CO2+Uit_NL_Keten_Transport_CO2 -> 2.406572676 | E174: =IF(Uit_EU_Keten_Cultivatie_CO2="n.a.","n.a.",Uit_EU_Keten_Cultivatie_CO2+Uit_EU_Keten_Proces_CO2+Uit_EU_Keten_Transport_CO2) -> 4.840796533 | F174: =Uit_NL_EU_Keten_CO2_Dim -> gCO2eq/MJ
D175: NL | E175: EU
B176: CO2 productie stap 1 | D176: =VLOOKUP(Hout_Keten_NL,Lijst_NL_Keten,Keten_Stap1_CO2eq+0*Keten_Delta) -> 0.7789473684 | E176: =VLOOKUP(Hout_Keten_EU,Lijst_EU_Keten,Keten_Stap1_CO2eq+0*Keten_Delta) -> 1.462339543 | F176: gCO2/MJ | G176: Keten_NL_Stap1_CO2 | J176: Keten_EU_Stap1_CO2
B177: CO2 productie stap 2 | D177: =VLOOKUP(Hout_Keten_NL,Lijst_NL_Keten,Keten_Stap1_CO2eq+1*Keten_Delta) -> 0 | E177: =VLOOKUP(Hout_Keten_EU,Lijst_EU_Keten,Keten_Stap1_CO2eq+1*Keten_Delta) -> 0 | F177: gCO2/MJ | G177: Keten_NL_Stap2_CO2 | J177: Keten_EU_Stap2_CO2
B178: CO2 productie stap 3 | D178: =VLOOKUP(Hout_Keten_NL,Lijst_NL_Keten,Keten_Stap1_CO2eq+2*Keten_Delta) -> 0.7368421053 | E178: =VLOOKUP(Hout_Keten_EU,Lijst_EU_Keten,Keten_Stap1_CO2eq+2*Keten_Delta) -> 0.37845699 | F178: gCO2/MJ | G178: Keten_NL_Stap3_CO2 | J178: Keten_EU_Stap3_CO2
B179: CO2 productie stap 4 | D179: =VLOOKUP(Hout_Keten_NL,Lijst_NL_Keten,Keten_Stap1_CO2eq+3*Keten_Delta) -> 0.8894736842 | E179: =VLOOKUP(Hout_Keten_EU,Lijst_EU_Keten,Keten_Stap1_CO2eq+3*Keten_Delta) -> 3 | F179: gCO2/MJ | G179: Keten_NL_Stap4_CO2 | J179: Keten_EU_Stap4_CO2
B180: CO2 productie stap 5 | D180: =VLOOKUP(Hout_Keten_NL,Lijst_NL_Keten,Keten_Stap1_CO2eq+4*Keten_Delta) -> 0 | E180: =VLOOKUP(Hout_Keten_EU,Lijst_EU_Keten,Keten_Stap1_CO2eq+4*Keten_Delta) -> 0 | F180: gCO2/MJ | G180: Keten_NL_Stap5_CO2 | J180: Keten_EU_Stap5_CO2
B181: CO2 productie stap 6 | D181: =VLOOKUP(Hout_Keten_NL,Lijst_NL_Keten,Keten_Stap1_CO2eq+5*Keten_Delta) -> 0 | E181: =VLOOKUP(Hout_Keten_EU,Lijst_EU_Keten,Keten_Stap1_CO2eq+5*Keten_Delta) -> 0 | F181: gCO2/MJ | G181: Keten_NL_Stap6_CO2 | J181: Keten_EU_Stap6_CO2
B182: CO2 productie stap 7 | D182: =VLOOKUP(Hout_Keten_NL,Lijst_NL_Keten,Keten_Stap1_CO2eq+6*Keten_Delta) -> 0 | E182: =VLOOKUP(Hout_Keten_EU,Lijst_EU_Keten,Keten_Stap1_CO2eq+6*Keten_Delta) -> 0 | F182: gCO2/MJ | G182: Keten_NL_Stap7_CO2 | J182: Keten_EU_Stap7_CO2
D183: =Keten_NL_Stap1_CO2+Keten_NL_Stap2_CO2+Keten_NL_Stap3_CO2+Keten_NL_Stap4_CO2+Keten_NL_Stap5_CO2+Keten_NL_Stap6_CO2 -> 2.405263158 | E183: =Keten_EU_Stap1_CO2+Keten_EU_Stap2_CO2+Keten_EU_Stap3_CO2+Keten_EU_Stap4_CO2+Keten_EU_Stap5_CO2+Keten_EU_Stap6_CO2 -> 4.840796533 | G183: Keten_NL_Stap1_6_CO2 | J183: Keten_EU_Stap1_6_CO2
D185: =Uit_NL_EU_Keten_CO2_Dim -> gCO2eq/MJ
B186: CO2 productie stap 1 | D186: =IF(Uit_NL_EU_Keten_CO2_Dim="gCO2eq/MJ",Keten_NL_Stap1_CO2, IF(Uit_NL_EU_Keten_CO2_Dim="kgCO2eq/tonds",Keten_NL_Stap1_CO2*JRC_Basis_Hout_LHVm, IF(Uit_NL_EU_Keten_CO2_Dim="kgCO2eq",Keten_NL_Stap1_CO2/1000*Uit_Hout_Doorzet_GJ*1000, IF(Uit_NL_EU_Keten_CO2_Dim="tonCO2eq",Keten_NL_Stap1_CO2/1000/1000*Uit_Hout_Doorzet_GJ*1000, IF(Uit_NL_EU_Keten_CO2_Dim="MtonCO2eq",Keten_NL_Stap1_CO2/1000/1000/1000*Uit_Hout_Doorzet_GJ*1000))))) -> 0.7789473684 | E186: =IF(Uit_NL_EU_Keten_CO2_Dim="gCO2eq/MJ",Keten_EU_Stap1_CO2, IF(Uit_NL_EU_Keten_CO2_Dim="kgCO2eq/tonds",Keten_EU_Stap1_CO2*JRC_Basis_Hout_LHVm, IF(Uit_NL_EU_Keten_CO2_Dim="kgCO2eq",Keten_EU_Stap1_CO2/1000*Uit_Hout_Doorzet_GJ*1000, IF(Uit_NL_EU_Keten_CO2_Dim="tonCO2eq",Keten_EU_Stap1_CO2/1000/1000*Uit_Hout_Doorzet_GJ*1000, IF(Uit_NL_EU_Keten_CO2_Dim="MtonCO2eq",Keten_EU_Stap1_CO2/1000/1000/1000*Uit_Hout_Doorzet_GJ*1000))))) -> 1.462339543 | F186: =Uit_NL_EU_Keten_CO2_Dim -> gCO2eq/MJ | G186: Uit_NL_Keten_Stap1_CO2 | J186: Uit_EU_Keten_Stap1_CO2
B187: CO2 productie stap 2 | D187: =IF(Uit_NL_EU_Keten_CO2_Dim="gCO2eq/MJ",Keten_NL_Stap2_CO2, IF(Uit_NL_EU_Keten_CO2_Dim="kgCO2eq/tonds",Keten_NL_Stap2_CO2*JRC_Basis_Hout_LHVm, IF(Uit_NL_EU_Keten_CO2_Dim="kgCO2eq",Keten_NL_Stap2_CO2/1000*Uit_Hout_Doorzet_GJ*1000, IF(Uit_NL_EU_Keten_CO2_Dim="tonCO2eq",Keten_NL_Stap2_CO2/1000/1000*Uit_Hout_Doorzet_GJ*1000, IF(Uit_NL_EU_Keten_CO2_Dim="MtonCO2eq",Keten_NL_Stap2_CO2/1000/1000/1000*Uit_Hout_Doorzet_GJ*1000))))) -> 0 | E187: =IF(Uit_NL_EU_Keten_CO2_Dim="gCO2eq/MJ",Keten_EU_Stap2_CO2, IF(Uit_NL_EU_Keten_CO2_Dim="kgCO2eq/tonds",Keten_EU_Stap2_CO2*JRC_Basis_Hout_LHVm, IF(Uit_NL_EU_Keten_CO2_Dim="kgCO2eq",Keten_EU_Stap2_CO2/1000*Uit_Hout_Doorzet_GJ*1000, IF(Uit_NL_EU_Keten_CO2_Dim="tonCO2eq",Keten_EU_Stap2_CO2/1000/1000*Uit_Hout_Doorzet_GJ*1000, IF(Uit_NL_EU_Keten_CO2_Dim="MtonCO2eq",Keten_EU_Stap2_CO2/1000/1000/1000*Uit_Hout_Doorzet_GJ*1000))))) -> 0 | F187: gCO2eq/MJ | G187: Uit_NL_Keten_Stap2_CO2 | J187: Uit_EU_Keten_Stap2_CO2
B188: CO2 productie stap 3 | D188: =IF(Uit_NL_EU_Keten_CO2_Dim="gCO2eq/MJ",Keten_NL_Stap3_CO2, IF(Uit_NL_EU_Keten_CO2_Dim="kgCO2eq/tonds",Keten_NL_Stap3_CO2*JRC_Basis_Hout_LHVm, IF(Uit_NL_EU_Keten_CO2_Dim="kgCO2eq",Keten_NL_Stap3_CO2/1000*Uit_Hout_Doorzet_GJ*1000, IF(Uit_NL_EU_Keten_CO2_Dim="tonCO2eq",Keten_NL_Stap3_CO2/1000/1000*Uit_Hout_Doorzet_GJ*1000, IF(Uit_NL_EU_Keten_CO2_Dim="MtonCO2eq",Keten_NL_Stap3_CO2/1000/1000/1000*Uit_Hout_Doorzet_GJ*1000))))) -> 0.7368421053 | E188: =IF(Uit_NL_EU_Keten_CO2_Dim="gCO2eq/MJ",Keten_EU_Stap3_CO2, IF(Uit_NL_EU_Keten_CO2_Dim="kgCO2eq/tonds",Keten_EU_Stap3_CO2*JRC_Basis_Hout_LHVm, IF(Uit_NL_EU_Keten_CO2_Dim="kgCO2eq",Keten_EU_Stap3_CO2/1000*Uit_Hout_Doorzet_GJ*1000, IF(Uit_NL_EU_Keten_CO2_Dim="tonCO2eq",Keten_EU_Stap3_CO2/1000/1000*Uit_Hout_Doorzet_GJ*1000, IF(Uit_NL_EU_Keten_CO2_Dim="MtonCO2eq",Keten_EU_Stap3_CO2/1000/1000/1000*Uit_Hout_Doorzet_GJ*1000))))) -> 0.37845699 | F188: gCO2eq/MJ | G188: Uit_NL_Keten_Stap3_CO2 | J188: Uit_EU_Keten_Stap3_CO2
B189: CO2 productie stap 4 | D189: =IF(Uit_NL_EU_Keten_CO2_Dim="gCO2eq/MJ",Keten_NL_Stap4_CO2, IF(Uit_NL_EU_Keten_CO2_Dim="kgCO2eq/tonds",Keten_NL_Stap4_CO2*JRC_Basis_Hout_LHVm, IF(Uit_NL_EU_Keten_CO2_Dim="kgCO2eq",Keten_NL_Stap4_CO2/1000*Uit_Hout_Doorzet_GJ*1000, IF(Uit_NL_EU_Keten_CO2_Dim="tonCO2eq",Keten_NL_Stap4_CO2/1000/1000*Uit_Hout_Doorzet_GJ*1000, IF(Uit_NL_EU_Keten_CO2_Dim="MtonCO2eq",Keten_NL_Stap4_CO2/1000/1000/1000*Uit_Hout_Doorzet_GJ*1000))))) -> 0.8894736842 | E189: =IF(Uit_NL_EU_Keten_CO2_Dim="gCO2eq/MJ",Keten_EU_Stap4_CO2, IF(Uit_NL_EU_Keten_CO2_Dim="kgCO2eq/tonds",Keten_EU_Stap4_CO2*JRC_Basis_Hout_LHVm, IF(Uit_NL_EU_Keten_CO2_Dim="kgCO2eq",Keten_EU_Stap4_CO2/1000*Uit_Hout_Doorzet_GJ*1000, IF(Uit_NL_EU_Keten_CO2_Dim="tonCO2eq",Keten_EU_Stap4_CO2/1000/1000*Uit_Hout_Doorzet_GJ*1000, IF(Uit_NL_EU_Keten_CO2_Dim="MtonCO2eq",Keten_EU_Stap4_CO2/1000/1000/1000*Uit_Hout_Doorzet_GJ*1000))))) -> 3 | F189: gCO2eq/MJ | G189: Uit_NL_Keten_Stap4_CO2 | J189: Uit_EU_Keten_Stap4_CO2
B190: CO2 productie stap 5 | D190: =IF(Uit_NL_EU_Keten_CO2_Dim="gCO2eq/MJ",Keten_NL_Stap5_CO2, IF(Uit_NL_EU_Keten_CO2_Dim="kgCO2eq/tonds",Keten_NL_Stap5_CO2*JRC_Basis_Hout_LHVm, IF(Uit_NL_EU_Keten_CO2_Dim="kgCO2eq",Keten_NL_Stap5_CO2/1000*Uit_Hout_Doorzet_GJ*1000, IF(Uit_NL_EU_Keten_CO2_Dim="tonCO2eq",Keten_NL_Stap5_CO2/1000/1000*Uit_Hout_Doorzet_GJ*1000, IF(Uit_NL_EU_Keten_CO2_Dim="MtonCO2eq",Keten_NL_Stap5_CO2/1000/1000/1000*Uit_Hout_Doorzet_GJ*1000))))) -> 0 | E190: =IF(Uit_NL_EU_Keten_CO2_Dim="gCO2eq/MJ",Keten_EU_Stap5_CO2, IF(Uit_NL_EU_Keten_CO2_Dim="kgCO2eq/tonds",Keten_EU_Stap5_CO2*JRC_Basis_Hout_LHVm, IF(Uit_NL_EU_Keten_CO2_Dim="kgCO2eq",Keten_EU_Stap5_CO2/1000*Uit_Hout_Doorzet_GJ*1000, IF(Uit_NL_EU_Keten_CO2_Dim="tonCO2eq",Keten_EU_Stap5_CO2/1000/1000*Uit_Hout_Doorzet_GJ*1000, IF(Uit_NL_EU_Keten_CO2_Dim="MtonCO2eq",Keten_EU_Stap5_CO2/1000/1000/1000*Uit_Hout_Doorzet_GJ*1000))))) -> 0 | F190: gCO2eq/MJ | G190: Uit_NL_Keten_Stap5_CO2 | J190: Uit_EU_Keten_Stap5_CO2
B191: CO2 productie stap 6 | D191: =IF(Uit_NL_EU_Keten_CO2_Dim="gCO2eq/MJ",Keten_NL_Stap6_CO2, IF(Uit_NL_EU_Keten_CO2_Dim="kgCO2eq/tonds",Keten_NL_Stap6_CO2*JRC_Basis_Hout_LHVm, IF(Uit_NL_EU_Keten_CO2_Dim="kgCO2eq",Keten_NL_Stap6_CO2/1000*Uit_Hout_Doorzet_GJ*1000, IF(Uit_NL_EU_Keten_CO2_Dim="tonCO2eq",Keten_NL_Stap6_CO2/1000/1000*Uit_Hout_Doorzet_GJ*1000, IF(Uit_NL_EU_Keten_CO2_Dim="MtonCO2eq",Keten_NL_Stap6_CO2/1000/1000/1000*Uit_Hout_Doorzet_GJ*1000))))) -> 0 | E191: =IF(Uit_NL_EU_Keten_CO2_Dim="gCO2eq/MJ",Keten_EU_Stap6_CO2, IF(Uit_NL_EU_Keten_CO2_Dim="kgCO2eq/tonds",Keten_EU_Stap6_CO2*JRC_Basis_Hout_LHVm, IF(Uit_NL_EU_Keten_CO2_Dim="kgCO2eq",Keten_EU_Stap6_CO2/1000*Uit_Hout_Doorzet_GJ*1000, IF(Uit_NL_EU_Keten_CO2_Dim="tonCO2eq",Keten_EU_Stap6_CO2/1000/1000*Uit_Hout_Doorzet_GJ*1000, IF(Uit_NL_EU_Keten_CO2_Dim="MtonCO2eq",Keten_EU_Stap6_CO2/1000/1000/1000*Uit_Hout_Doorzet_GJ*1000))))) -> 0 | F191: gCO2eq/MJ | G191: Uit_NL_Keten_Stap6_CO2 | J191: Uit_EU_Keten_Stap6_CO2
B192: CO2 productie stap 7 | D192: =IF(Uit_NL_EU_Keten_CO2_Dim="gCO2eq/MJ",Keten_NL_Stap7_CO2, IF(Uit_NL_EU_Keten_CO2_Dim="kgCO2eq/tonds",Keten_NL_Stap7_CO2*JRC_Basis_Hout_LHVm, IF(Uit_NL_EU_Keten_CO2_Dim="kgCO2eq",Keten_NL_Stap7_CO2/1000*Uit_Hout_Doorzet_GJ*1000, IF(Uit_NL_EU_Keten_CO2_Dim="tonCO2eq",Keten_NL_Stap7_CO2/1000/1000*Uit_Hout_Doorzet_GJ*1000, IF(Uit_NL_EU_Keten_CO2_Dim="MtonCO2eq",Keten_NL_Stap7_CO2/1000/1000/1000*Uit_Hout_Doorzet_GJ*1000))))) -> 0 | E192: =IF(Uit_NL_EU_Keten_CO2_Dim="gCO2eq/MJ",Keten_EU_Stap7_CO2, IF(Uit_NL_EU_Keten_CO2_Dim="kgCO2eq/tonds",Keten_EU_Stap7_CO2*JRC_Basis_Hout_LHVm, IF(Uit_NL_EU_Keten_CO2_Dim="kgCO2eq",Keten_EU_Stap7_CO2/1000*Uit_Hout_Doorzet_GJ*1000, IF(Uit_NL_EU_Keten_CO2_Dim="tonCO2eq",Keten_EU_Stap7_CO2/1000/1000*Uit_Hout_Doorzet_GJ*1000, IF(Uit_NL_EU_Keten_CO2_Dim="MtonCO2eq",Keten_EU_Stap7_CO2/1000/1000/1000*Uit_Hout_Doorzet_GJ*1000))))) -> 0 | F192: gCO2eq/MJ | G192: Uit_NL_Keten_Stap7_CO2 | J192: Uit_EU_Keten_Stap7_CO2
B197: PROCES | C197: =ROW() -> 197
B199: Houteigenschappen Proces | C199: =ROW() -> 199 | O199: =B199 -> Houteigenschappen Proces
B201: Omschrijving | D201: Waarde | E201: Dimensie | F201: Naam | J201: Hout | K201: Proces
J202: Hout | K202: Proces | L202: Transport
B203: Houtsoort | D203: =Hout_Soort -> Loofhout mix NL | E203: - | F203: Hout_Soort | I203: Soort | J203: =D91 -> Loofhout mix NL | N203: Delta
B204: Vochtigheid | D204: =Hout_Vochtigheid -> 50 | E204: % | F204: Hout_Vochtigheid | I204: =B204 -> Vochtigheid | J204: =Hout_Vochtigheid -> 50 | L204: =Proces_Vochtigheid -> 50 | M204: %
B205: Δ vochtigheid | D205: =Proces_Delta_Vochtigheid -> 0 | E205: % | F205: Proces_Delta_Vochtigheid | I205: =B205 -> Δ vochtigheid | K205: =Proces_Delta_Vochtigheid -> 0 | L205: =Transport_Delta_Vochtigheid -> 0 | M205: %
B206: Vochtigheid | D206: =Hout_Vochtigheid+Proces_Delta_Vochtigheid -> 50 | E206: % | F206: Proces_Vochtigheid | I206: =B206 -> Vochtigheid | J206: =J204 -> 50 | K206: =Proces_Vochtigheid -> 50 | L206: =Transport_Vochtigheid -> 50 | M206: % | N206: =K206-J206 -> 0
J207: Hout | K207: Proces
B208: RHO-0 | D208: =Hout_RHO_0 -> 633 | E208: kg/m3 | F208: Proces_RHO_0 | I208: =B208 -> RHO-0 | J208: =Hout_RHO_0 -> 633 | K208: =Proces_RHO_0 -> 633 | L208: =Transport_RHO_0 -> 633 | M208: kg/m3 | N208: =K208-J208 -> 0
B209: Krimp | D209: =Hout_Krimp -> 15.4 | E209: % | F209: Proces_Krimp | I209: =B209 -> Krimp | J209: =Hout_Krimp -> 15.4 | K209: =Proces_Krimp -> 15.4 | L209: =Transport_Krimp -> 15.4 | M209: % | N209: 0
B210: Vezel verzadigingspunt | D210: =Hout_Krimp_Hs -> 23 | E210: % | F210: Proces_Krimp_Hs | I210: Vezel verzadigingspunt | J210: =Hout_Krimp_Hs -> 23 | K210: =Proces_Krimp_Hs -> 23 | L210: =Transport_Krimp_Hs -> 23 | M210: % | N210: 0
B211: RHO Volume Factor=1 | D211: =IF(Proces_Vochtigheid>Proces_Krimp_Hs,Proces_RHO_0*(1-Proces_Krimp/100)/(1-Proces_Vochtigheid/100),Proces_RHO_0*(1-Proces_Vochtigheid/Proces_Krimp_Hs*Proces_Krimp/100)/(1-Proces_Vochtigheid/100)) -> 1071.036 | E211: m3 | F211: Proces_RHO_VF1 | I211: RHO Volume Factor=1 | J211: =Hout_RHO_VF1 -> 1071.036 | K211: =Proces_RHO_VF1 -> 1071.036 | L211: =Transport_RHO_VF1 -> 1071.036 | M211: m3 | N211: 0
B212: Massa hout | D212: =Proces_RHO_VF1*(1-Proces_Vochtigheid/100) -> 535.518 | E212: kg | F212: Proces_Massa | I212: Massa hout | J212: =Hout_Massa -> 535.518 | K212: =Proces_Massa -> 535.518 | L212: =Transport_Massa -> 535.518 | M212: kg | N212: 0
B213: Massa water | D213: =Proces_RHO_VF1*Proces_Vochtigheid/100 -> 535.518 | E213: kg | F213: Proces_Water | I213: Massa water | J213: =Hout_Water -> 535.518 | K213: =Proces_Water -> 535.518 | L213: =Transport_Water -> 535.518 | M213: kg | N213: 0
B214: Totale massa | D214: =Proces_Massa+Proces_Water -> 1071.036 | E214: kg | F214: Proces_Massa_Water | I214: Totale massa | J214: =Hout_Massa_Water -> 1071.036 | K214: =Proces_Massa_Water -> 1071.036 | L214: =Transport_Massa_Water -> 1071.036 | M214: kg | N214: 0
N215: 0
B216: Volume soort | D216: =Proces_Vorm -> Chips G50/P31,5 | F216: Proces_Vorm | J216: =D103 -> Top- en takhout | K216: =D216 -> Chips G50/P31,5
B217: Volume Type Factor | D217: =LOOKUP(Proces_Vorm,Lijst_Volume_Vorm,Lijst_Volume_Vorm_Factor) -> 0.33 | F217: Proces_Vorm_Vulling | I217: =B217 -> Volume Type Factor | J217: =Hout_Vorm_Vulling -> 0.3 | K217: =Proces_Vorm_Vulling -> 0.33 | M217: m3/m3 | N217: 0.03
B218: RHO bij Volume Factor | D218: =Proces_RHO_VF1*Proces_Vorm_Vulling -> 353.44188 | F218: Proces_RHO | I218: =B218 -> RHO bij Volume Factor | J218: =Hout_RHO -> 321.3108 | K218: =Proces_RHO -> 353.44188 | M218: kg/m3 | N218: 32.13108
N219: 0
B220: HHV-ds | D220: =Hout_HHVds -> 19.3 | E220: GJ/ton | F220: Proces_HHVds | I220: HHV-ds | J220: =Hout_HHVds -> 19.3 | K220: =Proces_HHVds -> 19.3 | M220: GJ/ton | N220: 0
B221: H2 | D221: =Hout_H2 -> 6 | E221: % | F221: Proces_H2 | I221: H2 | J221: =Hout_H2 -> 6 | K221: =Proces_H2 -> 6 | M221: % | N221: 0
B222: Berekening LHVds | D222: =LHV_Vochtigheid -> 1 | E222: - | F222: LHV_Vochtigheid
B223: Berekening LHVds | D223: =LHV_Vochtigheid_Verdampingswarmte -> 0 | F223: LHV_Vochtigheid_Verdampingswarmte
B224: Berekening LHVds | D224: =LHV_Vochtigheid_Verdampingswarmte_H2 -> 0 | F224: LHV_Vochtigheid_Verdampingswarmte_H2
B225: LHV-ds | D225: =Proces_HHVds -> 19.3 | E225: GJ/tonds | F225: Proces_LHVds | I225: LHV-ds | J225: =Hout_LHVds -> 19.3 | K225: =Proces_LHVds -> 19.3 | M225: GJ/tonds
B226: LHV-Hm | D226: =LHV_Vochtigheid*Proces_HHVds*(1-Proces_Vochtigheid/100) -LHV_Vochtigheid_Verdampingswarmte*2.447*Proces_Vochtigheid/100 -LHV_Vochtigheid_Verdampingswarmte_H2*Proces_H2/(100*2)*18.02*2.447*(1-Proces_Vochtigheid/100) -> 9.65 | E226: GJ/ton | F226: Proces_LHVm | I226: LHV-Hm | J226: =Hout_LHVm -> 9.65 | K226: =Proces_LHVm -> 9.65 | M226: GJ/ton | N226: =K226-J226 -> 0
B227: LHV-Hv | D227: =Proces_LHVm*Proces_RHO/1000 -> 3.410714142 | E227: GJ/m3 | F227: Proces_LHVv | I227: LHV-Hv | J227: =Hout_LHVv -> 3.10064922 | K227: =Proces_LHVv -> 3.410714142 | M227: GJ/m3 | N227: =K227-J227 -> 0.310064922
N228: =K228-J228 -> 0
D229: =IF(Proces_LHVv_Dim="GJ/m3",Proces_LHVv,Proces_LHVv/3.6) -> 3.410714142 | E229: =Proces_LHVv_Dim -> GJ/m3 | F229: Uit_Hout_LHVv | J229: =Uit_Hout_LHVv -> 0.86129145 | K229: =Uit_Proces_LHVv -> 3.410714142 | M229: =Proces_LHVv_Dim -> GJ/m3 | N229: =K229-J229 -> 2.549422692
D230: =IF(Hout_LHVm_Dim="GJ/ton",Hout_LHVm, IF(Hout_LHVm_Dim="MWh/ton",Hout_LHVm/3.6, IF(Hout_LHVm_Dim="GJ/tonds",Hout_LHVds, IF(Hout_LHVm_Dim="MWh/tonds",Hout_LHVds/3.6,"berekening LHVm")))) -> 9.65 | E230: =Proces_LHVm_Dim -> GJ/ton | F230: Uit_Hout_LHVm | J230: =Uit_Hout_LHVm -> 9.65 | K230: =Uit_Proces_LHVm -> 9.65 | M230: =Proces_LHVm_Dim -> GJ/ton | N230: =K230-J230 -> 0
B233: Proces - Doorzet | C233: =ROW() -> 233 | J233: Hout | K233: Proces | O233: =B233 -> Proces - Doorzet
B236: Doorzet Hout | D236: =Hout_Doorzet_Oogst_Eindgebruiker -> 10000 | F236: Hout_Doorzet | I236: Doorzet Hout | J236: =D123 -> 10000
B237: Doorzet Hout Dim | D237: =Hout_Doorzet_Dim -> m3 | F237: Hout_Doorzet_Dim | I237: Doorzet Hout Dim
B238: Houtverlies | D238: =Proces_Houtverlies -> -2 | E238: % | F238: Proces_Houtverlies | I238: Houtverlies | K238: =D238 -> -2
B239: Houtverlies Modus | D239: =Proces_Houtverlies_Modus -> % | F239: Proces_Houtverlies_Modus | I239: Houtverlies Modus
B240: Houtverlies Modus Dim | D240: tonds | I240: Houtverlies Modus Dim
B241: Doorzet Proces | D241: =IF(Hout_Oogst_Eindgebruiker="naar eindgebruiker",Uit_Transport_Doorzet_tonds/((100+Transport_Houtverlies)/100),Uit_Hout_Doorzet_tonds*(100+Proces_Houtverlies)/100) -> 1767.2094 | F241: Uit_Proces_Doorzet | I241: Doorzet Proces | J241: =D123 -> 10000 | K241: =Uit_Proces_Doorzet -> 1767.2094
J242: Hout | K242: Proces | O242: Controle
B243: Doorzet | D243: =Uit_Proces_Doorzet_GJ/Proces_LHVv -> 10000 | E243: m3 | F243: Uit_Proces_Doorzet_m3 | I243: m3 | J243: =Uit_Hout_Doorzet_m3 -> 11224.4898 | K243: =Uit_Proces_Doorzet_m3 -> 10000 | L243: m3 | M243: =K243-J243 -> -1224.489796 | O243: =Uit_Hout_Doorzet_m3*Hout_LHVv -> 34803.20553 | P243: =Uit_Proces_Doorzet_m3*Proces_LHVv -> 34107.14142 | Q243: GJ
B244: Doorzet | D244: =Uit_Proces_Doorzet_GJ/Proces_LHVm*1000 -> 3534418.8 | E244: kg | F244: Uit_Proces_Doorzet_kg | I244: kg | J244: =Uit_Hout_Doorzet_kg -> 3606549.796 | K244: =Uit_Proces_Doorzet_kg -> 3534418.8 | L244: kg | M244: =K244-J244 -> -72130.99592 | O244: =Uit_Hout_Doorzet_kg*Hout_LHVm/1000 -> 34803.20553 | P244: =Uit_Proces_Doorzet_kg*Proces_LHVm/1000 -> 34107.14142 | Q244: GJ
B245: Doorzet | D245: =Uit_Proces_Doorzet_kg*(1-Proces_Vochtigheid/100) -> 1767209.4 | E245: kgds | F245: Uit_Proces_Doorzet_kgds | I245: kgds | J245: =Uit_Hout_Doorzet_kgds -> 1803274.898 | K245: =Uit_Proces_Doorzet_kgds -> 1767209.4 | L245: kgds | M245: -36065.49796 | O245: =Uit_Hout_Doorzet_kgds/(1-Hout_Vochtigheid/100)*Hout_LHVm/1000 -> 34803.20553 | P245: =Uit_Proces_Doorzet_kgds/(1-Proces_Vochtigheid/100)*Proces_LHVm/1000 -> 34107.14142 | Q245: GJ
B246: Doorzet | D246: =Uit_Proces_Doorzet_GJ/Proces_LHVm -> 3534.4188 | E246: ton | F246: Uit_Proces_Doorzet_ton | I246: ton | J246: =Uit_Hout_Doorzet_ton -> 3606.549796 | K246: =Uit_Proces_Doorzet_ton -> 3534.4188 | L246: ton | M246: -72.13099592 | O246: =Uit_Hout_Doorzet_ton*Hout_LHVm -> 34803.20553 | P246: =Uit_Proces_Doorzet_ton*Proces_LHVm -> 34107.14142 | Q246: GJ
B247: Doorzet | D247: =Uit_Proces_Doorzet_GJ/Proces_LHVds -> 1767.2094 | E247: tonds | F247: Uit_Proces_Doorzet_tonds | I247: tonds | J247: =Uit_Hout_Doorzet_tonds -> 1803.274898 | K247: =Uit_Proces_Doorzet_tonds -> 1767.2094 | L247: tonds | M247: -36.06549796 | O247: =Uit_Hout_Doorzet_tonds*Hout_LHVds -> 34803.20553 | P247: =Uit_Proces_Doorzet_tonds*Proces_LHVds -> 34107.14142 | Q247: GJ
B248: Doorzet | D248: =Uit_Proces_Doorzet_GJ*1000 -> 34107141.42 | E248: MJ | F248: Uit_Proces_Doorzet_MJ | I248: MJ | J248: =Uit_Hout_Doorzet_MJ -> 34803205.53 | K248: =Uit_Proces_Doorzet_MJ -> 34107141.42 | L248: MJ | M248: -696064.1106 | O248: =Uit_Hout_Doorzet_MJ/1000 -> 34803.20553 | P248: =Uit_Proces_Doorzet_MJ/1000 -> 34107.14142 | Q248: GJ
B249: Doorzet | D249: =IF(D240="m3",Uit_Proces_Doorzet*Proces_LHVv, IF(D240="kg",Uit_Proces_Doorzet*Proces_LHVm/1000, IF(D240="kgds",Uit_Proces_Doorzet*Proces_LHVds/1000, IF(D240="ton",Uit_Proces_Doorzet*Proces_LHVm, IF(D240="tonds",Uit_Proces_Doorzet*Proces_LHVds, IF(D240="GJ",Uit_Proces_Doorzet, IF(D240="MJ",Uit_Proces_Doorzet/1000, IF(D240="MWh",Uit_Proces_Doorzet*3.6, IF(D240="kWh",Uit_Proces_Doorzet*3.6/1000,"Proces-Doorzet-GJ"))))))))) -> 34107.14142 | E249: GJ | F249: Uit_Proces_Doorzet_GJ | I249: GJ | J249: =Uit_Hout_Doorzet_GJ -> 34803.20553 | K249: =Uit_Proces_Doorzet_GJ -> 34107.14142 | L249: GJ | M249: -696.0641106 | O249: =Uit_Hout_Doorzet_GJ -> 34803.20553 | P249: =Uit_Proces_Doorzet_GJ -> 34107.14142 | Q249: GJ
B250: Doorzet | D250: =Uit_Proces_Doorzet_GJ/3.6*1000 -> 9474205.95 | E250: kWh | F250: Uit_Proces_Doorzet_kWh | I250: kWh | J250: =Uit_Hout_Doorzet_kWh -> 9667557.092 | K250: =Uit_Proces_Doorzet_kWh -> 9474205.95 | L250: kWh | M250: -193351.1418 | O250: =Uit_Hout_Doorzet_kWh*3.6/1000 -> 34803.20553 | P250: =Uit_Proces_Doorzet_kWh*3.6/1000 -> 34107.14142 | Q250: GJ
B251: Doorzet | D251: =Uit_Proces_Doorzet_GJ/3.6 -> 9474.20595 | E251: MWh | F251: Uit_Proces_Doorzet_MWh | I251: MWh | J251: =Uit_Hout_Doorzet_MWh -> 9667.557092 | K251: =Uit_Proces_Doorzet_MWh -> 9474.20595 | L251: MWh | M251: -193.3511418 | O251: =Uit_Hout_Doorzet_MWh*3.6 -> 34803.20553 | P251: =Uit_Proces_Doorzet_MWh*3.6 -> 34107.14142 | Q251: GJ
... 368 more rows

Sheet Data (hidden)
B2: Inhoudsopgave
C4: Inhoud | F4: Rijnummer
D6: Global Warming Potentials | F6: =Rij_Global_Warming_Potentials -> 12
D7: Houteigenschappen | F7: =Rij_Data_Hout_Eigenschappen -> 17
D8: Houtvorm | F8: =Rij_Data_Hout_Vorm -> 46
D9: Basisdata JRC-2017 | F9: =Rij_Data_JRC_Basis -> 69
B12: =ROW() -> 12 | C12: Global Warming Potentials
D13: CO2 | E13: 1
D14: CH4 | E14: 25
D15: N2O | E15: 298
B17: =ROW() -> 17 | C17: Hout eigenschappen
C19: Nr | D19: Soort | E19: H2 | F19: HHV | G19: Darr | H19: Krimp | I19: VVP | AL19: Processen
E20: % | F20: MJ/kgds | G20: kgds/m3 | H20: % | I20: %
C21: 1 | D21: Berken | E21: 6 | F21: 19.3 | G21: 640 | H21: 13.9 | I21: 23 | AL21: 1 | AM21: Chippen | AQ21: Blokken (gestapeld)
C22: =C21+1 -> 2 | D22: Beuken | E22: 6 | F22: 19.3 | G22: 680 | H22: 17.9 | I22: 23 | AL22: 2 | AM22: Zagen | AQ22: Blokken (los gestort)
C23: 3 | D23: Douglas | E23: 6.2 | F23: 20.4 | G23: 470 | H23: 11.9 | I23: 23 | AL23: 3 | AM23: Forwarden | AQ23: Chips G100/P63
C24: 4 | D24: Eiken | E24: 6 | F24: 19.3 | G24: 680 | H24: 13.9 | I24: 23 | AL24: 4 | AM24: Opslaan | AQ24: Chips G30/P16
C25: 5 | D25: Elzen | E25: 6 | F25: 19.3 | G25: 490 | H25: 13.1 | I25: 23 | AL25: 5 | AM25: Omzetten | AQ25: Chips G50/P31,5
C26: 6 | D26: Esdoorn | E26: 6 | F26: 19.3 | G26: 600 | H26: 11.5 | I26: 23 | AQ26: Massief
C27: 7 | D27: Essen | E27: 6 | F27: 19.3 | G27: 670 | H27: 13.2 | I27: 23 | AQ27: Pellets - ENplus
C28: 8 | D28: Fijnspar (EU) | E28: 6.2 | F28: 20.4 | G28: 425 | H28: 11.7 | I28: 23
C29: 9 | D29: Fruit | E29: 6 | F29: 19.3 | G29: 690 | H29: 13.9 | I29: 23 | AQ29: Snoeihout-dicht
C30: 10 | D30: Grenen | E30: 6.2 | F30: 20.4 | G30: 510 | H30: 12.1 | I30: 23 | AQ30: Snoeihout-los
C31: 11 | D31: Kastanje | E31: 6 | F31: 19.3 | G31: 530 | H31: 11.3 | I31: 23 | AQ31: Stapelmeter of stère, brandhout
C32: 12 | D32: Linden | E32: 6 | F32: 19.3 | G32: 520 | H32: 14.9 | I32: 23 | AQ32: Stapelmeter of stère, zagerijhout
C33: 13 | D33: Loofhout mix NL | E33: 6 | F33: 19.3 | G33: 633 | H33: 15.4 | I33: 23 | AQ33: Top- en takhout
C34: 14 | D34: Loofhout naaldhout mix NL | E34: 6.1 | F34: 19.8 | G34: 570 | H34: 13.6 | I34: 23 | AQ34: Zaagsel
C35: 15 | D35: Naaldhout mix NL | E35: 6.2 | F35: 20.4 | G35: 505 | H35: 11.7 | I35: 23
C36: 16 | D36: Populieren | E36: 6 | F36: 19.3 | G36: 410 | H36: 13.8 | I36: 23
C37: 17 | D37: Robinia | E37: 6 | F37: 19.3 | G37: 730 | H37: 10.6 | I37: 23
C38: 18 | D38: Vuren | E38: 6.2 | F38: 20.4 | G38: 430 | H38: 11.7 | I38: 23
C39: 19 | D39: Wilgen | E39: 6 | F39: 19.3 | G39: 520 | H39: 10.2 | I39: 23
C41: Bronnen | D41: Klima:aktiv, kalkulationsblatt zur ermittlung von Kenndaten und Preisen fur enrgieholzsortimenten, version 1.6
D42: De laatste versie is te vinden op: www.energieholz.klimaaktiv.at
D43: Empfohlene Umrechnungsfaktoren für Energieholzsortimente bei Holz- bzw. Energiebilanzberechnungen, 2009 klima:aktiv
B46: =ROW() -> 46 | C46: Hout vorm
C48: Nr | D48: Vorm | E48: Factor | F48: As-gehalte
C49: 1 | D49: Blokken (gestapeld) | E49: 0.63 | F49: 1
C50: 2 | D50: Blokken (los gestort) | E50: 0.41 | F50: 1
C51: 3 | D51: Chips G100/P63 | E51: 0.33 | F51: 6
C52: 4 | D52: Chips G30/P16 | E52: 0.4 | F52: 6
C53: 5 | D53: Chips G50/P31,5 | E53: 0.33 | F53: 1.5
C54: 6 | D54: Massief | E54: 1 | F54: 1.5
C55: 7 | D55: Pellets - ENplus | E55: 1.102 | F55: 1.5
C56: 8 | D56: Rondhout | E56: 0.75 | F56: 1.5
C57: 9 | D57: Shreds-20 | E57: 0.35 | F57: 5 | H57: Checken
C58: 10 | D58: Shreds-40 | E58: 0.35 | F58: 5 | H58: Checken
C59: 11 | D59: Shreds-60 | E59: 0.35 | F59: 5 | H59: Checken
C60: 14 | D60: Shreds-80 | E60: 0.35 | F60: 5 | H60: Checken
C61: 15 | D61: Snoeihout-dicht | E61: 0.2 | F61: 1.5
C62: 16 | D62: Snoeihout-los | E62: 0.1 | F62: 0.3
C63: 17 | D63: Stapelmeter of stère, brandhout | E63: 0.575 | F63: 1
C64: 18 | D64: Stapelmeter of stère, zagerijhout | E64: 0.68 | F64: 4
C65: 19 | D65: Top- en takhout | E65: 0.3 | F65: 2
C66: 20 | D66: Zaagsel | E66: 0.6 | F66: 1
B69: =ROW() -> 69 | C69: Basisdata JRC
D71: Dichtheid hout (fijnspar) | E71: 425 | F71: kgds/m3
D72: Vochtigheid | E72: 50 | F72: %
D73: Energiewaarde hout | E73: 19 | F73: MJ/kgds
D74: Energiewaarde diesel | E74: 36 | F74: MJ/liter
D75: Dieselverbruik 40 ton truck | E75: 30.53 | F75: liter/100km
D76: Belading | E76: 50 | F76: %
D77: CO2 diesel | E77: 93.94722222 | F77: gCO2/MJ
D79: Vrachtwagen | E79: 40 | F79: ton
D80: Pay load vrachtwagen | E80: 27 | F80: ton
D81: Tank | E81: 1 | F81: ton
C83: Bron | D83: Giuntoli, J., Agostini, A., Edwards, R., & Marelli, L. (2017) ofwel JRC 2017
B86: =ROW() -> 86 | C86: Brandstof fossiel
C88: Nr | D88: Fuel | E88: RHO kg/m3 | F88: LHV GJ/m3 | G88: LHV MJ/kg | H88: CO2 gCO2/MJ | I88: CH4 gCH4/MJ | J88: N2O gN2O/MJ | K88: GHG gCO2-eq/MJ
C89: 1 | D89: Aardgas | E89: 0.833 | F89: =31.678*0.001 -> 0.031678 | G89: =F89/E89*1000 -> 38.02881152 | H89: 66.45427778 | I89: 0.2074444444 | J89: 0.0003611111111 | K89: =H89*JRC_GWP_CO2+JRC_GWP_CH4*I89+JRC_GWP_N2O*J90 -> 71.64038889
C90: 2 | D90: Benzine | E90: 720 | F90: =E90*G90/1000 -> 33.7752 | G90: 46.91 | H90: 92.41944444 | K90: 92.41944444
C91: 5 | D91: Diesel | E91: 850 | F91: =E91*G91/1000 -> 35.513 | G91: 41.78 | H91: 93.94722222 | K91: 94.02172222
C92: 6 | D92: Kolen | E92: 850 | F92: =33*E92/1000 -> 28.05 | G92: =F92/E92*1000 -> 33 | H92: 102.6160556 | I92: 0.3853611111 | J92: 0.00025 | K92: 112.2583611
C93: 3 | D93: LPG | E93: 600 | F93: =G93/1000*E93 -> 27.42876185 | G93: 45.71460308 | H93: 72.87444444 | I93: 0.01563888889 | J93: 2.777777778e-05 | K93: 73.26541667
C94: 8 | D94: Stookolie | E94: 850 | F94: =41.9*E94/1000 -> 35.615 | G94: =F94/E94*1000 -> 41.9 | H94: 93.3 | K94: 93.3
B99: =ROW() -> 99 | C99: Elektriciteit
C101: Nr | D101: Elektriciteit_Biograce2 | E101: CO2 gCO2/MJ | F101: CH4 gCH4/MJ | G101: N2O gN2O/MJ | H101: GHG gCO2-eq/MJ
C102: 5 | D102: EU-Elektriciteit BE | E102: 56.7 | F102: 0.0767 | G102: 0.00321 | H102: =E102*JRC_GWP_CO2+F102*JRC_GWP_CH4+G102*JRC_GWP_N2O -> 59.57408
C103: 4 | D103: EU-Elektriciteit DE | E103: 163 | F103: 0.198 | G103: 0.00793 | H103: =E103*JRC_GWP_CO2+F103*JRC_GWP_CH4+G103*JRC_GWP_N2O -> 170.31314
C104: 2 | D104: EU-Elektriciteit EU mix (0.4 kV) | E104: 189.7999167 | F104: 0.67975 | G104: 0.006833333333 | H104: =E104*JRC_GWP_CO2+F104*JRC_GWP_CH4+G104*JRC_GWP_N2O -> 208.83
C105: 1 | D105: EU-Elektriciteit EU mix (10-20 kV) | E105: 178.4504167 | F105: 0.6390833333 | G105: 0.006444444444 | H105: =E105*JRC_GWP_CO2+F105*JRC_GWP_CH4+G105*JRC_GWP_N2O -> 196.3479444
C106: 3 | D106: EU-Elektriciteit NL | E106: 141 | F106: 0.159 | G106: 0.00575 | H106: =E106*JRC_GWP_CO2+F106*JRC_GWP_CH4+G106*JRC_GWP_N2O -> 146.6885
C109: Nr | D109: Elektriciteit_CO2_Emissiefactoren | E109: CO2 gCO2/MJ | F109: CH4 gCH4/MJ | G109: N2O gN2O/MJ | H109: GHG gCO2-eq/MJ
C110: 4 | D110: NL-Elektriciteit biomassa | E110: =0.075/3.6*1000 -> 20.83333333 | F110: 0 | G110: 0 | H110: =E110*JRC_GWP_CO2+F110*JRC_GWP_CH4+G110*JRC_GWP_N2O -> 20.83333333 | J110: CO2-emissiefactoren geeft geen waarden voor CO2, CH4 en N2O
C111: 5 | D111: NL-Elektriciteit grijs | E111: =0.649/3.6*1000 -> 180.2777778 | F111: 0 | G111: 0 | H111: =E111*JRC_GWP_CO2+F111*JRC_GWP_CH4+G111*JRC_GWP_N2O -> 180.2777778 | J111: CO2-emissiefactoren geeft geen waarden voor CO2, CH4 en N2O
C112: 2 | D112: NL-Elektriciteit water | E112: 0 | F112: 0 | G112: 0 | H112: =E112*JRC_GWP_CO2+F112*JRC_GWP_CH4+G112*JRC_GWP_N2O -> 0 | J112: CO2-emissiefactoren geeft geen waarden voor CO2, CH4 en N2O
C113: 1 | D113: NL-Elektriciteit wind | E113: 0 | F113: 0 | G113: 0 | H113: =E113*JRC_GWP_CO2+F113*JRC_GWP_CH4+G113*JRC_GWP_N2O -> 0 | J113: CO2-emissiefactoren geeft geen waarden voor CO2, CH4 en N2O
C114: 3 | D114: NL-Elektriciteit zon | E114: 0 | F114: 0 | G114: 0 | H114: =E114*JRC_GWP_CO2+F114*JRC_GWP_CH4+G114*JRC_GWP_N2O -> 0 | J114: CO2-emissiefactoren geeft geen waarden voor CO2, CH4 en N2O
C117: Nr | D117: Elektriciteit_Biograce2-CO2 emissiefactoren | E117: CO2 gCO2/MJ | F117: CH4 gCH4/MJ | G117: N2O gN2O/MJ | H117: GHG gCO2-eq/MJ
D118: EU-Elektriciteit BE | E118: 56.7 | F118: 0.0767 | G118: 0.00321 | H118: =E118*JRC_GWP_CO2+F118*JRC_GWP_CH4+G118*JRC_GWP_N2O -> 59.57408
D119: EU-Elektriciteit DE | E119: 163 | F119: 0.198 | G119: 0.00793 | H119: 170.31314
D120: EU-Elektriciteit EU mix (0.4 kV) | E120: 189.7999167 | F120: 0.67975 | G120: 0.006833333333 | H120: 208.83
D121: EU-Elektriciteit EU mix (10-20 kV) | E121: 178.4504167 | F121: 0.6390833333 | G121: 0.006444444444 | H121: 196.3479444
D122: EU-Elektriciteit NL | E122: 141 | F122: 0.159 | G122: 0.00575 | H122: 146.6885
D123: NL-Elektriciteit biomassa | E123: =0.075/3.6*1000 -> 20.83333333 | F123: 0 | G123: 0 | H123: 20.83333333 | J123: CO2-emissiefactoren geeft geen waarden voor CO2, CH4 en N2O
D124: NL-Elektriciteit grijs | E124: =0.649/3.6*1000 -> 180.2777778 | F124: 0 | G124: 0 | H124: 180.2777778 | J124: CO2-emissiefactoren geeft geen waarden voor CO2, CH4 en N2O
D125: NL-Elektriciteit water | E125: 0 | F125: 0 | G125: 0 | H125: 0 | J125: CO2-emissiefactoren geeft geen waarden voor CO2, CH4 en N2O
D126: NL-Elektriciteit wind | E126: 0 | F126: 0 | G126: 0 | H126: 0 | J126: CO2-emissiefactoren geeft geen waarden voor CO2, CH4 en N2O
D127: NL-Elektriciteit zon | E127: 0 | F127: 0 | G127: 0 | H127: 0 | J127: CO2-emissiefactoren geeft geen waarden voor CO2, CH4 en N2O
C130: =ROW() -> 130 | D130: Brandstof
C132: Nr | D132: Brandstof - Biograce2 | E132: Dichtheid kg/m3 | F132: LHV GJ/m3 | G132: LHV MJ/kg | H132: gCO2/MJ | I132: gCH4/MJ | J132: gN2O/MJ | K132: gCO2eq/MJ | L132: gCO2eq/MJ
D133: EU-Aardgas | E133: 0.833 | F133: =31.678*0.001 -> 0.031678 | G133: 49.2 | H133: 66.45427778 | I133: 0.2074444444 | J133: 0.0003611111111 | K133: =JRC_GWP_CO2*H133+JRC_GWP_CH4*I133+JRC_GWP_N2O*J133 -> 71.748 | O133: Marginal supply of natural gas based on a combination of various JEC pathways
D134: EU-Benzine | E134: 745 | F134: =G134*E134/1000 -> 32.184 | G134: 43.2 | H134: 92.41944444 | I134: 0 | J134: 0 | K134: =JRC_GWP_CO2*H134+JRC_GWP_CH4*I134+JRC_GWP_N2O*J134 -> 92.41944444 | O134: JRC scientific report EUR 27215 EN *
D135: EU-Diesel | E135: 832 | F135: =G135*E135/1000 -> 35.8592 | G135: 43.1 | H135: 93.94722222 | I135: 0 | J135: 0 | K135: =JRC_GWP_CO2*H135+JRC_GWP_CH4*I135+JRC_GWP_N2O*J135 -> 93.94722222 | O135: JRC scientific report EUR 27215 EN *
D136: EU-Diesel - Heavy Fuel Oil (1,8% S) | E136: 970 | F136: =G136*E136/1000 -> 39.285 | G136: 40.5 | H136: 93.3 | I136: 0 | J136: 0 | K136: =JRC_GWP_CO2*H136+JRC_GWP_CH4*I136+JRC_GWP_N2O*J136 -> 93.3 | O136: JRC scientific report EUR 27215 EN *
C142: Nr | D142: Brandstof - CO2 Emissiefactoren | E142: Dichtheid kg/m3 | F142: LHV MJ/liter | G142: LHV MJ/kg | H142: gCO2/MJ | I142: gCH4/MJ | J142: gN2O/MJ | K142: gCO2eq/MJ | L142: kgCO2eq/l | M142: kgCO2eq/kg | N142: kgCO2eq/Nm3
D143: NL-Aardgas | E143: 0.833 | F143: =31.678/1000 -> 0.031678 | G143: =F143/E143*1000 -> 38.02881152 | H143: =F143*N143*1000 -> 59.87142 | I143: 0 | J143: 0 | K143: =JRC_GWP_CO2*H143+JRC_GWP_CH4*I143+JRC_GWP_N2O*J143 -> 59.87142 | M143: =G143*K143/1000 -> 2.276838947 | N143: 1.89 | O143: CO2eq/Nm3 is van Basisegevens Aaardgas (Gasunie). CO2eq/liter is van CO2-emissiefactoren. Overige data van Biograce2 is van CO2-emissiefactoren. Overige data van Biograce2
D144: NL-Aardgas-CNG | E144: 453 | F144: =E144*G144/1000 -> 21.11748288 | G144: =1.3*E148/1000*G148 -> 46.61696 | H144: =M144*1000/G144 -> 58.51947446 | I144: 0 | J144: 0 | K144: 58.51947446 | M144: 2.728 | O144: Omrekening: 1 kg CNG = 1,3 liter diesel
D145: NL-Benzine | E145: 745 | F145: =G145*E145/1000 -> 32.184 | G145: 43.2 | H145: =L145*F145 -> 88.18416 | I145: 0 | J145: 0 | K145: 88.18416 | L145: 2.74 | M145: =G145*K145/1000 -> 3.809555712 | O145: CO2eq/liter is van CO2-emissiefactoren. Overige data van Biograce2
D146: NL-Bio-CNG (Groengas) | E146: 453 | F146: =E146*G146/1000 -> 19.5696 | G146: =G145 -> 43.2 | H146: =M146*1000/G146 -> 24.05092593 | I146: 0 | J146: 0 | K146: 24.05092593 | M146: 1.039 | O146: CO2eq/liter is van CO2-emissiefactoren. Overige data van Biograce2
D147: NL-Biodiesel | E147: 880 | F147: 32 | G147: 36.36363636 | H147: =L147*F147 -> 100.928 | I147: 0 | J147: 0 | K147: 100.928 | L147: 3.154 | M147: =G147*K147/1000 -> 3.670109091 | O147: CO2eq/liter is van CO2-emissiefactoren. Overige data van Biograce2
D148: NL-Diesel | E148: 832 | F148: =G148*E148/1000 -> 35.8592 | G148: 43.1 | H148: =L148*F148 -> 115.825216 | I148: 0 | J148: 0 | K148: 115.825216 | L148: 3.23 | M148: =G148*K148/1000 -> 4.99206681 | O148: CO2eq/liter is van CO2-emissiefactoren. Overige data van Biograce2
D149: NL-LPG | E149: 540 | F149: =E149*G149/1000 -> 24.408 | G149: 45.2 | H149: 66.7 | I149: 0 | J149: 0 | K149: 66.7 | L149: 1.806 | O149: CO2eq/liter is van CO2-emissiefactoren. Overige data van Biograce2
D150: NL-Waterstof | E150: 90.66 | F150: =G150*E150/1000 -> 10.824804 | G150: 119.4 | H150: 105 | I150: 0 | J150: 0 | K150: 105 | L150: 1.136 | M150: =G150*K150/1000 -> 12.537 | O150: CO2eq/liter is van CO2-emissiefactoren. Overige data van Biograce2
C153: Reserve | D153: NL-Aardgas (hoog calorisch) | E153: 0.75 | F153: 0.04 | G153: =F153/E153*1000 -> 53.33333333
C157: Nr | D157: Brandstof - Biograce2 + CO2 Emissiefactoren | E157: Dichtheid kg/m3 | F157: LHV GJ/m3 | G157: LHV MJ/kg | H157: gCO2/MJ | I157: gCH4/MJ | J157: gN2O/MJ | K157: gCO2eq/MJ | L157: gCO2eq/l | N157: kgCO2eq/Nm3
D158: EU-Aardgas | G158: 49.2 | H158: 66.45427778 | I158: 0.2074444444 | J158: 0.0003611111111 | K158: =JRC_GWP_CO2*H158+JRC_GWP_CH4*I158+JRC_GWP_N2O*J158 -> 71.748 | O158: Marginal supply of natural gas based on a combination of various JEC pathways
D159: EU-Benzine | E159: 745 | F159: =G159*E159/1000 -> 32.184 | G159: 43.2 | H159: 92.41944444 | I159: 0 | J159: 0 | K159: 92.41944444 | O159: JRC scientific report EUR 27215 EN *
D160: EU-Diesel | E160: 832 | F160: =G160*E160/1000 -> 35.8592 | G160: 43.1 | H160: 93.94722222 | I160: 0 | J160: 0 | K160: 93.94722222 | O160: JRC scientific report EUR 27215 EN *
D161: EU-Diesel - HFO (1,8% S) | E161: 970 | F161: =G161*E161/1000 -> 39.285 | G161: 40.5 | H161: 93.3 | I161: 0 | J161: 0 | K161: 93.3 | O161: JRC scientific report EUR 27215 EN *
D162: NL-Aardgas | E162: 0.833 | F162: =31.678/1000 -> 0.031678 | G162: =F162/E162*1000 -> 38.02881152 | H162: =F162*N162*1000 -> 59.87142 | I162: 0 | J162: 0 | K162: 59.87142 | M162: =G162*K162/1000 -> 2.276838947 | N162: 1.89 | O162: CO2eq/Nm3 is van Basisegevens Aaardgas (Gasunie). CO2eq/liter is van CO2-emissiefactoren. Overige data van Biograce2 is van CO2-emissiefactoren. Overige data van Biograce2
D163: NL-Aardgas-CNG | E163: 453 | F163: =E163*G163/1000 -> 21.11748288 | G163: =1.3*E167/1000*G167 -> 46.61696 | H163: =M163*1000/G163 -> 58.51947446 | I163: 0 | J163: 0 | K163: 58.51947446 | M163: 2.728 | O163: Omrekening: 1 kg CNG = 1,3 liter diesel
D164: NL-Benzine | E164: 745 | F164: =G164*E164/1000 -> 32.184 | G164: 43.2 | H164: =L164*F164 -> 88.18416 | I164: 0 | J164: 0 | K164: 88.18416 | L164: 2.74 | M164: =G164*K164/1000 -> 3.809555712 | O164: CO2eq/liter is van CO2-emissiefactoren. Overige data van Biograce2
D165: NL-Bio-CNG (Groengas) | E165: 453 | F165: =E165*G165/1000 -> 19.5696 | G165: =G164 -> 43.2 | H165: =M165*1000/G165 -> 24.05092593 | I165: 0 | J165: 0 | K165: 24.05092593 | M165: 1.039 | O165: CO2eq/liter is van CO2-emissiefactoren. Overige data van Biograce2
D166: NL-Biodiesel | E166: 880 | F166: 32 | G166: 36.36363636 | H166: =L166*F166 -> 100.928 | I166: 0 | J166: 0 | K166: 100.928 | L166: 3.154 | M166: =G166*K166/1000 -> 3.670109091 | O166: CO2eq/liter is van CO2-emissiefactoren. Overige data van Biograce2
D167: NL-Diesel | E167: 832 | F167: =G167*E167/1000 -> 35.8592 | G167: 43.1 | H167: =L167*F167 -> 115.825216 | I167: 0 | J167: 0 | K167: 115.825216 | L167: 3.23 | M167: =G167*K167/1000 -> 4.99206681 | O167: CO2eq/liter is van CO2-emissiefactoren. Overige data van Biograce2
D168: NL-LPG | E168: 540 | F168: =E168*G168/1000 -> 24.408 | G168: 45.2 | H168: 66.7 | I168: 0 | J168: 0 | K168: 66.7 | L168: 1.806 | O168: CO2eq/liter is van CO2-emissiefactoren. Overige data van Biograce2
D169: NL-Waterstof (Vloeibaar) | E169: 90.66 | F169: =G169*E169/1000 -> 10.824804 | G169: 119.4 | H169: 105 | I169: 0 | J169: 0 | K169: 105 | L169: 1.136 | M169: =G169*K169/1000 -> 12.537 | O169: CO2eq/liter is van CO2-emissiefactoren. Overige data van Biograce2
B242: Transport
D244: Lijst_Dim_Transport_Laadvermogen | F244: Lijst_Brandstof_Soort | I244: Lijst_Brandstof_RHO_kgm3 | J244: Lijst_Brandstof_LHV_GJm3
C245: Nr | D245: Dimensie | F245: Brandstof | I245: Dichtheid kg/m3 | J245: LHV GJ/m3
C246: 1 | F246: Aardgas - CNG | I246: 999 | J246: 99
C247: 2 | F247: Benzine | I247: 745.4545455 | J247: 32.8
F248: Bio-diesel - gemiddeld | I248: 880 | J248: 32
F249: Bio-diesel uit afval | I249: 880 | J249: 32
F250: Bio-diesel uit palmolie | I250: 880 | J250: 32
F251: Bio-diesel uit soja | I251: 880 | J251: 32
F252: Bio-diesel uit zonnebloemen | I252: 880 | J252: 32
F253: Bio-ethanol - gemiddeld | I253: 745.4545455 | J253: 32.8
F254: Bio-ethanol uit graan | I254: 745.4545455 | J254: 32.8
F255: Bio-ethanol uit stro | I255: 745.4545455 | J255: 32.8
F256: Bio-ethanol uit suikerbieten | I256: 745.4545455 | J256: 32.8
F257: Bio-ethanol uit suikerriet | I257: 745.4545455 | J257: 32.8
F258: Biogas | I258: 999 | J258: 99
F259: Diesel | I259: 840.7494145 | J259: 35.9
F260: Koolzaadolie | I260: 880 | J260: 32
F261: LPG | I261: 539.6475771 | J261: 24.5
F262: Waterstof | I262: 999 | J262: 99
C266: Lijst_Dim_Brandstof_Verbruik | F266: Lijst_Dim_Brandstof_Verbruik
C267: Nr | D267: Unit | F267: Nr | G267: Unit
C268: 1 | F268: 1
C269: 2 | F269: 2
C270: 3 | F270: 3
C271: 4 | F271: 4
C272: 5 | F272: 5
C273: 6 | F273: 6
C274: 7 | F274: 7
C275: 8 | F275: 8
C276: 9
C277: 10
C278: 11 | AB278: Lijst_Dim_CO2_Doorzet
C279: 12 | Z279: Dimensie | AB279: Nr | AC279: Dimensie
Z280: kg | AB280: 1 | AC280: kg
Z281: ton | AB281: 2 | AC281: kg/GJ
AC282: kg/ha
AC283: kg/m3
AC284: kg/MWh
G285: kg | AC285: kg/ton
G286: ton | AC286: kg/tonds
AC287: ton
C292: Lijst_Dim_Euro_Doorzet | F292: Lijst_Dim_Euro_CO2 | AB292: Lijst
C293: Nr | D293: Unit | F293: Nr | G293: Unit | Z293: Dimensie | AB293: Arbeid
C294: 1 | D294: € | F294: 1 | G294: € | Z294: FTE | AB294: Tijd
C295: 2 | D295: €/m3 | F295: 4 | G295: €/ton | Z295: uur
C296: 6 | D296: €/ton | G296: €/m3 | Z296: m3/uur | AB296: FTE
C297: 7 | D297: €/tonds | G297: €/GJ | Z297: ha/uur | AB297: GJ/uur | AC297: GJ/uur
C298: 8 | D298: €/GJ | G298: €/MWh | Z298: ton/uur | AB298: ha/uur | AC298: ha/uur
C299: 9 | D299: €/MWh | Z299: tonds/uur | AB299: m3/uur | AC299: m3/uur
Z300: GJ/uur | AB300: MWh/uur | AC300: MWh/uur
Z301: MWh/uur | AB301: ton/uur | AC301: ton/uur
Z302: uur/m3 | AB302: tonds/uur | AC302: tonds/uur
Z303: uur/ha | AB303: uur | AC303: uur
F304: Lijst_Dim_Hout_Opbrengst | I304: Lijst_Dim_Stroomkosten | Z304: uur/ton | AB304: uur/GJ | AC304: uur/GJ
F305: Nr | G305: Dimensie | I305: Nr | J305: Dimensie | Z305: uur/tonds | AB305: uur/ha | AC305: uur/ha
F306: 1 | G306: m3/ha | I306: 1 | J306: € | Z306: uur/GJ | AB306: uur/m3 | AC306: uur/m3
F307: 2 | G307: ton/ha | J307: €/kWh | Z307: uur/MWh | AB307: uur/MWh | AC307: uur/MWh
F308: 3 | G308: tonds/ha | J308: €/MWh | AB308: uur/ton | AC308: uur/ton
F309: 4 | G309: GJ/ha | AB309: uur/tonds | AC309: uur/tonds
F310: 5 | G310: MWh/ha
F311: 6 | G311: kWh/ha

Sheet Ketens-Berekend (hidden)
D2: Invoer | G2: =VLOOKUP(C2,Lijst_NL_Keten,2) -> 
C4: 1 | D4: =C4+1 -> 2 | E4: =D4+1 -> 3 | F4: =E4+1 -> 4 | G4: =F4+1 -> 5 | H4: =G4+1 -> 6 | I4: 7 | J4: 8 | K4: 9 | L4: 10 | M4: 11 | N4: 12 | O4: 13 | P4: 14 | Q4: 15 | R4: 16 | S4: 17 | T4: 18 | U4: 19 | V4: 20 | W4: 21 | X4: 22 | Y4: 23 | Z4: 24 | AA4: 25 | AB4: 26 | AC4: 27 | AD4: 28 | AE4: 29 | AF4: 30 | AG4: 31 | AH4: 32 | AI4: 33 | AJ4: 34 | AK4: 35 | AL4: 36 | AM4: 37 | AN4: 38 | AO4: 39 | AP4: 40 | AQ4: 41 | AR4: 42 | AS4: 43 | AT4: 44 | AU4: 45 | AV4: 46 | AW4: 47 | AX4: 48 | AY4: 49 | AZ4: 50 | BA4: 51 | BB4: 52 | BC4: 53 | BD4: 54 | BE4: 55 | BF4: 56 | BG4: 57 | BH4: 58 | BI4: 59 | BJ4: 60 | BK4: 61 | BL4: 62 | BM4: 63 | BN4: 64 | BO4: 65 | BP4: 66 | BQ4: 67 | BR4: 68 | BS4: 69 | BT4: =BS4+1 -> 70 | BU4: 71 | BV4: 72 | BW4: 73 | BX4: 74 | BY4: 75 | BZ4: 76 | CA4: 77 | CB4: 78 | CC4: 79 | CD4: 80 | CE4: 81 | CF4: 82 | CG4: 83 | CH4: 84 | CI4: 85 | CJ4: 86 | CK4: 87
B5: =ROW() -> 5 | E5: Ketens EU en NL | M5: 1 | N5: ="Ketenstap-"&M5 -> Ketenstap-1 | X5: =M5+1 -> 2 | Y5: ="Ketenstap-"&X5 -> Ketenstap-2 | AI5: =X5+1 -> 3 | AJ5: ="Ketenstap-"&AI5 -> Ketenstap-3 | AT5: =AI5+1 -> 4 | AU5: ="Ketenstap-"&AT5 -> Ketenstap-4 | BE5: =AT5+1 -> 5 | BF5: ="Ketenstap-"&BE5 -> Ketenstap-5 | BP5: =BE5+1 -> 6 | BQ5: ="Ketenstap-"&BP5 -> Ketenstap-6 | CA5: =BP5+1 -> 7 | CB5: ="Ketenstap-"&CA5 -> Ketenstap-7
G6: Broeikasgassen in gCO2eq/MJ - EU | M6: =N5 -> Ketenstap-1 | N6: =N5 -> Ketenstap-1 | P6: Doorzet | Q6: Doorzet | R6: Vochtigheid | S6: Diesel | T6: CO2 | U6: CH4 | V6: N2O | W6: CO2eq | X6: =Y5 -> Ketenstap-2 | Y6: =Y5 -> Ketenstap-2 | AA6: Doorzet | AB6: Doorzet | AC6: Vochtigheid | AD6: Diesel | AE6: CO2 | AF6: CH4 | AG6: N2O | AH6: CO2eq | AI6: =AJ5 -> Ketenstap-3 | AJ6: =AJ5 -> Ketenstap-3 | AL6: Doorzet | AM6: Doorzet | AN6: Vochtigheid | AO6: Diesel | AP6: CO2 | AQ6: CH4 | AR6: N2O | AS6: CO2eq | AT6: =AU5 -> Ketenstap-4 | AU6: =AU5 -> Ketenstap-4 | AV6: Stap2 | AW6: Doorzet | AX6: Doorzet | AY6: Vochtigheid | AZ6: Diesel | BA6: CO2 | BB6: CH4 | BC6: N2O | BD6: CO2eq | BE6: =BF5 -> Ketenstap-5 | BF6: =BF5 -> Ketenstap-5 | BH6: Doorzet | BI6: Doorzet | BJ6: Vochtigheid | BK6: Diesel | BL6: CO2 | BM6: CH4 | BN6: N2O | BO6: CO2eq | BP6: =BQ5 -> Ketenstap-6 | BQ6: =BQ5 -> Ketenstap-6 | BS6: Doorzet | BT6: Doorzet | BU6: Vochtigheid | BV6: Diesel | BW6: CO2 | BX6: CH4 | BY6: N2O | BZ6: CO2eq | CA6: =CB5 -> Ketenstap-7 | CB6: =CB5 -> Ketenstap-7 | CD6: Doorzet | CE6: Doorzet | CF6: Vochtigheid | CG6: Diesel | CH6: CO2 | CI6: CH4 | CJ6: N2O | CK6: CO2eq
C7: Nr + NL-Titel | D7: NL/EU | E7: Nr | F7: NL-Titel | G7: Cultivatie | H7: Proces | I7: Transport | J7: Verbranding | K7: Totaal | L7: Stappen | M7: Titel-kort | N7: Detailinformatie | O7: C/P/T | P7: MJout/MJin | Q7: MJin | R7: % | S7: MJ/MJdoorzet | T7: g/MJ | U7: g/MJ | V7: g/MJ | W7: g/MJ | X7: Titel-kort | Y7: Detailinformatie | Z7: P/T | AA7: MJout/MJin | AB7: MJin | AC7: % | AD7: MJ/MJdoorzet | AE7: g/MJ | AF7: g/MJ | AG7: g/MJ | AH7: g/MJ | AI7: Titel-kort | AJ7: Detailinformatie | AK7: C/P/T | AL7: MJout/MJin | AM7: MJout | AN7: % | AO7: MJ/MJdoorzet | AP7: g/MJ | AQ7: g/MJ | AR7: g/MJ | AS7: g/MJ | AT7: Titel-kort | AU7: Detailinformatie | AV7: P/T | AW7: MJout/MJin | AX7: MJout | AY7: % | AZ7: MJ/MJdoorzet | BA7: g/MJ | BB7: g/MJ | BC7: g/MJ | BD7: g/MJ | BE7: Titel-kort | BF7: Detailinformatie | BG7: C/P/T | BH7: MJout/MJin | BI7: MJout | BJ7: % | BK7: MJ/MJdoorzet | BL7: g/MJ | BM7: g/MJ | BN7: g/MJ | BO7: g/MJ | BP7: Titel-kort | BQ7: Detailinformatie | BR7: P/T | BS7: MJout/MJin | BT7: MJout | BU7: % | BV7: MJ/MJdoorzet | BW7: g/MJ | BX7: g/MJ | BY7: g/MJ | BZ7: g/MJ | CA7: Titel-kort | CB7: Detailinformatie | CC7: C/P/T | CD7: MJout/MJin | CE7: MJout | CF7: % | CG7: MJ/MJdoorzet | CH7: g/MJ | CI7: g/MJ | CJ7: g/MJ | CK7: g/MJ | CP7: Titel | CQ7: Stap1 | CR7: Stap2 | CS7: Stap3 | CT7: Stap4 | CU7: Stap5 | CV7: Stap6
B8: NL | C8: =E8&"-"&F8 -> 1a-Chips uit top- en tak hout uit bos of landschap | D8: EU-NL | E8: 1a | F8: Chips uit top- en tak hout uit bos of landschap | G8: 0 | H8: 1.516436676 | I8: 0.890136 | J8: 0.4135818839 | K8: =SUM(G8:I8) -> 2.406572676 | L8: =IF(M8="",0,IF(X8="",1,IF(AI8="",2,IF(AT8="",3,IF(BE8="",4,IF(BP8="",5,6)))))) -> 4 | M8: Inzamelen top- en takhout | N8: Bundelen en stobben oogsten is geen gebruikelijk praktijk in NL. Uitrijden varieert - afhankelijk van de situatie - tussen ca. 1 en 2 liter per verse ton. Het conservatief gemiddelde op basis van de gegevens van de partijen uit de keten in NL wordt gesteld op ca. 2 liter per verse ton. Dit is ca. 4 liter per ton droge stof. Een aantal bedrijven in Nederland chippen in het bos, en rijden met trekker en dumper uit naar het bospad. Dit scenario is in dit project niet beschreven. | O8: P | P8: 1 | Q8: =AB8*P8 -> 1.078947368 | R8: 50 | S8: 0.007578947368 | T8: =S8*JRC_Basis_Diesel_CO2*Q8 -> 0.768233241 | U8: 0 | V8: 0 | W8: 0.7789473684 | X8: Drogen langs de weg | Y8: Meestal wordt niet gedroogd langs de weg en vrijwel direct gechipt en met een vochtigheid (M45) aan de klant geleverd. Door de kortere opslagtijd zal het verlies in NL minder zijn. Voor het gemak is dezelfde waarde voor verlies aangehouden voor NL, als bij JRC. | Z8: P | AA8: 1.052631579 | AB8: =AM8*AA8 -> 1.078947368 | AH8: 0 | AI8: Chippen | AJ8: In Nederland wordt vooral met diesel gechipt. Dieselverbruik is ca. 1,5 l/ton vers. De berekening gaat uit van een conservatief gemiddelde: 2 l/ton vers, en een verlies als in de EU. | AK8: P | AL8: 1.025 | AM8: =AX8*AL8 -> 1.025 | AN8: 50 | AS8: 0.7368421053 | AT8: Transport chips naar afnemer | AU8: De vochtigheid van de NL chips is aangenomen op 45 %. De verste gemiddelde straal tot de afnemer bij de in het project betrokken partijen in de houtketen is 120 km voor NL chips. Om de waarde 'conservatief' te houden is deze afstand opgehoogd naar 150 km. Voor een truck van 40 ton, payload 27 ton chips is het verbruik diesel is 30,53 liter per 100 km (dataset JRC 2017). Met vochtigheid M45 is dit 14,8 ton droge stof. Conservatief gemiddelde voor de loadfactor is 50 % (=lege terugreis).Verbruik diesel is 30,53 liter/14,8 ton droge stof *2*1,5= 6,19 liter/ton droge stof/150 km. | AV8: T | AW8: 1 | AX8: 1 | BD8: 0.8894736842 | BI8: =BS8*BH8 -> 0 | BJ8: 50 | BO8: 0 | BS8: =CE8*BT8 -> 1 | BT8: 1 | BZ8: 0 | CD8: 1 | CE8: 1 | CP8: =C8 -> 1a-Chips uit top- en tak hout uit bos of landschap | CQ8: =N8 -> Bundelen en stobben oogsten is geen gebruikelijk praktijk in NL. Uitrijden varieert - afhankelijk van de situatie - tussen ca. 1 en 2 liter per verse ton. Het conservatief gemiddelde op basis van de gegevens van de partijen uit de keten in NL wordt gesteld op ca. 2 liter per verse ton. Dit is ca. 4 liter per ton droge stof. Een aantal bedrijven in Nederland chippen in het bos, en rijden met trekker en dumper uit naar het bospad. Dit scenario is in dit project niet beschreven. | CR8: =Y8 -> Meestal wordt niet gedroogd langs de weg en vrijwel direct gechipt en met een vochtigheid (M45) aan de klant geleverd. Door de kortere opslagtijd zal het verlies in NL minder zijn. Voor het gemak is dezelfde waarde voor verlies aangehouden voor NL, als bij JRC. | CS8: =AJ8 -> In Nederland wordt vooral met diesel gechipt. Dieselverbruik is ca. 1,5 l/ton vers. De berekening gaat uit van een conservatief gemiddelde: 2 l/ton vers, en een verlies als in de EU. | CT8: =AU8 -> De vochtigheid van de NL chips is aangenomen op 45 %. De verste gemiddelde straal tot de afnemer bij de in het project betrokken partijen in de houtketen is 120 km voor NL chips. Om de waarde 'conservatief' te houden is deze afstand opgehoogd naar 150 km. Voor een truck van 40 ton, payload 27 ton chips is het verbruik diesel is 30,53 liter per 100 km (dataset JRC 2017). Met vochtigheid M45 is dit 14,8 ton droge stof. Conservatief gemiddelde voor de loadfactor is 50 % (=lege terugreis).Verbruik diesel is 30,53 liter/14,8 ton droge stof *2*1,5= 6,19 liter/ton droge stof/150 km.
C9: 2a-Chips uit rondhout uit bos of landschap | D9: EU-NL | E9: 2a | F9: Chips uit rondhout uit bos of landschap | G9: 1.093800158 | H9: 0.5540826316 | I9: 1.329513806 | J9: 0.4135818839 | K9: 1 | L9: 5 | M9: Teelt rondhout | N9: De ‘typische’ praktijk in NL verschilt. Er is vaak natuurlijke verjonging en nauwelijks bemesting. Deze berekenen is niet haalbaar voor deze opdracht. De EU waarde wordt hier gebruikt. | O9: C | P9: 1 | S9: 0.01066 | T9: =S9*JRC_Basis_Diesel_CO2 -> 1.001477389 | U9: 0 | V9: 0 | W9: 1.094736842 | X9: Transport naar centrale opslag | Y9: Transport is in een straal van maximaal 50 km met een rondhout vrachtwagen met 40 ton vers laadvermogen. De terugrit is leeg. Gerekend is met de maximale heen én terugrit. | Z9: T | AA9: 1 | AB9: 1 | AD9: 0.002898947368 | AE9: =AD9*JRC_Basis_Diesel_CO2 -> 0.2723480526 | AH9: 0.4368421053 | AI9: Drogen op centrale opslag | AJ9: De EU-waarde is aangehouden. | AK9: P | AL9: 1.05 | AM9: =AX9*AL9 ->  | AS9: 0 | AT9: Chippen | AU9: In Nederland wordt vooral met diesel gechipt. Dieselverbruik is ca. 1,5 l/ton vers. De berekening gaat uit van een conservatief gemiddelde: 2 l/ton vers (= 4 l/ton ds), en een verlies als in EU. | AV9: P | AW9: 1.025 | BD9: 0.5526315789 | BE9: Transport chips naar afnemer | BF9: Transport is in een straal van maximaal 120 km met een walkingfloor trailer of 2 containers (27 ton laadvermogen). De terugrit is leeg. Gerekend is voor de maximale heen én terugrit. | BG9: T | BH9: 1 | BI9: =BS9*BH9 -> 0 | BO9: 0.8894736842 | BZ9: 0 | CP9: 2a-Chips uit rondhout uit bos of landschap | CQ9: De ‘typische’ praktijk in NL verschilt. Er is vaak natuurlijke verjonging en nauwelijks bemesting. Deze berekenen is niet haalbaar voor deze opdracht. De EU waarde wordt hier gebruikt. | CR9: Transport is in een straal van maximaal 50 km met een rondhout vrachtwagen met 40 ton vers laadvermogen. De terugrit is leeg. Gerekend is met de maximale heen én terugrit. | CS9: De EU-waarde is aangehouden. | CT9: =AU9 -> In Nederland wordt vooral met diesel gechipt. Dieselverbruik is ca. 1,5 l/ton vers. De berekening gaat uit van een conservatief gemiddelde: 2 l/ton vers (= 4 l/ton ds), en een verlies als in EU.
C10: 2b-Pellets uit (vers) rondhout uit bos of landschap | D10: EU-NL | E10: 2b | F10: Pellets uit (vers) rondhout uit bos of landschap | G10: 1.049501251 | H10: 21.57137251 | I10: 1.953968346 | J10: 0.2512145395 | K10: 0 | L10: 6 | M10: Teelt rondhout | N10: De ‘typische’ praktijk in NL verschilt. Er is vaak natuurlijke verjonging en nauwelijks bemesting. Deze berekenen is niet haalbaar voor deze opdracht. De EU waarde wordt hier gebruikt. | O10: C | P10: 1 | S10: 0.01066 | T10: 1.001477389 | U10: 0 | V10: 0 | W10: 1.047368421 | X10: Transport naar centrale opslag | Y10: Transport is in een straal van maximaal 50 km met een rondhout vrachtwagen met 40 ton vers laadvermogen. De terugrit is leeg. Gerekend is met de maximale heen én terugrit. | Z10: T | AA10: 1 | AD10: 0.002898947368 | AH10: 0.4210526316 | AI10: Chippen | AJ10: In Nederland wordt vooral met diesel gechipt. Dieselverbruik is ca. 1,5 l/ton vers. De berekening gaat uit van een conservatief gemiddelde: 2 l/ton vers (= 4 l/ton ds), en een verlies als in EU. | AK10: P | AS10: 0.5578947368 | AT10: Transport chips naar fabriek | AU10: Transport is in een straal van maximaal 120 km met een walkingfloor trailer of 2 containers (27 ton laadvermogen). De terugrit is leeg. Gerekend is voor de maximale heen én terugrit. | AV10: T | BD10: 0.9894736842 | BE10: Drogen, verkleinen, pelletiseren | BF10: Zie beschrijving EU. De elektriciteit nodig voor de pelletpers en andere processen komt van het NL-elektriciteitsnet. Emissiefactor stroom is gemiddelde NL, zie BioGrace-II. | BG10: P | BO10: 21.01052632 | BP10: Transport pellets naar afnemer | BQ10: Transport is in een straal van maximaal 150 km met een walkingfloor trailer of 2 containers (27 ton laadvermogen). De terugrit is leeg. Gerekend is voor de maximale heen én terugrit. | BR10: T | BZ10: 0.5421052632 | CP10: 2b-Pellets uit (vers) rondhout uit bos of landschap | CQ10: De ‘typische’ praktijk in NL verschilt. Er is vaak natuurlijke verjonging en nauwelijks bemesting. Deze berekenen is niet haalbaar voor deze opdracht. De EU waarde wordt hier gebruikt. | CR10: Transport is in een straal van maximaal 50 km met een rondhout vrachtwagen met 40 ton vers laadvermogen. De terugrit is leeg. Gerekend is met de maximale heen én terugrit. | CS10: In Nederland wordt vooral met diesel gechipt. Dieselverbruik is ca. 1,5 l/ton vers. De berekening gaat uit van een conservatief gemiddelde: 2 l/ton vers (= 4 l/ton ds), en een verlies als in EU. | CT10: Transport is in een straal van maximaal 120 km met een walkingfloor trailer of 2 containers (27 ton laadvermogen). De terugrit is leeg. Gerekend is voor de maximale heen én terugrit.
C11: 2c-Blokken uit rondhout uit bos of landschap | D11: NL | E11: 2c | F11: Blokken uit rondhout uit bos of landschap | G11: 1.067122105 | H11: 1.351421053 | I11: 1.365646537 | J11: 0.4135818839 | K11: 4 | L11: 5 | M11: Teelt rondhout | N11: De ‘typische’ praktijk in NL verschilt. Er is vaak natuurlijke verjonging en nauwelijks bemesting. Deze berekenen is niet haalbaar voor deze opdracht. De EU waarde wordt hier gebruikt. | O11: C | P11: 1 | S11: 0.01066 | T11: 1.001477389 | U11: 0 | V11: 0 | W11: 1.068421053 | X11: Transport naar centrale opslag | Y11: Transport is in een straal van maximaal 50 km met een rondhout vrachtwagen met 40 ton vers laadvermogen. De terugrit is leeg. Gerekend is met de maximale heen én terugrit. | Z11: T | AA11: 1 | AD11: 0.002898947368 | AH11: 0.4263157895 | AI11: Afkorten en kloven | AJ11: De stammen worden afgekort en gekloofd. Het dieselverbruik is 1,2 liter diesel per m3 blokken losgestort. Gerekend is met de houtdichtheid van de gemiddelde samenstelling van het NL bos. | AK11: P | AS11: 1.352631579 | AT11: Drogen op centrale opslag | AU11: De vochtigheid (M) neemt af van 50 naar 15 à 20 %, verder is de EU-waarde is aangehouden. | AV11: P | BD11: 0 | BE11: Transport naar de afnemer | BF11: De gemiddelde straal in NL voor afnemers van NL houtblokken is in de regio en maximaal 30 km. We gaan uit van een trekker met kiepkap, laadvermogen 18 m3 blokken losgestort, diesel verbruik 25 liter/100km. Gerekend is met de standaard houtdichtheid JRC/Biograce van fijnspar. Een lege terugrit is meegeteld. | BG11: T | BO11: 0.9368421053 | BZ11: 0 | CP11: 2c-Blokken uit rondhout uit bos of landschap | CQ11: De ‘typische’ praktijk in NL verschilt. Er is vaak natuurlijke verjonging en nauwelijks bemesting. Deze berekenen is niet haalbaar voor deze opdracht. De EU waarde wordt hier gebruikt. | CR11: Transport is in een straal van maximaal 50 km met een rondhout vrachtwagen met 40 ton vers laadvermogen. De terugrit is leeg. Gerekend is met de maximale heen én terugrit. | CS11: De stammen worden afgekort en gekloofd. Het dieselverbruik is 1,2 liter diesel per m3 blokken losgestort. Gerekend is met de houtdichtheid van de gemiddelde samenstelling van het NL bos. | CT11: De vochtigheid (M) neemt af van 50 naar 15 à 20 %, verder is de EU-waarde is aangehouden.
C12: 3a-Chips uit reststromen houtindustrie | D12: EU-NL | E12: 3a | F12: Chips uit reststromen houtindustrie | G12: 0 | H12: 0.5540826316 | I12: 0.890136 | J12: 0.4135818839 | K12: 3 | L12: 2 | M12: Chippen | N12: In Nederland worden reststromen uit de houtindustrie zowel elektrisch als met diesel gechipt. Het is vers hout van zagerijen, of droog A-hout. Dezelfde waarden als EU worden gevolgd. | O12: P | S12: 0.003357 | T12: 0.315380825 | U12: 0 | V12: 0 | W12: 0.5526315789 | X12: Transport chips naar de afnemer | Y12: Transport is in een straal van maximaal 120 km met een walkingfloor trailer of 2 containers (27 ton laadvermogen). De terugrit is leeg. Gerekend is met de maximale heen- én terugrit. | Z12: T | AA12: 1 | AD12: 0.00936 | AH12: 0.8894736842 | AS12: 0 | BD12: 0 | BO12: 0 | BZ12: 0 | CP12: 3a-Chips uit reststromen houtindustrie | CQ12: In Nederland worden reststromen uit de houtindustrie zowel elektrisch als met diesel gechipt. Het is vers hout van zagerijen, of droog A-hout. Dezelfde waarden als EU worden gevolgd. | CR12: Transport is in een straal van maximaal 120 km met een walkingfloor trailer of 2 containers (27 ton laadvermogen). De terugrit is leeg. Gerekend is met de maximale heen- én terugrit. | CS12: 0 | CT12: 0
C13: 3b-Pellets uit (droge) reststromen houtindustrie | D13: EU-NL | E13: 3b | F13: Pellets uit (droge) reststromen houtindustrie | G13: 0 | H13: 5.888926554 | I13: 1.337654577 | J13: 0.2512145395 | K13: 5 | L13: 3 | M13: Transport naar Pelletfabriek | N13: Transport zaagsel en schaafsel (M10) vanuit een straal van maximaal 90 km met walkingfloor trailer of 2 containers (27 ton laadvermogen). Gerekend is voor de maximale heen én terugrit. | O13: T | P13: 1 | S13: 0.008261052632 | T13: 0.7761029474 | U13: 0 | V13: 0 | W13: 0.7947368421 | X13: Drogen, verkleinen, pelletiseren | Y13: Proces vergelijkbaar met EU. Stroom nodig voor het malen en pelletpers bij de partijen in de houtketen in NL is 190 kWh/ton. Emissiefactor stroom is van gemiddelde NL, zie BioGrace-II. | Z13: P | AA13: 1.01010101 | AD13: 0.001 | AH13: 6.310526316 | AI13: Transport pellets naar afnemer | AJ13: Transport is in een straal van maximaal 120 km met een walkingfloor trailer of 2 containers (27 ton laadvermogen). De terugrit is leeg. Gerekend is voor de maximale heen én terugrit. | AK13: T | AS13: 0.5421052632 | BD13: 0 | BO13: 0 | BZ13: 0 | CP13: 3b-Pellets uit (droge) reststromen houtindustrie | CQ13: Transport zaagsel en schaafsel (M10) vanuit een straal van maximaal 90 km met walkingfloor trailer of 2 containers (27 ton laadvermogen). Gerekend is voor de maximale heen én terugrit. | CR13: Proces vergelijkbaar met EU. Stroom nodig voor het malen en pelletpers bij de partijen in de houtketen in NL is 190 kWh/ton. Emissiefactor stroom is van gemiddelde NL, zie BioGrace-II. | CS13: Transport is in een straal van maximaal 120 km met een walkingfloor trailer of 2 containers (27 ton laadvermogen). De terugrit is leeg. Gerekend is voor de maximale heen én terugrit. | CT13: 0
C14: 4a-Shreds uit groene reststromen | D14: NL | E14: 4a | F14: Shreds uit groene reststromen | G14: 0 | H14: 0.5405684211 | I14: 1.629387025 | J14: 0.4135818839 | K14: 7 | L14: 4 | M14: Inzamelen groene reststromen | N14: Het inzamelen van groene reststroom uit tuin-, groen-, weg- en landschapsonderhoud is in een straal van maximaal 60 km. Gerekend is met 27 ton laadvermogen. De terugreis is leeg. | O14: T | P14: 1 | S14: 0.005134736842 | T14: 0.4823942632 | U14: 0 | V14: 0 | W14: 0.5157894737 | X14: Opslag en drogen | Y14: Het hout wordt kort opgeslagen en droogt tot een vochtigheid van ca. 45 % (M45). Aanname is een verlies aan droge stof van 5 %, vergelijkbaar met de EU-keten voor top- en takhout uit het bos. | Z14: P | AA14: 1.052631579 | AH14: 0 | AI14: Shredderen en zeven (+laden) | AJ14: Het grover hout (stronken en takken) wordt geshredderd en het zand en fijn materiaal wordt eruit gezeefd en ingezet voor andere producten. Dieselverbruik is circa 1,5 liter/ton vers M45. | AK14: P | AS14: 0.5421052632 | AT14: Transport shreds naar afnemer | AU14: Transport is in een straal van maximaal 150 km met een walkingfloor trailer of 2 containers (27 ton laadvermogen). Gerekend is dieselverbruik voor de maximale straal én terugrit. | BD14: 0 | BO14: 0 | BZ14: 0 | CP14: 4a-Shreds uit groene reststromen | CQ14: Het inzamelen van groene reststroom uit tuin-, groen-, weg- en landschapsonderhoud is in een straal van maximaal 60 km. Gerekend is met 27 ton laadvermogen. De terugreis is leeg. | CR14: Het hout wordt kort opgeslagen en droogt tot een vochtigheid van ca. 45 % (M45). Aanname is een verlies aan droge stof van 5 %, vergelijkbaar met de EU-keten voor top- en takhout uit het bos. | CS14: Het grover hout (stronken en takken) wordt geshredderd en het zand en fijn materiaal wordt eruit gezeefd en ingezet voor andere producten. Dieselverbruik is circa 1,5 liter/ton vers M45. | CT14: Transport is in een straal van maximaal 150 km met een walkingfloor trailer of 2 containers (27 ton laadvermogen). Gerekend is dieselverbruik voor de maximale straal én terugrit.
C15: 4b-Shreds uit zeefoverloop | D15: NL | E15: 4b | F15: Shreds uit zeefoverloop | G15: 0 | H15: 1.701789472 | I15: 1.686499711 | J15: 0.4135818839 | K15: 8 | L15: 5 | M15: Inzamelen groene reststromen | N15: Het inzamelen van groene reststroom uit tuin-, groen-, weg- en landschapsonderhoud is in een straal van maximaal 60 km. Gerekend is met 27 ton laadvermogen. De terugreis is leeg. | O15: T | P15: 1 | S15: 0.005134736842 | T15: 0.4823942632 | U15: 0 | V15: 0 | W15: 0.5736842105 | X15: Opslag en drogen | Y15: Het hout wordt kort opgeslagen en droogt tot een vochtigheid van ca. 45 % (M45). Aanname is een verlies aan droge stof van 5 %, vergelijkbaar met de EU-keten voor top- en takhout uit het bos. | Z15: P | AA15: 1.052631579 | AH15: 0 | AI15: Shredderen en zeven (+laden) | AJ15: Het grover hout (stronken en takken) wordt geshredderd en gezeefd in verschillende fracties voor verdere verwerking. Dieselverbruik is circa 1,5 liter/ton vers M45. | AK15: P | AS15: 0.6 | AT15: Composteren en uitzeven shreds | AU15: Dit is inclusief op rillen zetten, omzetten, zeven en laden. De shreds worden uiteindelijk uit de compost gezeefd. Verbruik aan diesel: 5,5 liter per verse ton M45. Verlies aan droge massa: 10 %. | AV15: P | BD15: 1.1 | BE15: Transport shreds naar de afnemer | BF15: Transport is in een straal van maximaal 150 km met een walkingfloor trailer of 2 containers (27 ton laadvermogen). Gerekend is voor de maximale heen én terugrit. | BG15: T | CP15: 4b-Shreds uit zeefoverloop | CQ15: Het inzamelen van groene reststroom uit tuin-, groen-, weg- en landschapsonderhoud is in een straal van maximaal 60 km. Gerekend is met 27 ton laadvermogen. De terugreis is leeg. | CR15: Het hout wordt kort opgeslagen en droogt tot een vochtigheid van ca. 45 % (M45). Aanname is een verlies aan droge stof van 5 %, vergelijkbaar met de EU-keten voor top- en takhout uit het bos. | CS15: Het grover hout (stronken en takken) wordt geshredderd en gezeefd in verschillende fracties voor verdere verwerking. Dieselverbruik is circa 1,5 liter/ton vers M45. | CT15: Dit is inclusief op rillen zetten, omzetten, zeven en laden. De shreds worden uiteindelijk uit de compost gezeefd. Verbruik aan diesel: 5,5 liter per verse ton M45. Verlies aan droge massa: 10 %.
G16: =SUM(G8:G15) -> 3.210423515 | H16: =SUM(H8:H15) -> 33.67867995 | I16: =SUM(I8:I15) -> 11.082942 | J16: =SUM(J8:J15) -> 2.983920382 | K16: =SUM(K8:K15) -> 30.40657268
G17: Broeikasgassen in gCO2eq/MJ - EU | M17: =N5 -> Ketenstap-1 | N17: =N5 -> Ketenstap-1 | P17: Doorzet | Q17: Doorzet | R17: Vochtigheid | S17: Diesel | T17: CO2 | U17: CH4 | V17: N2O | W17: CO2eq | X17: =Y5 -> Ketenstap-2 | Y17: =Y5 -> Ketenstap-2 | AA17: Doorzet | AB17: Doorzet | AC17: Vochtigheid | AD17: Diesel | AE17: CO2 | AF17: CH4 | AG17: N2O | AH17: CO2eq | AI17: =AJ5 -> Ketenstap-3 | AJ17: =AJ5 -> Ketenstap-3 | AL17: Doorzet | AM17: Doorzet | AN17: Vochtigheid | AO17: Diesel | AP17: CO2 | AQ17: CH4 | AR17: N2O | AS17: CO2eq | AT17: =AU5 -> Ketenstap-4 | AU17: =AU5 -> Ketenstap-4 | AW17: Doorzet | AX17: Doorzet | AY17: Vochtigheid | AZ17: Diesel | BA17: CO2 | BB17: CH4 | BC17: N2O | BD17: CO2eq | BE17: =BF5 -> Ketenstap-5 | BF17: =BF5 -> Ketenstap-5 | BH17: Doorzet | BI17: Doorzet | BJ17: Vochtigheid | BK17: Diesel | BL17: CO2 | BM17: CH4 | BN17: N2O | BO17: CO2eq | BP17: =BQ5 -> Ketenstap-6 | BQ17: =BQ5 -> Ketenstap-6 | BS17: Doorzet | BT17: Doorzet | BU17: Vochtigheid | BV17: Diesel | BW17: CO2 | BX17: CH4 | BY17: N2O | BZ17: CO2eq | CA17: =CB5 -> Ketenstap-7 | CB17: =CB5 -> Ketenstap-7 | CD17: Doorzet | CE17: Doorzet | CF17: Vochtigheid | CG17: Diesel | CH17: CO2 | CI17: CH4 | CJ17: N2O | CK17: CO2eq
C18: Nr + EU-Titel | D18: NL/EU | E18: Nr | F18: EU-Titel | G18: Cultivation | H18: Proces | I18: Transport | J18: Combustion | K18: Total | M18: Titel-kort | N18: Detailinformatie | O18: C/P/T | P18: MJout/MJin | Q18: MJin | R18: % | S18: MJ/MJdoorzet | T18: g/MJ | U18: g/MJ | V18: g/MJ | W18: g/MJ | X18: Titel-kort | Y18: Detailinformatie | Z18: P/T | AA18: MJout/MJin | AB18: MJin | AC18: % | AD18: MJ/MJdoorzet | AE18: g/MJ | AF18: g/MJ | AG18: g/MJ | AH18: g/MJ | AI18: Titel-kort | AJ18: Detailinformatie | AK18: C/P/T | AL18: MJout/MJin | AM18: MJout | AN18: % | AO18: MJ/MJdoorzet | AP18: g/MJ | AQ18: g/MJ | AR18: g/MJ | AS18: g/MJ | AT18: Titel-kort | AU18: Detailinformatie | AV18: P/T | AW18: MJout/MJin | AX18: MJout | AY18: % | AZ18: MJ/MJdoorzet | BA18: g/MJ | BB18: g/MJ | BC18: g/MJ | BD18: g/MJ | BE18: Titel-kort | BF18: Detailinformatie | BG18: C/P/T | BH18: MJout/MJin | BI18: MJout | BJ18: % | BK18: MJ/MJdoorzet | BL18: g/MJ | BM18: g/MJ | BN18: g/MJ | BO18: g/MJ | BP18: Titel-kort | BQ18: Detailinformatie | BR18: P/T | BS18: MJout/MJin | BT18: MJout | BU18: % | BV18: MJ/MJdoorzet | BW18: g/MJ | BX18: g/MJ | BY18: g/MJ | BZ18: g/MJ | CA18: Titel-kort | CB18: Detailinformatie | CC18: C/P/T | CD18: MJout/MJin | CE18: MJout | CF18: % | CG18: MJ/MJdoorzet | CH18: g/MJ | CI18: g/MJ | CJ18: g/MJ | CK18: g/MJ
B19: EU | C19: =E19&"-"&F19 -> 1a-Woodchips from forest residues | D19: =D8 -> EU-NL | E19: 1a | F19: Woodchips from forest residues | G19: 0 | H19: =W19+AH19+AS19 -> 1.840796533 | I19: =BD19 -> 3 | J19: 0.4135818839 | K19: 2 | M19: Forest residues collection | N19: Dit is inclusief forwarden, bundelen, oliegebruik, transport van machines van en naar de werkplek, laden en lossen. Het bevat scenario's los top- en takhout, bundelen en oogst van stobben. Voor het olieverbruik wordt uitgegaan van 6 % van het dieselverbruik van de machines. De emissiefactor van olie is gelijkgesteld aan diesel. De vochtigheid (M) is aangenomen op 50 %. | O19: P | P19: 1 | Q19: =AB19*P19 -> 1.078947368 | R19: 50 | S19: 0.01442660099 | T19: =S19*JRC_Basis_Diesel_CO2*Q19 -> 1.462339543 | U19: 0 | V19: 0 | W19: =T19*JRC_GWP_CO2+U19*JRC_GWP_CH4+V19*JRC_GWP_N2O -> 1.462339543 | X19: Forest residues seasoning | Y19: It includes open air seasoning at roadside with the residues covered from rain. Storage is usually for a period of 3-8 months | Z19: P | AA19: =100/95 -> 1.052631579 | AB19: =AM19*AA19 -> 1.078947368 | AC19: 30 | AD19: 0 | AE19: 0 | AF19: 0 | AG19: 0 | AH19: =AE19*JRC_GWP_CO2+AF19*JRC_GWP_CH4+AG19*JRC_GWP_N2O -> 0 | AI19: Wood chipping | AJ19: Required for chips, pellets and for briquette production | AK19: P | AL19: 1.025 | AM19: =AX19*AL19 -> 1.025 | AN19: 30 | AO19: 0.0040284 | AP19: =AO19*JRC_Basis_Diesel_CO2 -> 0.37845699 | AQ19: 0 | AR19: 0 | AS19: =AP19*JRC_GWP_CO2+AQ19*JRC_GWP_CH4+AR19*JRC_GWP_N2O -> 0.37845699 | AT19: Transport of wood chips to end-user | AU19: Transport of seasoned wood chips from forest roadside to the plant gate. Moisture is considered to be 30% | AV19: T | AW19: 1 | AX19: =BI19*AW19 -> 1 | AY19: 30 | AZ19: =BA19/JRC_Basis_Diesel_CO2 -> 0.03166466512 | BA19: 2.974807331 | BB19: 0 | BC19: 0 | BD19: 3 | BH19: 1 | BI19: =BT19*BH19 -> 1 | BJ19: 50 | BO19: 0 | BS19: 1 | BT19: =CE19*BS19 -> 1 | BZ19: 0 | CD19: 1 | CE19: 1 | CP19: =C19 -> 1a-Woodchips from forest residues | CQ19: =N19 -> Dit is inclusief forwarden, bundelen, oliegebruik, transport van machines van en naar de werkplek, laden en lossen. Het bevat scenario's los top- en takhout, bundelen en oogst van stobben. Voor het olieverbruik wordt uitgegaan van 6 % van het dieselverbruik van de machines. De emissiefactor van olie is gelijkgesteld aan diesel. De vochtigheid (M) is aangenomen op 50 %. | CR19: =Y19 -> It includes open air seasoning at roadside with the residues covered from rain. Storage is usually for a period of 3-8 months | CS19: =AJ19 -> Required for chips, pellets and for briquette production | CT19: =AU19 -> Transport of seasoned wood chips from forest roadside to the plant gate. Moisture is considered to be 30%
C20: 2a-Woodchips from stemwood | D20: EU-NL | E20: 2a | F20: Woodchips from stemwood | G20: 1.093800158 | H20: 0.3272319675 | I20: 3 | J20: 0.4135818839 | K20: 1 | M20: Teelt rondhout | O20: C | P20: 1 | W20: 1.094736842 | X20: Transport naar centrale opslag | Z20: T | AA20: 1 | AI20: Drogen langs de weg | AK20: P | AS20: 0 | AT20: Chippen | AV20: P | BD20: 0.3263157895 | BE20: Transport chips naar afnemer | BG20: T | BO20: 3 | BZ20: 0 | CP20: 2a-Woodchips from stemwood | CQ20: 0 | CR20: 0 | CS20: 0 | CT20: =AU20 -> 0
C21: 2b-Wood briquettes or pellets from Stemwood (case 1) | D21: EU-NL | E21: 2b | F21: Wood briquettes or pellets from Stemwood (case 1) | G21: 1.063166667 | H21: 24.79744444 | I21: 2.881333333 | J21: 0.2512145395 | K21: 0 | M21: Teelt rondhout | O21: C | P21: 1 | W21: 1.047368421 | X21: Transport naar centrale opslag | Z21: T | AI21: Chippen | AK21: P | AS21: 0.3315789474 | AT21: Transport naar pelletfabriek | AV21: T | BD21: 0 | BE21: Drogen, verkleinen en pelletiseren | BG21: P | BO21: 24.14210526 | BP21: Transport Pellets naar afnemer | BR21: T | BZ21: 2.878947368 | CP21: 2b-Wood briquettes or pellets from Stemwood (case 1) | CQ21: 0 | CR21: 0 | CS21: 0 | CT21: 0
C22: 2c-Pathway not in EU | D22: NL | E22: 2c | F22: Pathway not in EU | G22: n.a. | H22: n.a. | I22: n.a. | J22: n.a. | K22: n.a. | M22: Pathway not in Biograce-II | W22: 0 | AS22: 0 | BD22: 0 | BO22: 0 | BZ22: 0 | CP22: 2c-Pathway not in EU | CQ22: 0 | CR22: 0 | CS22: 0 | CT22: 0
C23: 3a-Woodchips from industry residues | D23: EU-NL | E23: 3a | F23: Woodchips from industry residues | G23: 0 | H23: 0.3225 | I23: 3.032 | J23: 0.4135818839 | K23: 3 | M23: Chippen | O23: P | W23: 0.3263157895 | X23: Transport chips naar de afnemer | Z23: T | AS23: 0 | BD23: 0 | BO23: 0 | BZ23: 0 | CP23: 3a-Woodchips from industry residues | CQ23: 0 | CR23: 0 | CS23: 0 | CT23: 0
C24: 3b-Wood briquettes or pellets from woodindustry residues (dry M10) | D24: EU-NL | E24: 3b | F24: Wood briquettes or pellets from woodindustry residues (dry M10) | G24: 0 | H24: 0.2221111111 | I24: 2.830583333 | J24: 0.2512145395 | K24: 5 | M24: Transport materiaal naar Pelletfabriek | O24: T | P24: 1 | W24: 0 | X24: Droge, verklinen en pelletiseren | Z24: P | AI24: Transport pellets naar afnemer | AK24: T | AS24: 2.878947368 | BD24: 0 | BO24: 0 | BZ24: 0 | CP24: 3b-Wood briquettes or pellets from woodindustry residues (dry M10) | CQ24: 0 | CR24: 0 | CS24: 0 | CT24: 0
C25: 4a-Pathway not in EU | D25: NL | E25: 4a | F25: Pathway not in EU | G25: n.a. | H25: n.a. | I25: n.a. | J25: n.a. | K25: n.a. | M25: Pathway not in Biograce-II | W25: 0 | AS25: 0 | BD25: 0 | BO25: 0 | BZ25: 0 | CP25: 4a-Pathway not in EU | CQ25: 0 | CR25: 0 | CS25: 0 | CT25: 0
C26: 4b-Pathway not in EU | D26: NL | E26: 4b | F26: Pathway not in EU | G26: n.a. | H26: n.a. | I26: n.a. | J26: n.a. | K26: n.a. | M26: Pathway not in Biograce-II | W26: 0 | AS26: 0 | BD26: 0 | BO26: 0 | BZ26: 0 | CP26: 4b-Pathway not in EU | CQ26: 0 | CR26: 0 | CS26: 0 | CT26: 0
C27: =C4 -> 1 | D27: =D4 -> 2 | E27: 3 | F27: 4 | G27: 5 | H27: 6 | I27: 7 | J27: 8 | K27: 9 | L27: 10 | M27: 11 | N27: 12 | O27: 13 | P27: 14 | Q27: 15 | R27: 16 | S27: 17 | T27: 18 | U27: 19 | V27: 20 | W27: 21 | X27: 22 | CP27: 1
C29: Keten_Nr_Titel | D29: 1
C30: Keten_Titel_NL_EU | D30: 2
C31: Keten_Nr | D31: 3
C32: Keten_Titel | D32: 4
C33: Keten_Cultivatie_CO2 | D33: 5
C34: Keten_Proces_CO2 | D34: 6
C35: Keten_Transport_CO2 | D35: 7
C36: Keten_Verbranding_CO2 | D36: 8
C37: Keten_Totaal_CO2 | D37: 9
C38: Keten_Stappen | D38: 10
C39: Keten_Stap1 | D39: 11
C40: Keten_Stap1_Detail | D40: 12
C41: Keten_Stap1_CPT | D41: 13
C42: Keten_Stap1_Doorzet | D42: 14
C43: Keten_Stap1_Doorzet_Abs | D43: 15
C44: Keten_Stap1_Vochtigheid | D44: 16
C45: Keten_Stap1_Verbruik_Diesel | D45: 17
C46: Keten_Stap1_CO2 | D46: 18
C47: Keten_Stap1_CH4 | D47: 19
C48: Keten_Stap1_N2O | D48: 20
C49: Keten_Stap1_CO2eq | D49: 21
C50: Keten_Delta | D50: 11

Sheet Lijsten (hidden)
B4: Lijst_Hout_CO2eq_Samenvatting_Dim | M4: Lijst_Proces_CO2eq_Samenvatting_Dim | X4: Lijst_Transport_CO2eq_Samenvatting_Dim
B5: 1.2 | E5: 1 | F5: gCO2eq | P5: 1 | Q5: gCO2eq | AA5: 1 | AB5: gCO2eq
E6: 2 | F6: kgCO2eq | P6: 2 | Q6: kgCO2eq | AA6: 2 | AB6: kgCO2eq
E7: 3 | F7: tonCO2eq | P7: 3 | Q7: tonCO2eq | AA7: 3 | AB7: tonCO2eq
E8: 4 | F8: MtonCO2eq | P8: 4 | Q8: MtonCO2eq | AA8: 4 | AB8: MtonCO2eq
B10: Lijst_Hout_Doorzet_Samenvatting_Dim | M10: Lijst_Proces_Doorzet_Samenvatting_Dim | X10: Lijst_Transport_Doorzet_Samenvatting_Dim
E11: 1 | F11: m3 | P11: 1 | Q11: kg | AA11: 1 | AB11: ton
E12: 2 | F12: kg | P12: 2 | Q12: kgds | AA12: 2 | AB12: tonds
E13: 3 | F13: kgds | P13: 3 | Q13: ton | AA13: 3 | AB13: tonkm
E14: 4 | F14: ton | P14: 4 | Q14: tonds | AA14: 4 | AB14: km
E15: 5 | F15: tonds | P15: 5 | Q15: m3 | AA15: 5 | AB15: m3
E16: 6 | F16: MJ | P16: 6 | Q16: MJ | AA16: 6 | AB16: MJ
E17: 7 | F17: GJ | P17: 7 | Q17: GJ | AA17: 7 | AB17: GJ
E18: 8 | F18: MWh | P18: 8 | Q18: kWh | AA18: 8 | AB18: kWh
E19: 9 | F19: kWh | P19: 9 | Q19: MWh | AA19: 9 | AB19: MWh
B21: Lijst_Hout_Hoeveelheid_Dim | M21: Lijst_Proces_Capaciteit_Dim | X21: Lijst_Transport_Laadvermogen_Dim
E22: 1 | F22: m3 | P22: 1 | Q22: uur | AA22: 1 | AB22: m3
E23: 2 | F23: kg | P23: 2 | Q23: m3/uur | AA23: 2 | AB23: ton
E24: 3 | F24: kgds | P24: 3 | Q24: ton/uur
E25: 4 | F25: ton | P25: 4 | Q25: tonds/uur
E26: 5 | F26: tonds | P26: 5 | Q26: GJ/uur
E27: 6 | F27: MJ | P27: 6 | Q27: MWh/uur
E28: 7 | F28: GJ | P28: 7 | Q28: uur/m3
E29: 8 | F29: MWh | P29: 8 | Q29: uur/ton
E30: 9 | F30: kWh | P30: 9 | Q30: uur/tonds
P31: 10 | Q31: uur/GJ
B32: Lijst_Hout_Teelt_Eindgebruiker | P32: 11 | Q32: uur/MWh
F33: naar eindgebruiker
F34: uit oogst | M34: Lijst_Proces_Brandstof_Euronorm | X34: Lijst_Transport_Brandstof_Euronorm
Q35: Euro 1 | AB35: Euro 1
Q36: Euro 2 | AB36: Euro 2
Q37: Euro 3 | AB37: Euro 3
Q38: Euro 4 | AB38: Euro 4
Q39: Euro 5 | AB39: Euro 5
Q40: Euro 6 | AB40: Euro 6
M43: Lijst_Proces_Brandstof_Verbruik_Dim | X43: Lijst_Transport_Brandstof_Verbruik_Dim
P44: 1 | Q44: liter | AA44: 1 | AB44: liter
P45: 2 | Q45: m3 | AA45: 2 | AB45: liter/km
P46: 3 | Q46: kg | AA46: 3 | AB46: liter/100km
P47: 4 | Q47: ton | AA47: 4 | AB47: kg
P48: 5 | Q48: liter/uur | AA48: 5 | AB48: kg/km
P49: 6 | Q49: m3/uur | AA49: 6 | AB49: kg/100km
P50: 7 | Q50: kg/uur
P51: 8 | Q51: ton/uur
M53: Lijst_Proces_Elektriciteit_Vermogen_Dim | X53: Lijst_Transport_Elektriciteit_Vermogen_Dim
P54: 1 | Q54: kW | AA54: 1 | AB54: kW
P55: 2 | Q55: MW | AA55: 2 | AB55: MW
M59: Lijst_Proces_Elektriciteit_Verbruik_Dim | X59: Lijst_Transport_Elektriciteit_Verbruik_Dim
Q60: kWh | U60: 1 | AA60: 1 | AB60: kWh
Q61: MWh | U61: 2 | AA61: 2 | AB61: MWh
Q62: MJ | U62: 3 | AA62: 3 | AB62: MJ
Q63: GJ | U63: 4 | AA63: 4 | AB63: GJ
B65: Lijst_Hout_CO2eq_Dim | M65: Lijst_Proces_CO2eq_Dim | X65: Lijst_Transport_CO2eq_Dim
E66: 1 | F66: gCO2eq/MJ | P66: 1 | Q66: gCO2eq/MJ | AA66: 1 | AB66: gCO2eq/MJ
E67: 2 | F67: kgCO2eq | P67: 2 | Q67: kgCO2eq/tonds | AA67: 2 | AB67: gCO2eq/tkm
E68: 3 | F68: kgCO2eq/tonds | P68: 3 | Q68: kgCO2eq | AA68: 3 | AB68: kgCO2eq
E69: 4 | F69: tonCO2eq | P69: 4 | Q69: tonCO2eq | AA69: 4 | AB69: kgCO2eq/tonds
E70: 5 | F70: MtonCO2eq | P70: 5 | Q70: MtonCO2eq | AA70: 5 | AB70: tonCO2eq
AA71: 6 | AB71: MtonCO2eq
M72: Lijst_Invoer_Uitvoer
P73: 1 | Q73: Invoer
P74: 2 | Q74: Uitvoer
